Service Area,Service Division,Expense Type,Expense Code,Detailed Expense Type,Payment Date,Transaction Number,Amount Exc Vat,Supplier Name
Children and Adult Services,Education,Supplies and Services,338094,Services,01-Jun-2016,3135342-HYCA/ALSSE/16-04,600.00,HORDEN YOUTH & COMMUNITY ASSOCIATION.
Children and Adult Services,Education,Supplies and Services,338094,Services,01-Jun-2016,3135342-HYCA/ALSSM/16-04,600.00,HORDEN YOUTH & COMMUNITY ASSOCIATION.
Children and Adult Services,Education,Employees,040001,Recruitment Instruction and Training,01-Jun-2016,3135503-TARINV/15429233,710.10,TES GLOBAL LTD.
Children and Adult Services,Education,Employees,040001,Recruitment Instruction and Training,01-Jun-2016,3135503-TARINV/15430011,710.10,TES GLOBAL LTD.
Children and Adult Services,Childrens Services,Supplies and Services,338043,Services,01-Jun-2016,303685-SW/CW/117903,540.00,BEN HOARE BELL SOLICITORS.
Children and Adult Services,Childrens Services,Supplies and Services,384302,Miscellaneous Expenses,01-Jun-2016,3135534-497359237,529.16,YORKSHIRE PURCHASING ORGANISATION.
Children and Adult Services,Education,Supplies and Services,338094,Services,01-Jun-2016,3135194-18002714,"1,085.00",1LIFE MANAGEMENT SOLUTIONS LTD.
Children and Adult Services,Childrens Services,Third Party Payments,425018,Rendered by Voluntary Organisations,01-Jun-2016,3135464-IN000383,"15,939.60",S/C 202741 CAMBIAN INTERACT CARE SERVICES LTD.
Children and Adult Services,Childrens Services,Third Party Payments,425041,Rendered by Voluntary Organisations,01-Jun-2016,303687-33529901,"27,000.00",BURY METROPOLITAN BOROUGH COUNCIL.
Children and Adult Services,Childrens Services,Third Party Payments,440027,Other Third Party Payments,01-Jun-2016,3134582-1106613,538.08,REDACTED - PAYMENT TO INDIVIDUAL
Children and Adult Services,Childrens Services,Third Party Payments,440001,Other Third Party Payments,01-Jun-2016,3134594-1105951,727.04,REDACTED - PAYMENT TO INDIVIDUAL
Children and Adult Services,Childrens Services,Third Party Payments,440027,Other Third Party Payments,01-Jun-2016,3134652-1106612,672.60,REDACTED - PAYMENT TO INDIVIDUAL
Children and Adult Services,Childrens Services,Third Party Payments,440015,Other Third Party Payments,01-Jun-2016,3134847-1107335,726.00,REDACTED - PAYMENT TO INDIVIDUAL
Children and Adult Services,Childrens Services,Third Party Payments,440031,Other Third Party Payments,01-Jun-2016,3134884-1107313,575.71,REDACTED - PAYMENT TO INDIVIDUAL
Children and Adult Services,Childrens Services,Third Party Payments,440005,Other Third Party Payments,01-Jun-2016,3134950-1106070,"1,071.09",REDACTED - PAYMENT TO INDIVIDUAL
Children and Adult Services,Childrens Services,Third Party Payments,440005,Other Third Party Payments,01-Jun-2016,3134950-1106071,"1,164.79",REDACTED - PAYMENT TO INDIVIDUAL
Dedicated Schools Grant,Dedicated Schools Grant,Third Party Payments,425005,Rendered by Voluntary Organisations,01-Jun-2016,3135293-M151601,"18,839.00",DURHAM SCHOOL.
Dedicated Schools Grant,Dedicated Schools Grant,Third Party Payments,410037,Rendered by Other Local Authorities,01-Jun-2016,3135343-1000230,"3,750.00",HORIZONS SPECIALIST ACADEMY TRUST.
Children and Adult Services,Education,Supplies and Services,338094,Services,01-Jun-2016,3135373-2012264,810.00,LEISUREWORKS.
Children and Adult Services,Childrens Services,Third Party Payments,425020,Rendered by Voluntary Organisations,01-Jun-2016,3135239-338/16,"2,160.00",BUTTERWICK HOSPICE RETAIL LTD.
Children and Adult Services,Childrens Services,Employees,080025,Agency Staff,01-Jun-2016,3135283-331442,"141,107.37",DE POEL MANAGED SERVICES LTD.
Children and Adult Services,Childrens Services,Employees,080025,Agency Staff,01-Jun-2016,3135283-331551,"148,842.71",DE POEL MANAGED SERVICES LTD.
Children and Adult Services,Public Health,Third Party Payments,460803,Contract Payments,01-Jun-2016,3135335-DCC016,"24,966.00",HARBOUR SUPPORT SERVICES.
Children and Adult Services,Childrens Services,Third Party Payments,425040,Rendered by Voluntary Organisations,01-Jun-2016,3135498-181853,819.98,SWIIS FOSTER CARE LTD.
Children and Adult Services,Childrens Services,Third Party Payments,486029,Service Level Agreements,01-Jun-2016,3135306-19610,"18,940.09",FAMILY ACTION.
Children and Adult Services,Education,Construction Work,908105,Construction work,01-Jun-2016,3135382-33760,"7,140.00",LUCION ENVIRONMENTAL LLP LTD.
Children and Adult Services,Childrens Services,Employees,080025,Agency Staff,01-Jun-2016,3135434-25701,"1,910.00",PK EDUCATION.
Children and Adult Services,Commissioning inc Supporting People,Third Party Payments,479102,Purchase of Care,01-Jun-2016,3135504-29955,"3,858.75",THE APPROPRIATE ADULT SERVICE LTD.
Dedicated Schools Grant,Dedicated Schools Grant,Third Party Payments,425005,Rendered by Voluntary Organisations,01-Jun-2016,3135293-1845,"5,280.00",DURHAM SCHOOL.
Dedicated Schools Grant,Dedicated Schools Grant,Third Party Payments,425005,Rendered by Voluntary Organisations,01-Jun-2016,3135293-3025,"10,692.00",DURHAM SCHOOL.
Dedicated Schools Grant,Dedicated Schools Grant,Third Party Payments,425005,Rendered by Voluntary Organisations,01-Jun-2016,3135293-3630,"10,824.00",DURHAM SCHOOL.
Dedicated Schools Grant,Dedicated Schools Grant,Third Party Payments,440080,Other Third Party Payments,01-Jun-2016,3135301-8214,"10,897.38",ESPA LTD.
Children and Adult Services,Education,Supplies and Services,384199,Miscellaneous Expenses,01-Jun-2016,3135372-1822,"2,696.00",LEE`S COACHES LTD.
Children and Adult Services,Education,Transport,230007,Contract Hire,01-Jun-2016,3135377-3403,"1,137.48",LINCAB TAXIS.
Children and Adult Services,Education,Transport,230008,Contract Hire,01-Jun-2016,3135397-736,966.00,MR S BALL T/A ABBIE`S TAXIS..
Children and Adult Services,Childrens Services,Supplies and Services,364352,Grants to Voluntary Organisations,01-Jun-2016,3135489-242,718.07,STONHAM HOUSING ASSOCIATION LTD.
Children and Adult Services,Childrens Services,Supplies and Services,364352,Grants to Voluntary Organisations,01-Jun-2016,303689-857,700.00,CITY OF SUNDERLAND YMCA LTD.
Children and Adult Services,Childrens Services,Supplies and Services,364352,Grants to Voluntary Organisations,01-Jun-2016,303689-866,700.00,CITY OF SUNDERLAND YMCA LTD.
Children and Adult Services,Childrens Services,Supplies and Services,364352,Grants to Voluntary Organisations,01-Jun-2016,303689-876,700.00,CITY OF SUNDERLAND YMCA LTD.
Children and Adult Services,Childrens Services,Supplies and Services,364352,Grants to Voluntary Organisations,01-Jun-2016,303689-877,700.00,CITY OF SUNDERLAND YMCA LTD.
Assistant Chief Executive,Partnerships & Community Engagement Div.,Supplies and Services,384085,Miscellaneous Expenses,01-Jun-2016,3135302-SMIH01-16,"1,000.00",EVENWOOD CRICKET CLUB.
Assistant Chief Executive,Partnerships & Community Engagement Div.,Supplies and Services,384085,Miscellaneous Expenses,01-Jun-2016,3135327-DIXM03-16,525.00,GREENFIELD COMMUNITY & ARTS CENTRE.
Assistant Chief Executive,Partnerships & Community Engagement Div.,Supplies and Services,384085,Miscellaneous Expenses,01-Jun-2016,3135458-BELR03-16,500.00,ROMALDKIRK PAROCHIAL CHURCH COUNCIL.
Assistant Chief Executive,Partnerships & Community Engagement Div.,Supplies and Services,384085,Miscellaneous Expenses,01-Jun-2016,3135488-CHAR03-16,500.00,STANLEY WOODCRAFT FOLK.
Assistant Chief Executive,Partnerships & Community Engagement Div.,Supplies and Services,384085,Miscellaneous Expenses,01-Jun-2016,3135531-SAVA02-16,500.00,WOLSINGHAM SCHOOL & COMMUNITY COLLEGE.
Neighbourhood Services,Technical Services,Third Party Payments,430100,Rendered by Private Contractors,01-Jun-2016,3135442-NEI-EXP-05-2016-021,600.00,PROJECT GENESIS LTD.
Neighbourhood Services,Direct Services,Income,720263,Fees and Charges,01-Jun-2016,303702-NEI-INC-05-2016-032,568.19,GOLDEN GATE TAKEAWAY.
Neighbourhood Services,Technical Services,Stock,926900,Stock in hand-Inventory system,01-Jun-2016,3135250-9950/01694513,"1,115.78",CERAMIC TILE DISTRIBUTORS (CTD).
Neighbourhood Services,Culture & Sport,Supplies and Services,338099,Services,01-Jun-2016,3135299-1-4100534214,500.00,ELIZABETH CORNEY.
Neighbourhood Services,Culture & Sport,Premises,145023,Cleaning and Domestic Supplies,01-Jun-2016,3135233-22SI2212887,"1,379.87",BRENNTAG UK LTD.
Neighbourhood Services,Direct Services,Premises,120037,Energy Costs,01-Jun-2016,3135312-0000012750,"1,720.00",FOREVER FUELS LTD
Neighbourhood Services,Direct Services,Supplies and Services,304221,Equipment and Materials,01-Jun-2016,3135363-CNI24642/D,542.20,JT DOVE LTD.
Neighbourhood Services,Technical Services,Supplies and Services,304221,Equipment and Materials,01-Jun-2016,3135500-9033797191,616.25,TARMAC TRADING LTD.
Neighbourhood Services,Technical Services,Supplies and Services,304221,Equipment and Materials,01-Jun-2016,3135500-9034356305,827.40,TARMAC TRADING LTD.
Neighbourhood Services,Technical Services,Supplies and Services,304221,Equipment and Materials,01-Jun-2016,3135500-9034369953,"1,220.31",TARMAC TRADING LTD.
Neighbourhood Services,Technical Services,Stock,926900,Stock in hand-Inventory system,01-Jun-2016,3135509-N/IN172226,989.30,THOMAS OWEN & SONS (NEWCASTLE) LTD.
Neighbourhood Services,Direct Services,Supplies and Services,304259,Equipment and Materials,01-Jun-2016,303686-PELTONCEME,"2,720.00",BLACKTOP.
Neighbourhood Services,Technical Services,Supplies and Services,304358,Equipment and Materials,01-Jun-2016,3135353-1265/2016,"1,348.00",J & JG GILL & SONS LTD.
Neighbourhood Services,Direct Services,Supplies and Services,304221,Equipment and Materials,01-Jun-2016,3135363-BII190686,"7,652.79",JT DOVE LTD.
Neighbourhood Services,Technical Services,Stock,926900,Stock in hand-Inventory system,01-Jun-2016,3135363-STI437201,766.04,JT DOVE LTD.
Neighbourhood Services,Technical Services,Supplies and Services,304221,Equipment and Materials,01-Jun-2016,3135205-23094666,"2,081.88",AGGREGATE INDUSTRIES UK LTD.
Neighbourhood Services,Technical Services,Supplies and Services,304221,Equipment and Materials,01-Jun-2016,3135205-2310352S,"1,805.87",AGGREGATE INDUSTRIES UK LTD.
Neighbourhood Services,Direct Services,Construction Work,908105,Construction work,01-Jun-2016,3135235-90235982,"249,497.76",BRITISH GAS ENERGY PERFORMANCE.
Neighbourhood Services,Direct Services,Supplies and Services,304259,Equipment and Materials,01-Jun-2016,3135240-23566056,"2,140.56",CALOR GAS LTD.
Neighbourhood Services,Direct Services,Third Party Payments,430100,Rendered by Private Contractors,01-Jun-2016,3135490-SA005-16,528.50,STRAY AID LTD.
Neighbourhood Services,Direct Services,Supplies and Services,384167,Miscellaneous Expenses,01-Jun-2016,3135506-BAB29595,"1,173.75",THE BRITISH ASSESSMENT BUREAU.
Neighbourhood Services,Direct Services,Supplies and Services,304221,Equipment and Materials,01-Jun-2016,3135530-32390423,817.92,WOLSELEY UK LTD.
Neighbourhood Services,Direct Services,Supplies and Services,304259,Equipment and Materials,01-Jun-2016,303686-6MAY2016,"4,200.00",BLACKTOP.
Neighbourhood Services,Culture & Sport,Supplies and Services,332029,Printing Stationery and Gen Off Exps,01-Jun-2016,3135253-S020363,571.67,CHIQUITOS.
Neighbourhood Services,Direct Services,Third Party Payments,430100,Rendered by Private Contractors,01-Jun-2016,3135275-N520014,720.00,D-DRILL (MASTER DRILLERS) LTD.
Neighbourhood Services,Direct Services,Transport,210057,Repair and Maintenance of Vehicles,01-Jun-2016,3135252-638329,551.64,CHATFIELDS.
Neighbourhood Services,Technical Services,Stock,926900,Stock in hand-Inventory system,01-Jun-2016,3135260-181599,612.00,COLAS LTD.
Neighbourhood Services,Direct Services,Supplies and Services,308011,Furniture,01-Jun-2016,3135381-289712,"1,000.00",LOW FELL REMOVALS.
Neighbourhood Services,Direct Services,Third Party Payments,430100,Rendered by Private Contractors,01-Jun-2016,3135537-102861,946.58,ZOELLER WASTE SYSTEMS LTD.
Neighbourhood Services,Technical Services,Stock,926900,Stock in hand-Inventory system,01-Jun-2016,303707-105661,"3,632.30",MALLATITE LTD.
Neighbourhood Services,Technical Services,Stock,926900,Stock in hand-Inventory system,01-Jun-2016,303707-105664,"1,250.00",MALLATITE LTD.
Neighbourhood Services,Direct Services,Supplies and Services,304221,Equipment and Materials,01-Jun-2016,3135304-24975,"1,492.60",FABRICATED PRODUCTS LTD.
Neighbourhood Services,Technical Services,Supplies and Services,304358,Equipment and Materials,01-Jun-2016,3135321-10412,730.00,GEORGE VARDY HAULAGE.
Neighbourhood Services,Direct Services,Supplies and Services,304358,Equipment and Materials,01-Jun-2016,3135321-10413,"1,060.00",GEORGE VARDY HAULAGE.
Neighbourhood Services,Technical Services,Supplies and Services,304358,Equipment and Materials,01-Jun-2016,3135321-10416,"1,720.00",GEORGE VARDY HAULAGE.
Neighbourhood Services,Technical Services,Supplies and Services,304358,Equipment and Materials,01-Jun-2016,3135321-10428,"1,385.00",GEORGE VARDY HAULAGE.
Neighbourhood Services,Technical Services,Supplies and Services,304358,Equipment and Materials,01-Jun-2016,3135321-10429,"1,370.00",GEORGE VARDY HAULAGE.
Neighbourhood Services,Technical Services,Supplies and Services,304358,Equipment and Materials,01-Jun-2016,3135321-10433,"1,026.38",GEORGE VARDY HAULAGE.
Neighbourhood Services,Direct Services,Supplies and Services,304221,Equipment and Materials,01-Jun-2016,3135513-30492,790.00,TOTAL PUMP SOLUTIONS LTD.
Neighbourhood Services,Technical Services,Supplies and Services,304221,Equipment and Materials,01-Jun-2016,303698-93397,"1,332.00",EMORSGATE SEEDS.
Neighbourhood Services,Technical Services,Supplies and Services,304358,Equipment and Materials,01-Jun-2016,3135251-1631,"10,735.09",CG SIMPSON & SON.
Neighbourhood Services,Technical Services,Supplies and Services,304358,Equipment and Materials,01-Jun-2016,3135353-0011,664.00,J & JG GILL & SONS LTD.
Neighbourhood Services,Technical Services,Supplies and Services,304358,Equipment and Materials,01-Jun-2016,3135353-1063,"1,740.00",J & JG GILL & SONS LTD.
Neighbourhood Services,Technical Services,Stock,926900,Stock in hand-Inventory system,01-Jun-2016,3135359-7740,501.80,JG UNIFORMS.
Neighbourhood Services,Technical Services,Third Party Payments,430100,Rendered by Private Contractors,01-Jun-2016,3135492-1402,"8,655.00",SUPAMOLE DIRECTIONAL DRILLING SPECIALISTS.
Neighbourhood Services,Culture & Sport,Supplies and Services,304259,Equipment and Materials,01-Jun-2016,3135374-610,"4,075.00",LETS CIRCUS LLP.
Regeneration & Economic Development,Transport and Contracted Services,Creditors,952025,Creditor-private street works,01-Jun-2016,3135366-RED-05-2016-225,"4,349.29",KENNETH HARRIS.
Regeneration & Economic Development,Economic Development and Housing,Cap Exp on Grants & Other Financial Assistance (REFCUS),918401,Capital grants,01-Jun-2016,3135417-RED-15-2016-200,"1,207.20",NORTHERN GAS NETWORKS LTD.
Regeneration & Economic Development,Economic Development and Housing,Cap Exp on Grants & Other Financial Assistance (REFCUS),918401,Capital grants,01-Jun-2016,3135510-RED-15-2016-199,"2,635.83",THYSSENKRUPP ENCASA A DIVISION OF THYSSENKRUPP ACCESS LTD.
Regeneration & Economic Development,Transport and Contracted Services,Third Party Payments,430108,Rendered by Private Contractors,01-Jun-2016,3135411-1800007865458,"1,001.74",NEWCASTLE UPON TYNE CITY COUNCIL.
Regeneration & Economic Development,Transport and Contracted Services,Supplies and Services,304245,Equipment and Materials,01-Jun-2016,3135519-3IN/10279633,800.00,TUNSTALL HEALTHCARE (UK) LTD.
Regeneration & Economic Development,Transport and Contracted Services,Supplies and Services,304259,Equipment and Materials,01-Jun-2016,3135328-08/492676,749.00,GREENHAM TRADING LTD.
Regeneration & Economic Development,Spatial Policy Planning Assets & Environment,Supplies and Services,342051,Computers and Communications,01-Jun-2016,3135376-LUK001157,"7,848.77",LIMEHOUSE SOFTWARE LTD.
Regeneration & Economic Development,Economic Development and Housing,Supplies and Services,384199,Miscellaneous Expenses,01-Jun-2016,3135420-INV--0667,"1,871.47",NORTHERN SECRETS LTD.
Regeneration & Economic Development,Transport and Contracted Services,Third Party Payments,430109,Rendered by Private Contractors,01-Jun-2016,3135290-DRA480,"15,606.00",DRAKEWELL LTD.
Regeneration & Economic Development,Transport and Contracted Services,Third Party Payments,430100,Rendered by Private Contractors,01-Jun-2016,3135421-038178,"27,425.09",NSL LTD.
Regeneration & Economic Development,Transport and Contracted Services,Third Party Payments,430100,Rendered by Private Contractors,01-Jun-2016,3135421-038179,"1,191.63",NSL LTD.
Regeneration & Economic Development,Transport and Contracted Services,Third Party Payments,430100,Rendered by Private Contractors,01-Jun-2016,3135421-038182,"6,574.02",NSL LTD.
Regeneration & Economic Development,Transport and Contracted Services,Third Party Payments,430100,Rendered by Private Contractors,01-Jun-2016,3135421-038184,"16,581.83",NSL LTD.
Regeneration & Economic Development,Transport and Contracted Services,Third Party Payments,430100,Rendered by Private Contractors,01-Jun-2016,3135421-038253,"3,880.61",NSL LTD.
Regeneration & Economic Development,Spatial Policy Planning Assets & Environment,Supplies and Services,338066,Services,01-Jun-2016,3135408-1274,"34,184.68",NEPRO LTD.
Regeneration & Economic Development,Economic Development and Housing,Third Party Payments,440999,Other Third Party Payments,01-Jun-2016,3135508-3966,"3,000.00",THE CYRENIANS LTD T/A CHANGING LIVES.
Resources,Legal & Democratic Services,Supplies and Services,338025,Services,01-Jun-2016,3135257-S44962-00373,870.00,CO-OPERATIVE FUNERAL CARE.
Resources,Legal & Democratic Services,Supplies and Services,338042,Services,01-Jun-2016,3135286-318113/INVMT178,"2,160.00",DERE STREET BARRISTERS.
Resources,Legal & Democratic Services,Supplies and Services,338042,Services,01-Jun-2016,3135286-319632/INVMT180,720.00,DERE STREET BARRISTERS.
Resources,Legal & Democratic Services,Supplies and Services,338042,Services,01-Jun-2016,3135286-321687/INVHMU79,550.00,DERE STREET BARRISTERS.
Resources,I.C.T. Services,Supplies and Services,372009,Subscriptions,01-Jun-2016,3135322-3343122,"1,499.00",GETTY IMAGES INTERNATIONAL LTD.
Resources,I.C.T. Services,Supplies and Services,342051,Computers and Communications,01-Jun-2016,3135405-E930679,630.00,NCC SERVICES LTD.
Resources,Financial Services,Supplies and Services,340001,Postages,01-Jun-2016,3135460-9052112056,"15,618.66",ROYAL MAIL GROUP PLC.
Children and Adult Services,Public Health,Third Party Payments,460802,Contract Payments,02-Jun-2016,3135578-A83021/APRIL2016HC,835.00,AUCKLAND MEDICAL GROUP.
Children and Adult Services,Public Health,Third Party Payments,460802,Contract Payments,02-Jun-2016,3135580-A83046/APRIL2016HC,545.00,BARNARD CASTLE SURGERY.
Children and Adult Services,Public Health,Third Party Payments,460802,Contract Payments,02-Jun-2016,3135587-A83037/APRIL2016HC,"1,050.00",BEWICK CRESCENT SURGERY.
Children and Adult Services,Public Health,Third Party Payments,460802,Contract Payments,02-Jun-2016,3135589-A83025/APRIL2016HC,895.00,BISHOPGATE MEDICAL CENTRE.
Children and Adult Services,Public Health,Third Party Payments,460802,Contract Payments,02-Jun-2016,3135596-A83009/APRIL2016HC,605.00,BRIDGE END SURGERY.
Children and Adult Services,Public Health,Third Party Payments,460802,Contract Payments,02-Jun-2016,3135678-A83045/APRIL2016HC,770.00,FERRYHILL & CHILTON MEDICAL PRACTICE.
Children and Adult Services,Public Health,Third Party Payments,460802,Contract Payments,02-Jun-2016,3135731-A83066/APRIL2016HC,670.00,JUBILEE MEDICAL GROUP.
Children and Adult Services,Public Health,Third Party Payments,460802,Contract Payments,02-Jun-2016,3135758-A83051/APRIL2016HC,695.00,MARLBOROUGH SURGERY.
Children and Adult Services,Public Health,Third Party Payments,460802,Contract Payments,02-Jun-2016,3135781-A83041/APRIL2016HC,760.00,MURTON MEDICAL GROUP.
Children and Adult Services,Public Health,Third Party Payments,460802,Contract Payments,02-Jun-2016,3135824-FYV47/APRIL2016/HC,625.00,PHILLIPS CHEMISTS LTD.
Children and Adult Services,Public Health,Third Party Payments,460802,Contract Payments,02-Jun-2016,3135900-A83022/APRIL2016HC,"1,825.00",THE MEDICAL GROUP.
Children and Adult Services,Public Health,Third Party Payments,460802,Contract Payments,02-Jun-2016,3135935-A83003/APRIL2016HC,950.00,WILLINGTON MEDICAL GROUP.
Children and Adult Services,Public Health,Third Party Payments,460803,Contract Payments,02-Jun-2016,3135877-ALCOHOLSCREENING,"1,836.67",STATION ROAD SURGERY.
Children and Adult Services,Head of Adults,Third Party Payments,472101,Purchase of Care,02-Jun-2016,3135553-CAS-06-2016-002,"48,396.64",ACCEPT CARE LTD.
Children and Adult Services,Childrens Services,Supplies and Services,364358,Grants to Voluntary Organisations,02-Jun-2016,3135683-CAS-06-2016-001,"3,770.00",REDACTED - PAYMENT TO INDIVIDUAL
Children and Adult Services,Childrens Services,Supplies and Services,364310,Grants to Voluntary Organisations,02-Jun-2016,3135756-CAS-06-2016-005,"3,738.00",REDACTED - PAYMENT TO INDIVIDUAL
Children and Adult Services,Head of Adults,Transfer Payments,515201,Social Services Clients,02-Jun-2016,3135761-CAS-05-2016-181,"2,773.34",REDACTED - PAYMENT TO INDIVIDUAL
Children and Adult Services,Childrens Services,Supplies and Services,364310,Grants to Voluntary Organisations,02-Jun-2016,3135881-CAS-05-2016-179,541.32,REDACTED - PAYMENT TO INDIVIDUAL
Children and Adult Services,Education,Transfer Payments,510026,School Children,02-Jun-2016,3135936-01KKLEEMAY16,"1,080.00",WINGATE CHILDRENS CENTRE CHILDCARE.
Children and Adult Services,Education,Transfer Payments,510026,School Children,02-Jun-2016,3135628-DCC034LUCAS,715.00,CLEVER CLOGS DAY NURSERIES LTD.
Children and Adult Services,Childrens Services,Third Party Payments,425040,Rendered by Voluntary Organisations,02-Jun-2016,3135794-0000024223,931.32,NORTH EAST AUTISM SOCIETY.
Children and Adult Services,Childrens Services,Third Party Payments,425040,Rendered by Voluntary Organisations,02-Jun-2016,3135581-146510627,"3,514.20",BARNARDO SERVICES LTD.
Children and Adult Services,Childrens Services,Third Party Payments,425040,Rendered by Voluntary Organisations,02-Jun-2016,3135581-146510628,"3,514.20",BARNARDO SERVICES LTD.
Children and Adult Services,Head of Adults,Third Party Payments,425040,Rendered by Voluntary Organisations,02-Jun-2016,3135581-146510630,"3,514.20",BARNARDO SERVICES LTD.
Children and Adult Services,Head of Adults,Third Party Payments,425040,Rendered by Voluntary Organisations,02-Jun-2016,3135581-146510732,"4,200.00",BARNARDO SERVICES LTD.
Children and Adult Services,Education,Transport,230008,Contract Hire,02-Jun-2016,3135660-DCT-14-21,"1,216.00",DUNCAN G CUMMINGS T/A DURHAM EXECUTIVE HIRE.
Children and Adult Services,Childrens Services,Third Party Payments,425044,Rendered by Voluntary Organisations,02-Jun-2016,3135782-NFA161081,"1,457.10",NATIONAL FOSTERING AGENCY LTD.
Children and Adult Services,Education,Premises,120021,Energy Costs,02-Jun-2016,3135636-11035437,605.90,CORONA ENERGY RETAIL 2 LTD.
Children and Adult Services,Education,Premises,120021,Energy Costs,02-Jun-2016,3135636-11035438,"2,743.32",CORONA ENERGY RETAIL 2 LTD.
Children and Adult Services,Education,Supplies and Services,338094,Services,02-Jun-2016,3135741-SI002987,"3,060.00",LEISUREWORKS.
Children and Adult Services,Education,Supplies and Services,384540,Miscellaneous Expenses,02-Jun-2016,3135791-A1017401,653.80,NEWSQUEST (YORKSHIRE & NORTH EAST) LTD.
Children and Adult Services,Childrens Services,Third Party Payments,425018,Rendered by Voluntary Organisations,02-Jun-2016,3135856-IN000384,"18,544.20",S/C 202741 CAMBIAN INTERACT CARE SERVICES LTD.
Children and Adult Services,Childrens Services,Third Party Payments,425018,Rendered by Voluntary Organisations,02-Jun-2016,3135856-IN000429,"16,470.92",S/C 202741 CAMBIAN INTERACT CARE SERVICES LTD.
Children and Adult Services,Childrens Services,Third Party Payments,425018,Rendered by Voluntary Organisations,02-Jun-2016,3135856-IN000430,"19,162.34",S/C 202741 CAMBIAN INTERACT CARE SERVICES LTD.
Dedicated Schools Grant,Dedicated Schools Grant,Supplies and Services,342223,Computers and Communications,02-Jun-2016,3135865-ISB11017,"5,839.20",SMARTBOX ASSISTIVE TECHNOLOGY LTD.
Dedicated Schools Grant,Dedicated Schools Grant,Third Party Payments,410037,Rendered by Other Local Authorities,02-Jun-2016,3135671-1001202,"32,615.41",EDUCATION VILLAGE ACADEMY TRUST.
Children and Adult Services,Education,Transport,230008,Contract Hire,02-Jun-2016,3135762-INV-104,"1,083.00",MICHAEL COBB (T/A HAIL TAXIS).
Children and Adult Services,Education,Supplies and Services,312009,Newspapers Books and Periodicals,02-Jun-2016,3135821-1566346,"1,326.69",PETERS LTD.
Children and Adult Services,Education,Transfer Payments,510026,School Children,02-Jun-2016,3135936-01MAY16,648.00,WINGATE CHILDRENS CENTRE CHILDCARE.
Children and Adult Services,Education,Transfer Payments,510026,School Children,02-Jun-2016,3135628-DCC036,"1,008.00",CLEVER CLOGS DAY NURSERIES LTD.
Children and Adult Services,Education,Transfer Payments,510026,School Children,02-Jun-2016,3135628-DCC037,504.00,CLEVER CLOGS DAY NURSERIES LTD.
Children and Adult Services,Childrens Services,Third Party Payments,425040,Rendered by Voluntary Organisations,02-Jun-2016,3135682-125701,730.00,FOSTER CARES LTD.
Children and Adult Services,Childrens Services,Third Party Payments,425040,Rendered by Voluntary Organisations,02-Jun-2016,3135682-126059,"2,190.00",FOSTER CARES LTD.
Children and Adult Services,Childrens Services,Third Party Payments,425040,Rendered by Voluntary Organisations,02-Jun-2016,3135682-126066,"2,280.00",FOSTER CARES LTD.
Children and Adult Services,Childrens Services,Third Party Payments,425040,Rendered by Voluntary Organisations,02-Jun-2016,3135887-181852,700.00,SWIIS FOSTER CARE LTD.
Children and Adult Services,Childrens Services,Third Party Payments,425040,Rendered by Voluntary Organisations,02-Jun-2016,3135887-181862,730.03,SWIIS FOSTER CARE LTD.
Children and Adult Services,Childrens Services,Third Party Payments,425040,Rendered by Voluntary Organisations,02-Jun-2016,3135887-182583,"1,042.90",SWIIS FOSTER CARE LTD.
Children and Adult Services,Childrens Services,Third Party Payments,425040,Rendered by Voluntary Organisations,02-Jun-2016,3135887-182586,730.03,SWIIS FOSTER CARE LTD.
Children and Adult Services,Childrens Services,Third Party Payments,425040,Rendered by Voluntary Organisations,02-Jun-2016,3135887-182595,"1,119.00",SWIIS FOSTER CARE LTD.
Children and Adult Services,Childrens Services,Supplies and Services,344033,Telephones,02-Jun-2016,3135919-202643,572.70,UNIFY BUSINESS SOLUTIONS LTD.
Dedicated Schools Grant,Dedicated Schools Grant,Supplies and Services,338035,Services,02-Jun-2016,3135570-78801,708.00,AQA EDUCATION.
Children and Adult Services,Head of Adults,Supplies and Services,338367,Services,02-Jun-2016,3135608-31885,"2,160.00",CARE ABILITY.
Children and Adult Services,Childrens Services,Third Party Payments,425040,Rendered by Voluntary Organisations,02-Jun-2016,3135621-14057,"3,100.00",CHILDRENS FAMILY TRUST.
Children and Adult Services,Childrens Services,Third Party Payments,425040,Rendered by Voluntary Organisations,02-Jun-2016,3135621-14058,"3,232.99",CHILDRENS FAMILY TRUST.
Children and Adult Services,Childrens Services,Third Party Payments,425040,Rendered by Voluntary Organisations,02-Jun-2016,3135621-14059,"3,024.41",CHILDRENS FAMILY TRUST.
Children and Adult Services,Childrens Services,Third Party Payments,425040,Rendered by Voluntary Organisations,02-Jun-2016,3135686-30216,"3,128.70",FUTURES FOR CHILDREN LTD.
Children and Adult Services,Childrens Services,Third Party Payments,425040,Rendered by Voluntary Organisations,02-Jun-2016,3135686-30374,"3,232.99",FUTURES FOR CHILDREN LTD.
Children and Adult Services,Childrens Services,Third Party Payments,440062,Other Third Party Payments,02-Jun-2016,3135828-13271,"1,032.06",PHYSIOTHERAPY FOR YOU.
Children and Adult Services,Childrens Services,Third Party Payments,425040,Rendered by Voluntary Organisations,02-Jun-2016,3135892-27812,834.29,TEAM FOSTERING.
Children and Adult Services,Childrens Services,Third Party Payments,425040,Rendered by Voluntary Organisations,02-Jun-2016,3135892-27818,800.00,TEAM FOSTERING.
Children and Adult Services,Childrens Services,Supplies and Services,338044,Services,02-Jun-2016,3135564-6116,560.00,ALPHA BIOLABORATORIES LTD.
Children and Adult Services,Education,Transport,230005,Contract Hire,02-Jun-2016,3135693-3197,945.00,GEM TRAVEL.
Children and Adult Services,Education,Third Party Payments,440999,Other Third Party Payments,02-Jun-2016,3135819-1430,"2,640.00",PENSHAW VIEW TRAINING.
Children and Adult Services,Public Health,Third Party Payments,460803,Contract Payments,02-Jun-2016,3135866-1510,"124,166.67",SOLUTIONS 4 HEALTH.
Dedicated Schools Grant,Dedicated Schools Grant,Third Party Payments,440080,Other Third Party Payments,02-Jun-2016,3135901-5828,"2,841.18",THE ROYAL NATIONAL COLLEGE FOR THE BLIND.
Children and Adult Services,Education,Third Party Payments,440999,Other Third Party Payments,02-Jun-2016,3135873-32,"2,815.50",STANLEY EVENTS LTD.
Children and Adult Services,Education,Transport,230008,Contract Hire,02-Jun-2016,3135914-82,"1,444.00",TRIDENT TAXIS.
Assistant Chief Executive,Partnerships & Community Engagement Div.,Supplies and Services,384086,Miscellaneous Expenses,02-Jun-2016,3135540-NB-CHES002,"2,000.00",1ST NEWFIELD SCOUT TROOP.
Assistant Chief Executive,Partnerships & Community Engagement Div.,Supplies and Services,384085,Miscellaneous Expenses,02-Jun-2016,3135705-ALVJ02-16,600.00,HEARTS OF OAK SOCIAL CLUB.
Assistant Chief Executive,Partnerships & Community Engagement Div.,Supplies and Services,384086,Miscellaneous Expenses,02-Jun-2016,3135895-NB-TEES005,"10,000.00",TEESDALE COMMUNITY BROADCASTING LTD (RADIO TEESDALE).
Neighbourhood Services,Culture & Sport,Supplies and Services,338099,Services,02-Jun-2016,3135747-FRANKLANDJUNE/JULY16,"1,500.00",LINDSAY HANNON.
Neighbourhood Services,Projects and Business services,Third Party Payments,430103,Rendered by Private Contractors,02-Jun-2016,3135896-NEI-EXP-05-2016-014,"11,517.93",TEESDALE CONSERVATION VOLUNTEERS.
Neighbourhood Services,Culture & Sport,Supplies and Services,338047,Services,02-Jun-2016,3135733-BIGDANCESHOWCASE,"2,798.45",KAYLEIGH GAGE T/A THE GARAGE URBAN STYLES.
Neighbourhood Services,Technical Services,Supplies and Services,304221,Equipment and Materials,02-Jun-2016,3135565-0000014682,"1,854.40",AMBEROL LTD.
Neighbourhood Services,Direct Services,Third Party Payments,430101,Rendered by Private Contractors,02-Jun-2016,3135709-5067746361,678.00,HI Q TYRESERVICES.
Neighbourhood Services,Direct Services,Supplies and Services,304221,Equipment and Materials,02-Jun-2016,3135876-R050014160,553.00,STANNAH LIFT SERVICE LTD.
Neighbourhood Services,Technical Services,Stock,926900,Stock in hand-Inventory system,02-Jun-2016,3135888-9034362951,638.75,TARMAC TRADING LTD.
Neighbourhood Services,Technical Services,Third Party Payments,430100,Rendered by Private Contractors,02-Jun-2016,3135689-108529927,"1,014.00",GATESHEAD COUNCIL.
Neighbourhood Services,Technical Services,Third Party Payments,430100,Rendered by Private Contractors,02-Jun-2016,3135689-108547317,"4,105.00",GATESHEAD COUNCIL.
Neighbourhood Services,Technical Services,Supplies and Services,304221,Equipment and Materials,02-Jun-2016,3135559-23077608,"2,519.28",AGGREGATE INDUSTRIES UK LTD.
Neighbourhood Services,Technical Services,Supplies and Services,304221,Equipment and Materials,02-Jun-2016,3135559-23087603,"1,251.49",AGGREGATE INDUSTRIES UK LTD.
Neighbourhood Services,Technical Services,Supplies and Services,304221,Equipment and Materials,02-Jun-2016,3135559-23094686,"1,251.49",AGGREGATE INDUSTRIES UK LTD.
Neighbourhood Services,Technical Services,Supplies and Services,304221,Equipment and Materials,02-Jun-2016,3135559-23100434,535.08,AGGREGATE INDUSTRIES UK LTD.
Neighbourhood Services,Technical Services,Supplies and Services,304221,Equipment and Materials,02-Jun-2016,3135559-23109481,"1,275.32",AGGREGATE INDUSTRIES UK LTD.
Neighbourhood Services,Technical Services,Supplies and Services,304221,Equipment and Materials,02-Jun-2016,3135559-23109487,"2,063.73",AGGREGATE INDUSTRIES UK LTD.
Neighbourhood Services,Technical Services,Supplies and Services,304040,Equipment and Materials,02-Jun-2016,3135612-MI84122A,"1,528.14",CAUSEWAY TECHNOLOGIES LTD.
Neighbourhood Services,Direct Services,Supplies and Services,304221,Equipment and Materials,02-Jun-2016,3135812-BR545370,524.25,PARK ELECTRICAL DISTRIBUTORS LTD.
Neighbourhood Services,Technical Services,Stock,926900,Stock in hand-Inventory system,02-Jun-2016,3135812-XL170815,"2,667.10",PARK ELECTRICAL DISTRIBUTORS LTD.
Neighbourhood Services,Culture & Sport,Supplies and Services,312013,Newspapers Books and Periodicals,02-Jun-2016,3135576-5036076,527.74,ASKEWS & HOLTS LIBRARY SERVICES LTD.
Neighbourhood Services,Culture & Sport,Supplies and Services,332029,Printing Stationery and Gen Off Exps,02-Jun-2016,3135915-2846262,"1,000.00",TRINITY MIRROR PUBLISHING LTD.
Neighbourhood Services,Culture & Sport,Supplies and Services,338047,Services,02-Jun-2016,3135927-1519265,949.17,WALT DISNEY CO LTD.
Neighbourhood Services,Projects and Business services,Construction Work,908105,Construction work,02-Jun-2016,3135561-155555,690.00,ALBANY CONTRACT FURNITURE.
Neighbourhood Services,Technical Services,Stock,926900,Stock in hand-Inventory system,02-Jun-2016,3135752-158714,"3,625.00",LUCY ZODION LTD.
Neighbourhood Services,Culture & Sport,Supplies and Services,312013,Newspapers Books and Periodicals,02-Jun-2016,3135790-280516,524.27,NEWSMARKET.
Neighbourhood Services,Technical Services,Supplies and Services,304221,Equipment and Materials,02-Jun-2016,3135882-081895,"1,431.16",STONEGRAVE AGGREGATES LTD.
Neighbourhood Services,Technical Services,Supplies and Services,304221,Equipment and Materials,02-Jun-2016,3135882-081896,551.28,STONEGRAVE AGGREGATES LTD.
Neighbourhood Services,Direct Services,Transport,210057,Repair and Maintenance of Vehicles,02-Jun-2016,3135943-103021,"2,614.48",ZOELLER WASTE SYSTEMS LTD.
Neighbourhood Services,Direct Services,Third Party Payments,430100,Rendered by Private Contractors,02-Jun-2016,3135566-15661,"3,925.00",AMBIC LTD.
Neighbourhood Services,Direct Services,Third Party Payments,430100,Rendered by Private Contractors,02-Jun-2016,3135582-01333,933.52,BBM LTD.
Neighbourhood Services,Technical Services,Supplies and Services,352001,Conference Expenses,02-Jun-2016,3135650-DBA84,540.00,DOUG O BAINTON.
Neighbourhood Services,Technical Services,Supplies and Services,352001,Conference Expenses,02-Jun-2016,3135691-GHU84,630.00,GAVIN HUTCHINSON.
Neighbourhood Services,Direct Services,Transport,210057,Repair and Maintenance of Vehicles,02-Jun-2016,3135755-29031,550.96,MAJOR & ASPINALL LTD.
Neighbourhood Services,Culture & Sport,Supplies and Services,338099,Services,02-Jun-2016,3135796-13505,"1,355.25",NORTH EAST RESCUE & MEDICAL SERVICES.
Neighbourhood Services,Culture & Sport,Supplies and Services,338047,Services,02-Jun-2016,3135808-51223,"1,012.05",OFF THE KERB PRODUCTIONS.
Neighbourhood Services,Culture & Sport,Supplies and Services,304221,Equipment and Materials,02-Jun-2016,3135928-19347,957.70,WARD TIMBER LTD.
Neighbourhood Services,Direct Services,Transport,210057,Repair and Maintenance of Vehicles,02-Jun-2016,3135938-17770,857.28,WOODALL NICHOLSON LTD T/A MELLOR COACHCRAFT LTD.
Neighbourhood Services,Direct Services,Transport,210057,Repair and Maintenance of Vehicles,02-Jun-2016,3135938-17771,578.00,WOODALL NICHOLSON LTD T/A MELLOR COACHCRAFT LTD.
Neighbourhood Services,Culture & Sport,Supplies and Services,384199,Miscellaneous Expenses,02-Jun-2016,3135850-229,"9,000.00",ROGERS COLERIDGE & WHITE LTD.
Regeneration & Economic Development,Economic Development and Housing,Supplies and Services,384700,Miscellaneous Expenses,02-Jun-2016,3135615-RED-05-2016-219,"1,846.00",CDS SECURITY LTD.
Regeneration & Economic Development,Economic Development and Housing,Cap Exp on Grants & Other Financial Assistance (REFCUS),918401,Capital grants,02-Jun-2016,3135667-RED-05-2016-201,708.99,EASIBATHE LTD.
Regeneration & Economic Development,Economic Development and Housing,Cap Exp on Grants & Other Financial Assistance (REFCUS),918401,Capital grants,02-Jun-2016,3135667-RED-05-2016-228,"3,387.08",EASIBATHE LTD.
Regeneration & Economic Development,Economic Development and Housing,Cap Exp on Grants & Other Financial Assistance (REFCUS),918401,Capital grants,02-Jun-2016,3135708-RED-05-2016-205,"3,925.00",HES GROUP UK LTD.
Regeneration & Economic Development,Economic Development and Housing,Cap Exp on Grants & Other Financial Assistance (REFCUS),918401,Capital grants,02-Jun-2016,3135708-RED-05-2016-207,"2,920.00",HES GROUP UK LTD.
Regeneration & Economic Development,Economic Development and Housing,Cap Exp on Grants & Other Financial Assistance (REFCUS),918401,Capital grants,02-Jun-2016,3135708-RED-05-2016-229,"2,975.00",HES GROUP UK LTD.
Regeneration & Economic Development,Economic Development and Housing,Cap Exp on Grants & Other Financial Assistance (REFCUS),918401,Capital grants,02-Jun-2016,3135734-RED-05-2016-206,"10,074.57",KEITH HARRISON.
Regeneration & Economic Development,Economic Development and Housing,Cap Exp on Grants & Other Financial Assistance (REFCUS),918401,Capital grants,02-Jun-2016,3135759-RED-05-2016-216,"14,522.00",MDS BUILDING & ROOFING CONTRACTORS.
Regeneration & Economic Development,Economic Development and Housing,Cap Exp on Grants & Other Financial Assistance (REFCUS),918401,Capital grants,02-Jun-2016,3135788-RED-05-2016-208,"4,772.50",NEW AGE PLUMBING & HEATING SERVICES.
Regeneration & Economic Development,Economic Development and Housing,Cap Exp on Grants & Other Financial Assistance (REFCUS),918401,Capital grants,02-Jun-2016,3135815-RED-05-2016-211,"1,750.00",PEART ACCESS RAMPS.
Regeneration & Economic Development,Economic Development and Housing,Cap Exp on Grants & Other Financial Assistance (REFCUS),918401,Capital grants,02-Jun-2016,3135815-RED-05-2016-231,"1,302.00",PEART ACCESS RAMPS.
Regeneration & Economic Development,Economic Development and Housing,Cap Exp on Grants & Other Financial Assistance (REFCUS),918401,Capital grants,02-Jun-2016,3135820-RED-05-2016-232,"2,474.06",PETER JORDAN.
Regeneration & Economic Development,Economic Development and Housing,Cap Exp on Grants & Other Financial Assistance (REFCUS),918401,Capital grants,02-Jun-2016,3135851-RED-05-2016-202,"2,790.00",ROYCE CARSON BUILDING SERVICES.
Regeneration & Economic Development,Econ Dev and Regen Financing,Creditors,952146,Creditor-Section 106 agreement,02-Jun-2016,3135897-RED-05-2016-223,"15,994.75",THE ACTIVITY DEN.
Regeneration & Economic Development,Economic Development and Housing,Cap Exp on Grants & Other Financial Assistance (REFCUS),918401,Capital grants,02-Jun-2016,3135908-RED-05-2016-203,"5,377.40",THYSSENKRUPP ENCASA A DIVISION OF THYSSENKRUPP ACCESS LTD.
Regeneration & Economic Development,Economic Development and Housing,Cap Exp on Grants & Other Financial Assistance (REFCUS),918401,Capital grants,02-Jun-2016,3135908-RED-05-2016-204,"1,145.00",THYSSENKRUPP ENCASA A DIVISION OF THYSSENKRUPP ACCESS LTD.
Regeneration & Economic Development,Economic Development and Housing,Cap Exp on Grants & Other Financial Assistance (REFCUS),918401,Capital grants,02-Jun-2016,3135908-RED-05-2016-209,"2,719.00",THYSSENKRUPP ENCASA A DIVISION OF THYSSENKRUPP ACCESS LTD.
Regeneration & Economic Development,Economic Development and Housing,Cap Exp on Grants & Other Financial Assistance (REFCUS),918401,Capital grants,02-Jun-2016,3135908-RED-05-2016-210,"3,395.00",THYSSENKRUPP ENCASA A DIVISION OF THYSSENKRUPP ACCESS LTD.
Regeneration & Economic Development,Economic Development and Housing,Cap Exp on Grants & Other Financial Assistance (REFCUS),918401,Capital grants,02-Jun-2016,3135908-RED-05-2016-212,921.01,THYSSENKRUPP ENCASA A DIVISION OF THYSSENKRUPP ACCESS LTD.
Regeneration & Economic Development,Economic Development and Housing,Cap Exp on Grants & Other Financial Assistance (REFCUS),918401,Capital grants,02-Jun-2016,3135908-RED-05-2016-218,"2,715.00",THYSSENKRUPP ENCASA A DIVISION OF THYSSENKRUPP ACCESS LTD.
Regeneration & Economic Development,Economic Development and Housing,Cap Exp on Grants & Other Financial Assistance (REFCUS),918401,Capital grants,02-Jun-2016,3135908-RED-05-2016-230,"3,541.00",THYSSENKRUPP ENCASA A DIVISION OF THYSSENKRUPP ACCESS LTD.
Regeneration & Economic Development,Economic Development and Housing,Cap Exp on Grants & Other Financial Assistance (REFCUS),918401,Capital grants,02-Jun-2016,3135908-RED-06-2016-004,"12,644.00",THYSSENKRUPP ENCASA A DIVISION OF THYSSENKRUPP ACCESS LTD.
Regeneration & Economic Development,Transport and Contracted Services,Supplies and Services,304245,Equipment and Materials,02-Jun-2016,3135917-31N/10279690,"1,400.00",TUNSTALL HEALTHCARE (UK) LTD.
Regeneration & Economic Development,Economic Development and Housing,Supplies and Services,324117,Provisions,02-Jun-2016,3135588-67443081,601.83,BIDVEST FOODSERVICE (FORMERLY 3663).
Regeneration & Economic Development,Economic Development and Housing,Premises,120009,Energy Costs,02-Jun-2016,3135804-NNO7NQ45,616.40,NPOWER.
Regeneration & Economic Development,Economic Development and Housing,Premises,120009,Energy Costs,02-Jun-2016,3135804-NNO7QSTR,502.61,NPOWER.
Regeneration & Economic Development,Economic Development and Housing,Premises,120009,Energy Costs,02-Jun-2016,3135804-NNO7TQSG,"1,189.21",NPOWER.
Regeneration & Economic Development,Economic Development and Housing,Premises,120009,Energy Costs,02-Jun-2016,3135804-NNV07046,"1,575.66",NPOWER.
Regeneration & Economic Development,Economic Development and Housing,Premises,120009,Energy Costs,02-Jun-2016,3135804-NNV07047,"1,271.03",NPOWER.
Regeneration & Economic Development,Economic Development and Housing,Premises,120009,Energy Costs,02-Jun-2016,3135804-NNV07048,981.68,NPOWER.
Regeneration & Economic Development,Economic Development and Housing,Premises,120009,Energy Costs,02-Jun-2016,3135804-NNV07049,910.52,NPOWER.
Regeneration & Economic Development,Economic Development and Housing,Premises,120009,Energy Costs,02-Jun-2016,3135804-NNV07050,965.65,NPOWER.
Regeneration & Economic Development,Economic Development and Housing,Premises,120009,Energy Costs,02-Jun-2016,3135804-NNV07051,"1,156.21",NPOWER.
Regeneration & Economic Development,Economic Development and Housing,Premises,120009,Energy Costs,02-Jun-2016,3135804-NNV07053,"1,598.18",NPOWER.
Regeneration & Economic Development,Economic Development and Housing,Premises,120009,Energy Costs,02-Jun-2016,3135804-NNV07054,"2,036.58",NPOWER.
Regeneration & Economic Development,Economic Development and Housing,Premises,120009,Energy Costs,02-Jun-2016,3135804-NNV07055,"2,409.25",NPOWER.
Regeneration & Economic Development,Economic Development and Housing,Premises,120009,Energy Costs,02-Jun-2016,3135804-NNV07056,"2,533.36",NPOWER.
Regeneration & Economic Development,Economic Development and Housing,Premises,120009,Energy Costs,02-Jun-2016,3135804-NNV07057,"2,267.32",NPOWER.
Regeneration & Economic Development,Economic Development and Housing,Premises,120009,Energy Costs,02-Jun-2016,3135804-NNV07058,"2,357.99",NPOWER.
Regeneration & Economic Development,Economic Development and Housing,Premises,120009,Energy Costs,02-Jun-2016,3135804-NNV07060,"1,950.71",NPOWER.
Regeneration & Economic Development,Economic Development and Housing,Premises,120009,Energy Costs,02-Jun-2016,3135804-NNV07061,"1,617.78",NPOWER.
Regeneration & Economic Development,Economic Development and Housing,Premises,120009,Energy Costs,02-Jun-2016,3135804-NNV07062,"1,151.22",NPOWER.
Regeneration & Economic Development,Economic Development and Housing,Premises,120009,Energy Costs,02-Jun-2016,3135804-NNV07063,"1,127.14",NPOWER.
Regeneration & Economic Development,Economic Development and Housing,Premises,120009,Energy Costs,02-Jun-2016,3135804-NNV07064,"1,191.86",NPOWER.
Regeneration & Economic Development,Economic Development and Housing,Premises,120009,Energy Costs,02-Jun-2016,3135804-NNV07065,"1,381.81",NPOWER.
Regeneration & Economic Development,Economic Development and Housing,Premises,120009,Energy Costs,02-Jun-2016,3135804-NNV07067,"1,816.52",NPOWER.
Regeneration & Economic Development,Economic Development and Housing,Premises,120009,Energy Costs,02-Jun-2016,3135804-NNV07068,"2,275.28",NPOWER.
Regeneration & Economic Development,Economic Development and Housing,Premises,120009,Energy Costs,02-Jun-2016,3135804-NNV07069,"2,489.88",NPOWER.
Regeneration & Economic Development,Economic Development and Housing,Premises,120009,Energy Costs,02-Jun-2016,3135804-NNV07070,"2,420.05",NPOWER.
Regeneration & Economic Development,Economic Development and Housing,Premises,120009,Energy Costs,02-Jun-2016,3135804-NNV07071,"2,258.77",NPOWER.
Regeneration & Economic Development,Economic Development and Housing,Premises,120009,Energy Costs,02-Jun-2016,3135804-NNV07072,"2,106.29",NPOWER.
Regeneration & Economic Development,Economic Development and Housing,Premises,120009,Energy Costs,02-Jun-2016,3135804-NNV07074,"1,844.98",NPOWER.
Regeneration & Economic Development,Economic Development and Housing,Premises,120009,Energy Costs,02-Jun-2016,3135804-NNV07075,"1,462.82",NPOWER.
Regeneration & Economic Development,Economic Development and Housing,Premises,120009,Energy Costs,02-Jun-2016,3135804-NNV07076,"1,198.09",NPOWER.
Regeneration & Economic Development,Economic Development and Housing,Premises,120009,Energy Costs,02-Jun-2016,3135804-NNV07077,"1,417.18",NPOWER.
Regeneration & Economic Development,Economic Development and Housing,Premises,120009,Energy Costs,02-Jun-2016,3135804-NNV07078,"1,343.87",NPOWER.
Regeneration & Economic Development,Economic Development and Housing,Premises,120009,Energy Costs,02-Jun-2016,3135804-NNV07079,"1,513.11",NPOWER.
Regeneration & Economic Development,Economic Development and Housing,Premises,120009,Energy Costs,02-Jun-2016,3135804-NNV07081,"1,903.33",NPOWER.
Regeneration & Economic Development,Economic Development and Housing,Premises,120009,Energy Costs,02-Jun-2016,3135804-NNV07082,"2,220.70",NPOWER.
Regeneration & Economic Development,Economic Development and Housing,Premises,120009,Energy Costs,02-Jun-2016,3135804-NNV07083,"2,951.18",NPOWER.
Regeneration & Economic Development,Economic Development and Housing,Premises,120009,Energy Costs,02-Jun-2016,3135804-NNV07084,"2,850.21",NPOWER.
Regeneration & Economic Development,Economic Development and Housing,Premises,120009,Energy Costs,02-Jun-2016,3135804-NNV07085,"2,152.35",NPOWER.
Regeneration & Economic Development,Economic Development and Housing,Premises,120009,Energy Costs,02-Jun-2016,3135804-NNV07086,"2,082.69",NPOWER.
Regeneration & Economic Development,Economic Development and Housing,Premises,120009,Energy Costs,02-Jun-2016,3135804-NNV07088,"1,431.35",NPOWER.
Regeneration & Economic Development,Economic Development and Housing,Premises,120009,Energy Costs,02-Jun-2016,3135804-NNV07089,"1,338.50",NPOWER.
Regeneration & Economic Development,Economic Development and Housing,Premises,120009,Energy Costs,02-Jun-2016,3135804-NNV07090,"1,173.57",NPOWER.
Regeneration & Economic Development,Economic Development and Housing,Premises,120009,Energy Costs,02-Jun-2016,3135804-NNV07091,"1,125.37",NPOWER.
Regeneration & Economic Development,Economic Development and Housing,Premises,120009,Energy Costs,02-Jun-2016,3135804-NNV07092,"1,111.38",NPOWER.
Regeneration & Economic Development,Economic Development and Housing,Premises,120009,Energy Costs,02-Jun-2016,3135804-NNV07093,"1,502.60",NPOWER.
Regeneration & Economic Development,Economic Development and Housing,Premises,120009,Energy Costs,02-Jun-2016,3135804-NNV07095,"1,795.54",NPOWER.
Regeneration & Economic Development,Economic Development and Housing,Premises,120009,Energy Costs,02-Jun-2016,3135804-NNV07098,"2,135.25",NPOWER.
Regeneration & Economic Development,Economic Development and Housing,Premises,120009,Energy Costs,02-Jun-2016,3135804-NNV07100,887.03,NPOWER.
Regeneration & Economic Development,Economic Development and Housing,Premises,120009,Energy Costs,02-Jun-2016,3135804-NNV07102,"1,042.10",NPOWER.
Regeneration & Economic Development,Economic Development and Housing,Premises,120009,Energy Costs,02-Jun-2016,3135804-NNV07104,834.33,NPOWER.
Regeneration & Economic Development,Economic Development and Housing,Premises,120009,Energy Costs,02-Jun-2016,3135804-NNV07106,"2,515.01",NPOWER.
Regeneration & Economic Development,Economic Development and Housing,Premises,120009,Energy Costs,02-Jun-2016,3135806-NNO7TRT4,871.44,NPOWER.
Regeneration & Economic Development,Economic Development and Housing,Premises,120009,Energy Costs,02-Jun-2016,3135806-NNO7TRTR,"4,462.58",NPOWER.
Regeneration & Economic Development,Economic Development and Housing,Premises,120009,Energy Costs,02-Jun-2016,3135806-NNO7TRTT,"1,627.15",NPOWER.
Regeneration & Economic Development,Economic Development and Housing,Premises,120009,Energy Costs,02-Jun-2016,3135806-NNO7TRTV,"1,533.52",NPOWER.
Regeneration & Economic Development,Economic Development and Housing,Premises,120009,Energy Costs,02-Jun-2016,3135806-NNO7TRTW,"8,385.66",NPOWER.
Regeneration & Economic Development,Economic Development and Housing,Premises,120009,Energy Costs,02-Jun-2016,3135806-NNO7TRTY,"6,045.10",NPOWER.
Regeneration & Economic Development,Economic Development and Housing,Premises,120009,Energy Costs,02-Jun-2016,3135806-NNO7TRTZ,"2,581.78",NPOWER.
Regeneration & Economic Development,Spatial Policy Planning Assets & Environment,Supplies and Services,384199,Miscellaneous Expenses,02-Jun-2016,3135738-0101291,950.00,LAMBERT SMITH HAMPTON.
Regeneration & Economic Development,Economic Development and Housing,Supplies and Services,384899,Miscellaneous Expenses,02-Jun-2016,3135664-294520,"2,000.00",DURHAM UNIVERSITY.
Regeneration & Economic Development,Economic Development and Housing,Supplies and Services,344033,Telephones,02-Jun-2016,3135684-129400,"1,091.85",FREEDOM COMMUNICATIONS (UK) LTD.
Regeneration & Economic Development,Economic Development and Housing,Supplies and Services,344033,Telephones,02-Jun-2016,3135684-129976,"1,098.53",FREEDOM COMMUNICATIONS (UK) LTD.
Regeneration & Economic Development,Economic Development and Housing,Supplies and Services,384871,Miscellaneous Expenses,02-Jun-2016,3135557-43856,750.00,ADVANCED INDUSTRIAL SOLUTIONS LTD.
Regeneration & Economic Development,Transport and Contracted Services,Construction Work,908105,Construction work,02-Jun-2016,3135602-02325,"1,965.86",BUS SHELTERS LTD.
Regeneration & Economic Development,Transport and Contracted Services,Construction Work,908105,Construction work,02-Jun-2016,3135602-02326,"1,965.86",BUS SHELTERS LTD.
Regeneration & Economic Development,Transport and Contracted Services,Construction Work,908105,Construction work,02-Jun-2016,3135602-23138,"2,542.78",BUS SHELTERS LTD.
Regeneration & Economic Development,Transport and Contracted Services,Construction Work,908105,Construction work,02-Jun-2016,3135602-23139,"2,542.78",BUS SHELTERS LTD.
Regeneration & Economic Development,Transport and Contracted Services,Construction Work,908105,Construction work,02-Jun-2016,3135602-23261,970.00,BUS SHELTERS LTD.
Regeneration & Economic Development,Economic Development and Housing,Third Party Payments,440999,Other Third Party Payments,02-Jun-2016,3135743-11036,"2,916.67",LIFE CHANNEL GROUP LTD.
Regeneration & Economic Development,Economic Development and Housing,Supplies and Services,384871,Miscellaneous Expenses,02-Jun-2016,3135795-2214,600.00,NORTH EAST DRIVER CPC TRAINING.
Regeneration & Economic Development,Economic Development and Housing,Construction Work,908113,Capital - Landscaping,02-Jun-2016,3135725-055,"1,585.28",JAYDEN MARRISON T/A 4NATURE.
Resources,I.C.T. Services,Supplies and Services,344033,Telephones,02-Jun-2016,3135579-11569324,"9,380.00",AZZURRI COMMUNICATIONS LTD.
Resources,I.C.T. Services,Supplies and Services,344033,Telephones,02-Jun-2016,3135579-11614522,"32,370.72",AZZURRI COMMUNICATIONS LTD.
Resources,I.C.T. Services,Supplies and Services,344111,Telephones,02-Jun-2016,3135598-VP90592270M13101,"3,344.47",BRITISH TELECOMMUNICATIONS PLC.
Resources,I.C.T. Services,Supplies and Services,338099,Services,02-Jun-2016,3135599-13,"13,956.00",BRITISH TELECOMMUNICATIONS PLC.
Resources,I.C.T. Services,Supplies and Services,384956,Miscellaneous Expenses,02-Jun-2016,3135603-445536,764.20,BYTES SOFTWARE SERVICES LTD.
Resources,Legal & Democratic Services,Supplies and Services,340001,Postages,02-Jun-2016,3135786-RES-05-2016-160,"2,000.00",NEOPOST CREDIFON.
Resources,Human Resources,Supplies and Services,342051,Computers and Communications,02-Jun-2016,3135801-91366385,"2,227.50",NORTHGATE PUBLIC SERVICES (UK) LTD.
Resources,I.C.T. Services,Supplies and Services,384199,Miscellaneous Expenses,02-Jun-2016,3135843-INV-24484,995.00,REDSTOR LTD.
Resources,Financial Services,Supplies and Services,342051,Computers and Communications,02-Jun-2016,3135858-RES-05-2016-159,"1,019.52",SAGE (UK) LTD.
Children and Adult Services,Commissioning inc Supporting People,Third Party Payments,473111,Purchase of Care,03-Jun-2016,3135987-BEARPARK,"3,072.00",BEARPARK COMMUNITY MAG.
Children and Adult Services,Childrens Services,Third Party Payments,425040,Rendered by Voluntary Organisations,03-Jun-2016,3135957-R31INV/00017429,"3,232.68",ACTION FOR CHILDREN.
Children and Adult Services,Head of Adults,Cash,936005,Cheque reconciliation extra care,03-Jun-2016,3136021-CAS-05-2016-168,500.00,CHESTER VIEW EXTRA CARE.
Children and Adult Services,Childrens Services,Supplies and Services,364353,Grants to Voluntary Organisations,03-Jun-2016,3136036-CAS-06-2016-006,"1,847.10",REDACTED - PAYMENT TO INDIVIDUAL
Dedicated Schools Grant,Dedicated Schools Grant,Central Support and Capital,689996,Unclassified,03-Jun-2016,3136067-CAS-06-2016-008,611.80,DENE HOUSE PRIMARY SCHOOL (ACADEMY).
Children and Adult Services,Head of Adults,Transfer Payments,515201,Social Services Clients,03-Jun-2016,3136191-CAS-05-2016-176,"4,008.11",REDACTED - PAYMENT TO INDIVIDUAL
Children and Adult Services,Childrens Services,Supplies and Services,364353,Grants to Voluntary Organisations,03-Jun-2016,3136252-CAS-06-2016-007,645.20,REDACTED - PAYMENT TO INDIVIDUAL
Children and Adult Services,Central Charges (CYPS),Employees,005001,Pay,03-Jun-2016,3136259-RES-06-2016-017,"4,000.00",REDACTED - PAYMENT TO INDIVIDUAL
Children and Adult Services,Education,Transport,230008,Contract Hire,03-Jun-2016,3136202-A098-27/5/16,"1,216.00",K & R TAXIS.
Children and Adult Services,Education,Transport,230009,Contract Hire,03-Jun-2016,3136395-7003-27/5/16,779.00,SWAN TAXIS.
Dedicated Schools Grant,Dedicated Schools Grant,Third Party Payments,425005,Rendered by Voluntary Organisations,03-Jun-2016,3136309-GD/SUM/2016,"9,034.13",PARKSIDE HOUSE SCHOOL.
Children and Adult Services,Education,Transport,230007,Contract Hire,03-Jun-2016,3136403-DCC/2015/93,532.00,TAYLOR`S TAXIS.
Dedicated Schools Grant,Dedicated Schools Grant,Transport,230010,Contract Hire,03-Jun-2016,3136227-88-27/5/16,"1,680.00",LORRAINES TAXIS.
Children and Adult Services,Education,Transport,230008,Contract Hire,03-Jun-2016,3136227-89-27/5/16,"1,592.01",LORRAINES TAXIS.
Children and Adult Services,Education,Transport,230007,Contract Hire,03-Jun-2016,3136242-09-27/5/16,570.00,MARTIN`S TAXIS.
Children and Adult Services,Childrens Services,Third Party Payments,425040,Rendered by Voluntary Organisations,03-Jun-2016,3136282-0000024220,"1,132.20",NORTH EAST AUTISM SOCIETY.
Children and Adult Services,Childrens Services,Third Party Payments,473101,Purchase of Care,03-Jun-2016,3136282-0000024634,629.00,NORTH EAST AUTISM SOCIETY.
Children and Adult Services,Childrens Services,Third Party Payments,473101,Purchase of Care,03-Jun-2016,3136282-0000024636,629.00,NORTH EAST AUTISM SOCIETY.
Children and Adult Services,Childrens Services,Third Party Payments,473101,Purchase of Care,03-Jun-2016,3136282-0000024640,629.00,NORTH EAST AUTISM SOCIETY.
Children and Adult Services,Head of Adults,Third Party Payments,473101,Purchase of Care,03-Jun-2016,3136282-0000024642,629.00,NORTH EAST AUTISM SOCIETY.
Children and Adult Services,Education,Supplies and Services,324117,Provisions,03-Jun-2016,3136405-9411074754,737.50,TCHIBO COFFEE INTERNATIONAL LTD.
Children and Adult Services,Head of Adults,Premises,125009,Rents,03-Jun-2016,3136409-4810007463,"9,885.17",TEES ESK & WEAR VALLEYS NHS FOUNDATION TRUST.
Children and Adult Services,Childrens Services,Third Party Payments,425040,Rendered by Voluntary Organisations,03-Jun-2016,3135985-146510382,"3,232.99",BARNARDO SERVICES LTD.
Children and Adult Services,Childrens Services,Third Party Payments,425040,Rendered by Voluntary Organisations,03-Jun-2016,3135985-146510629,"3,128.70",BARNARDO SERVICES LTD.
Children and Adult Services,Childrens Services,Third Party Payments,425040,Rendered by Voluntary Organisations,03-Jun-2016,3135985-146510896,"3,454.02",BARNARDO SERVICES LTD.
Children and Adult Services,Childrens Services,Third Party Payments,425040,Rendered by Voluntary Organisations,03-Jun-2016,3135985-146510897,"4,340.00",BARNARDO SERVICES LTD.
Children and Adult Services,Childrens Services,Third Party Payments,425040,Rendered by Voluntary Organisations,03-Jun-2016,3135985-146510898,"3,631.34",BARNARDO SERVICES LTD.
Children and Adult Services,Childrens Services,Third Party Payments,425040,Rendered by Voluntary Organisations,03-Jun-2016,3135985-146510900,"3,631.34",BARNARDO SERVICES LTD.
Children and Adult Services,Childrens Services,Third Party Payments,425040,Rendered by Voluntary Organisations,03-Jun-2016,3136265-NFA161080,"3,000.00",NATIONAL FOSTERING AGENCY LTD.
Children and Adult Services,Childrens Services,Third Party Payments,425040,Rendered by Voluntary Organisations,03-Jun-2016,3136265-NFA161082,"4,200.00",NATIONAL FOSTERING AGENCY LTD.
Children and Adult Services,Head of Adults,Supplies and Services,384504,Miscellaneous Expenses,03-Jun-2016,3135981-AHS01086,"3,678.74",AUCKLAND HOME SOLUTIONS CIC.
Children and Adult Services,Public Health,Supplies and Services,364999,Grants to Voluntary Organisations,03-Jun-2016,3136063-2016-20,"2,500.00",DEAF HILL WARD REGENERATION PARTNERSHIP.
Children and Adult Services,Public Health,Supplies and Services,364999,Grants to Voluntary Organisations,03-Jun-2016,3136063-2016-21,"2,500.00",DEAF HILL WARD REGENERATION PARTNERSHIP.
Children and Adult Services,Childrens Services,Supplies and Services,338076,Services,03-Jun-2016,3136178-0022016,"72,652.00",INVESTING IN CHILDREN CIC.
Children and Adult Services,Education,Transport,230008,Contract Hire,03-Jun-2016,3136380-AAK0664,"1,581.94",SPENNYMOOR TAXIS.
Children and Adult Services,Childrens Services,Third Party Payments,425040,Rendered by Voluntary Organisations,03-Jun-2016,3136384-1170117,"3,000.00",ST CUTHBERTS CARE.
Children and Adult Services,Childrens Services,Supplies and Services,384302,Miscellaneous Expenses,03-Jun-2016,3136001-JAN-00,500.00,BRANDON CARRSIDE YOUTH & COMMUNITY PROJECT.
Children and Adult Services,Childrens Services,Supplies and Services,384302,Miscellaneous Expenses,03-Jun-2016,3136001-MAY-16,500.00,BRANDON CARRSIDE YOUTH & COMMUNITY PROJECT.
Children and Adult Services,Childrens Services,Third Party Payments,425040,Rendered by Voluntary Organisations,03-Jun-2016,3136124-126413,730.00,FOSTER CARES LTD.
Children and Adult Services,Childrens Services,Third Party Payments,425040,Rendered by Voluntary Organisations,03-Jun-2016,3136124-126418,"1,180.00",FOSTER CARES LTD.
Children and Adult Services,Childrens Services,Third Party Payments,425040,Rendered by Voluntary Organisations,03-Jun-2016,3136124-126421,820.00,FOSTER CARES LTD.
Children and Adult Services,Childrens Services,Third Party Payments,425040,Rendered by Voluntary Organisations,03-Jun-2016,3136124-126422,730.00,FOSTER CARES LTD.
Children and Adult Services,Childrens Services,Third Party Payments,425040,Rendered by Voluntary Organisations,03-Jun-2016,3136124-126427,730.00,FOSTER CARES LTD.
Children and Adult Services,Childrens Services,Third Party Payments,425040,Rendered by Voluntary Organisations,03-Jun-2016,3136124-126431,730.00,FOSTER CARES LTD.
Children and Adult Services,Childrens Services,Third Party Payments,425040,Rendered by Voluntary Organisations,03-Jun-2016,3136124-126436,730.00,FOSTER CARES LTD.
Children and Adult Services,Childrens Services,Third Party Payments,425040,Rendered by Voluntary Organisations,03-Jun-2016,3136124-126437,730.00,FOSTER CARES LTD.
Children and Adult Services,Childrens Services,Third Party Payments,425040,Rendered by Voluntary Organisations,03-Jun-2016,3136124-126442,700.00,FOSTER CARES LTD.
Children and Adult Services,Childrens Services,Third Party Payments,425040,Rendered by Voluntary Organisations,03-Jun-2016,3136126-172459,"4,340.00",FOSTERING SOLUTIONS LTD.
Children and Adult Services,Childrens Services,Third Party Payments,425040,Rendered by Voluntary Organisations,03-Jun-2016,3136126-172702,"3,011.34",FOSTERING SOLUTIONS LTD.
Children and Adult Services,Childrens Services,Third Party Payments,425040,Rendered by Voluntary Organisations,03-Jun-2016,3136126-172703,"3,100.00",FOSTERING SOLUTIONS LTD.
Children and Adult Services,Childrens Services,Third Party Payments,425040,Rendered by Voluntary Organisations,03-Jun-2016,3136126-172750,"3,100.00",FOSTERING SOLUTIONS LTD.
Children and Adult Services,Childrens Services,Third Party Payments,425040,Rendered by Voluntary Organisations,03-Jun-2016,3136126-172782,"3,232.99",FOSTERING SOLUTIONS LTD.
Children and Adult Services,Childrens Services,Third Party Payments,425040,Rendered by Voluntary Organisations,03-Jun-2016,3136126-172783,"3,232.99",FOSTERING SOLUTIONS LTD.
Children and Adult Services,Head of Adults,Premises,125009,Rents,03-Jun-2016,3136213-426270,782.50,KNIGHT FRANK LLP.
Children and Adult Services,Education,Transport,230008,Contract Hire,03-Jun-2016,3136239-041603,980.00,MARK & JOHN CHISHOLM T/A (CHEVRON).
Children and Adult Services,Education,Transport,230008,Contract Hire,03-Jun-2016,3136239-051603,630.00,MARK & JOHN CHISHOLM T/A (CHEVRON).
Dedicated Schools Grant,Dedicated Schools Grant,Transport,230010,Contract Hire,03-Jun-2016,3136239-051604,"1,444.00",MARK & JOHN CHISHOLM T/A (CHEVRON).
Children and Adult Services,Education,Transport,230008,Contract Hire,03-Jun-2016,3136239-051605,"1,111.31",MARK & JOHN CHISHOLM T/A (CHEVRON).
Children and Adult Services,Education,Transport,230008,Contract Hire,03-Jun-2016,3136239-051606,855.00,MARK & JOHN CHISHOLM T/A (CHEVRON).
Dedicated Schools Grant,Dedicated Schools Grant,Transport,230010,Contract Hire,03-Jun-2016,3136239-051607,"1,444.00",MARK & JOHN CHISHOLM T/A (CHEVRON).
Dedicated Schools Grant,Dedicated Schools Grant,Transport,230010,Contract Hire,03-Jun-2016,3136239-051608,"1,520.00",MARK & JOHN CHISHOLM T/A (CHEVRON).
Dedicated Schools Grant,Dedicated Schools Grant,Transport,230010,Contract Hire,03-Jun-2016,3136239-051609,"1,520.00",MARK & JOHN CHISHOLM T/A (CHEVRON).
Dedicated Schools Grant,Dedicated Schools Grant,Transport,230010,Contract Hire,03-Jun-2016,3136380-DB0416,"1,020.00",SPENNYMOOR TAXIS.
Children and Adult Services,Childrens Services,Third Party Payments,425041,Rendered by Voluntary Organisations,03-Jun-2016,3136385-996027,"2,250.00",ST FRANCIS CHILDRENS SOCIETY.
Children and Adult Services,Childrens Services,Third Party Payments,425040,Rendered by Voluntary Organisations,03-Jun-2016,3136397-181854,730.03,SWIIS FOSTER CARE LTD.
Children and Adult Services,Childrens Services,Third Party Payments,425040,Rendered by Voluntary Organisations,03-Jun-2016,3136397-182201,730.03,SWIIS FOSTER CARE LTD.
Children and Adult Services,Childrens Services,Third Party Payments,425040,Rendered by Voluntary Organisations,03-Jun-2016,3136397-182997,730.03,SWIIS FOSTER CARE LTD.
Children and Adult Services,Childrens Services,Third Party Payments,425040,Rendered by Voluntary Organisations,03-Jun-2016,3136397-182998,700.00,SWIIS FOSTER CARE LTD.
Children and Adult Services,Childrens Services,Third Party Payments,425040,Rendered by Voluntary Organisations,03-Jun-2016,3136397-182999,819.98,SWIIS FOSTER CARE LTD.
Children and Adult Services,Childrens Services,Third Party Payments,425040,Rendered by Voluntary Organisations,03-Jun-2016,3136397-183000,730.03,SWIIS FOSTER CARE LTD.
Children and Adult Services,Childrens Services,Third Party Payments,425040,Rendered by Voluntary Organisations,03-Jun-2016,3136397-183001,730.03,SWIIS FOSTER CARE LTD.
Children and Adult Services,Childrens Services,Third Party Payments,425040,Rendered by Voluntary Organisations,03-Jun-2016,3136397-183002,759.99,SWIIS FOSTER CARE LTD.
Children and Adult Services,Childrens Services,Third Party Payments,425040,Rendered by Voluntary Organisations,03-Jun-2016,3136397-183003,700.00,SWIIS FOSTER CARE LTD.
Children and Adult Services,Childrens Services,Third Party Payments,425040,Rendered by Voluntary Organisations,03-Jun-2016,3136397-183004,980.00,SWIIS FOSTER CARE LTD.
Children and Adult Services,Childrens Services,Third Party Payments,425040,Rendered by Voluntary Organisations,03-Jun-2016,3136397-183005,700.00,SWIIS FOSTER CARE LTD.
Children and Adult Services,Childrens Services,Third Party Payments,425040,Rendered by Voluntary Organisations,03-Jun-2016,3136397-183006,819.98,SWIIS FOSTER CARE LTD.
Children and Adult Services,Childrens Services,Third Party Payments,425040,Rendered by Voluntary Organisations,03-Jun-2016,3136397-183007,730.03,SWIIS FOSTER CARE LTD.
Children and Adult Services,Childrens Services,Third Party Payments,425040,Rendered by Voluntary Organisations,03-Jun-2016,3136397-183008,730.03,SWIIS FOSTER CARE LTD.
Children and Adult Services,Childrens Services,Third Party Payments,425040,Rendered by Voluntary Organisations,03-Jun-2016,3136397-183009,980.00,SWIIS FOSTER CARE LTD.
Children and Adult Services,Education,Transport,230007,Contract Hire,03-Jun-2016,3135946-51601,"1,349.00",24/7 TAXI SERVICES LTD.
Children and Adult Services,Education,Transport,230008,Contract Hire,03-Jun-2016,3135946-51603,"1,470.00",24/7 TAXI SERVICES LTD.
Children and Adult Services,Education,Transport,230008,Contract Hire,03-Jun-2016,3135946-51605,"1,849.47",24/7 TAXI SERVICES LTD.
Children and Adult Services,Education,Transport,230008,Contract Hire,03-Jun-2016,3135946-51606,"1,242.03",24/7 TAXI SERVICES LTD.
Children and Adult Services,Education,Transport,230008,Contract Hire,03-Jun-2016,3135946-51607,859.37,24/7 TAXI SERVICES LTD.
Children and Adult Services,Education,Transport,230006,Contract Hire,03-Jun-2016,3135946-51608,646.00,24/7 TAXI SERVICES LTD.
Children and Adult Services,Education,Transport,230008,Contract Hire,03-Jun-2016,3135946-51609,"2,107.37",24/7 TAXI SERVICES LTD.
Children and Adult Services,Education,Transport,230008,Contract Hire,03-Jun-2016,3135946-51610,"1,805.00",24/7 TAXI SERVICES LTD.
Children and Adult Services,Education,Transport,230008,Contract Hire,03-Jun-2016,3135946-51611,"1,140.00",24/7 TAXI SERVICES LTD.
Children and Adult Services,Head of Adults,Supplies and Services,338366,Services,03-Jun-2016,3136011-31917,587.35,CARE ABILITY.
Children and Adult Services,Childrens Services,Third Party Payments,425040,Rendered by Voluntary Organisations,03-Jun-2016,3136125-15811,"3,128.40",FOSTERING OUTCOMES.
Children and Adult Services,Childrens Services,Third Party Payments,425040,Rendered by Voluntary Organisations,03-Jun-2016,3136131-30375,"3,232.99",FUTURES FOR CHILDREN LTD.
Children and Adult Services,Childrens Services,Premises,108135,Service Repairs and Maintenance,03-Jun-2016,3136189-12637,"1,890.00",JC MAINTENANCE SERVICES LTD.
Children and Adult Services,Education,Construction Work,908105,Construction work,03-Jun-2016,3136229-33842,500.00,LUCION ENVIRONMENTAL LLP LTD.
Children and Adult Services,Education,Construction Work,908105,Construction work,03-Jun-2016,3136229-33843,"2,940.00",LUCION ENVIRONMENTAL LLP LTD.
Children and Adult Services,Education,Transport,230008,Contract Hire,03-Jun-2016,3136258-AA346,"2,861.59",MR T GUNN.
Children and Adult Services,Childrens Services,Employees,080025,Agency Staff,03-Jun-2016,3136320-25896,"1,155.00",PK EDUCATION.
Children and Adult Services,Childrens Services,Employees,080025,Agency Staff,03-Jun-2016,3136320-25897,520.00,PK EDUCATION.
Children and Adult Services,Childrens Services,Third Party Payments,425040,Rendered by Voluntary Organisations,03-Jun-2016,3136408-27426,"3,128.57",TEAM FOSTERING.
Children and Adult Services,Childrens Services,Third Party Payments,425040,Rendered by Voluntary Organisations,03-Jun-2016,3136408-27716,937.14,TEAM FOSTERING.
Children and Adult Services,Education,Supplies and Services,304259,Equipment and Materials,03-Jun-2016,3136070-1364,"1,360.00",DIGITAL HEARING CARE SOLUTIONS LTD.
Children and Adult Services,Childrens Services,Third Party Payments,425040,Rendered by Voluntary Organisations,03-Jun-2016,3136123-4120,"3,232.68",FOSTER CARE SOLUTIONS LTD.
Children and Adult Services,Childrens Services,Third Party Payments,425040,Rendered by Voluntary Organisations,03-Jun-2016,3136123-4125,"3,232.68",FOSTER CARE SOLUTIONS LTD.
Children and Adult Services,Childrens Services,Third Party Payments,425040,Rendered by Voluntary Organisations,03-Jun-2016,3136123-4126,"3,232.68",FOSTER CARE SOLUTIONS LTD.
Children and Adult Services,Education,Transport,230007,Contract Hire,03-Jun-2016,3136192-2524,"1,700.82",JEFF ANDERSON COACHES LTD.
Children and Adult Services,Education,Transport,230007,Contract Hire,03-Jun-2016,3136205-2021,836.00,KEN HINDS.
Children and Adult Services,Education,Transport,230006,Contract Hire,03-Jun-2016,3136315-0451,"2,223.00",PETER`S PRIVATE HIRE/PETER BEST.
Children and Adult Services,Education,Transport,230006,Contract Hire,03-Jun-2016,3136315-0452,"2,137.50",PETER`S PRIVATE HIRE/PETER BEST.
Children and Adult Services,Education,Transport,230008,Contract Hire,03-Jun-2016,3136315-0453,"1,805.00",PETER`S PRIVATE HIRE/PETER BEST.
Children and Adult Services,Education,Transport,230008,Contract Hire,03-Jun-2016,3136315-0454,"1,292.00",PETER`S PRIVATE HIRE/PETER BEST.
Children and Adult Services,Education,Transport,230006,Contract Hire,03-Jun-2016,3136315-0455,570.00,PETER`S PRIVATE HIRE/PETER BEST.
Children and Adult Services,Education,Transport,230008,Contract Hire,03-Jun-2016,3136322-1170,855.00,PODA LTD.
Children and Adult Services,Education,Transport,230008,Contract Hire,03-Jun-2016,3136322-1171,"1,680.00",PODA LTD.
Children and Adult Services,Education,Transport,230008,Contract Hire,03-Jun-2016,3136322-1173,"1,330.00",PODA LTD.
Children and Adult Services,Education,Transport,230008,Contract Hire,03-Jun-2016,3136374-245A,"1,045.00",SJ MACKENZIE T/A SCOTTS TAXIS.
Children and Adult Services,Education,Transport,230008,Contract Hire,03-Jun-2016,3136374-246A,"1,235.00",SJ MACKENZIE T/A SCOTTS TAXIS.
Children and Adult Services,Education,Transport,230008,Contract Hire,03-Jun-2016,3136398-1192,"2,761.43",TAILORMADE TRAVEL.
Children and Adult Services,Education,Transport,230008,Contract Hire,03-Jun-2016,3136399-1331,"2,185.00",TALBOTS TAXIS.
Children and Adult Services,Childrens Services,Supplies and Services,384199,Miscellaneous Expenses,03-Jun-2016,3136410-1072,"17,890.10",TEESDALE COMMUNITY RESOURCES (TCR) LTD.
Children and Adult Services,Education,Transport,230007,Contract Hire,03-Jun-2016,3136190-932,874.00,JDS PRIVATE HIRE DURHAM.
Children and Adult Services,Education,Transport,230008,Contract Hire,03-Jun-2016,3136190-934,"2,280.00",JDS PRIVATE HIRE DURHAM.
Children and Adult Services,Education,Transport,230006,Contract Hire,03-Jun-2016,3136190-936,"2,470.00",JDS PRIVATE HIRE DURHAM.
Children and Adult Services,Education,Transport,230008,Contract Hire,03-Jun-2016,3136190-939,"1,219.00",JDS PRIVATE HIRE DURHAM.
Children and Adult Services,Education,Transport,230008,Contract Hire,03-Jun-2016,3136203-003,"1,235.00",KARZ.
Children and Adult Services,Education,Transport,230008,Contract Hire,03-Jun-2016,3136217-147,"1,876.87",LEE`S TAXIS.
Children and Adult Services,Education,Transport,230008,Contract Hire,03-Jun-2016,3136217-148,"1,988.31",LEE`S TAXIS.
Children and Adult Services,Education,Transport,230008,Contract Hire,03-Jun-2016,3136271-020,"1,080.00",NEIL PASSMOOR T/A NEIL`S TAXI.
Children and Adult Services,Education,Transport,230008,Contract Hire,03-Jun-2016,3135990-56,"1,717.79",BEELINE TAXIS.
Children and Adult Services,Education,Transport,230008,Contract Hire,03-Jun-2016,3136167-31,"1,235.00",IAN SHEPLEY T/A SHEPPA`S TAXIS.
Children and Adult Services,Education,Transport,230008,Contract Hire,03-Jun-2016,3136197-89,"2,319.52",JOHNS TAXIS (CHESTER LE STREET).
Children and Adult Services,Education,Transport,230008,Contract Hire,03-Jun-2016,3136233-96,"2,790.00",M BUTCHER T/A KIDDI CABS.
Children and Adult Services,Education,Transport,230006,Contract Hire,03-Jun-2016,3136248-G2,"1,520.00",MICHAEL A BODDY T/A MBS TAXIS.
Children and Adult Services,Education,Transport,230006,Contract Hire,03-Jun-2016,3136248-G3,"1,682.45",MICHAEL A BODDY T/A MBS TAXIS.
Children and Adult Services,Education,Transport,230008,Contract Hire,03-Jun-2016,3136271-20,"1,615.00",NEIL PASSMOOR T/A NEIL`S TAXI.
Children and Adult Services,Education,Transport,230008,Contract Hire,03-Jun-2016,3136352-88,"1,695.96",SAZ CABS.
Assistant Chief Executive,Partnerships & Community Engagement Div.,Supplies and Services,384086,Miscellaneous Expenses,03-Jun-2016,3136048-NB,"6,000.00",COUNTY DURHAM ACTIVITY UNIT.
Assistant Chief Executive,Partnerships & Community Engagement Div.,Supplies and Services,384085,Miscellaneous Expenses,03-Jun-2016,3136080-SHIA05-16,824.00,DURHAM POLICE & CRIME COMMISSIONER.
Assistant Chief Executive,Partnerships & Community Engagement Div.,Transfer Payments,525030,Other,03-Jun-2016,3136130-AB-EDRC008,"15,078.00",FUTURE LEISURE IN COXHOE (FLIC).
Assistant Chief Executive,Partnerships & Community Engagement Div.,Transfer Payments,525030,Other,03-Jun-2016,3136183-AB-3TWN005,"10,000.00",JACK DRUM ARTS LTD.
Assistant Chief Executive,Partnerships & Community Engagement Div.,Supplies and Services,384086,Miscellaneous Expenses,03-Jun-2016,3136347-NB,"7,931.41",SACRISTON COMMUNITY & SPORTS TRUST.
Assistant Chief Executive,Partnerships & Community Engagement Div.,Supplies and Services,384085,Miscellaneous Expenses,03-Jun-2016,3136364-STOD02-16,500.00,SHINCLIFFE JUNIORS FC.
Assistant Chief Executive,Partnerships & Community Engagement Div.,Supplies and Services,384086,Miscellaneous Expenses,03-Jun-2016,3136383-NB-GAMP012,"6,252.51",ST CLARES CHURCH (HALLS).
Assistant Chief Executive,Partnerships & Community Engagement Div.,Cap Exp on Grants & Other Financial Assistance (REFCUS),918004,Contributions to other bodies,03-Jun-2016,3136457-NB-3TWN015,"4,000.00",WILLINGTON METHODIST CHURCH.
Assistant Chief Executive,Partnerships & Community Engagement Div.,Transfer Payments,525030,Other,03-Jun-2016,3136459-AB-BASH008,"2,573.00",WOODHOUSE CLOSE CHURCH COMMUNITY CENTRE.
Neighbourhood Services,Neighbourhood central costs,Debtors,930017,Debtor-gas contract holding account,03-Jun-2016,3136045-NEI-EXP-05-2016-018,"199,234.08",CORONA ENERGY RETAIL 2 LTD.
Neighbourhood Services,Technical Services,Supplies and Services,372009,Subscriptions,03-Jun-2016,3136208-ORD-10994-P2Z8P3,"1,977.50",KEYSOFT SOLUTIONS LTD.
Neighbourhood Services,Direct Services,Premises,135005,Water Services,03-Jun-2016,3136290-210364310102047,"3,160.00",NORTHUMBRIAN WATER LTD.
Neighbourhood Services,Direct Services,Stock,926004,Stock,03-Jun-2016,3136269-INVDUR00312506,598.86,NE TRUCK SPARES LTD.
Neighbourhood Services,Culture & Sport,Premises,106082,Centrally Controlled Rep and Maint,03-Jun-2016,3135958-32559854-61,"4,814.99",ADT FIRE & SECURITY PLC.
Neighbourhood Services,Direct Services,Supplies and Services,304221,Equipment and Materials,03-Jun-2016,3136116-1605-006048,601.08,FLAME HEATING SPARES LTD.
Neighbourhood Services,Direct Services,Supplies and Services,304221,Equipment and Materials,03-Jun-2016,3136116-1605-006106,744.75,FLAME HEATING SPARES LTD.
Neighbourhood Services,Direct Services,Supplies and Services,304259,Equipment and Materials,03-Jun-2016,3136363-CD970341922,"1,314.24",SHERRIFF AMENITY.
Neighbourhood Services,Direct Services,Supplies and Services,384199,Miscellaneous Expenses,03-Jun-2016,3135963-0000014692,"8,485.14",AMBEROL LTD.
Neighbourhood Services,Direct Services,Third Party Payments,430100,Rendered by Private Contractors,03-Jun-2016,3136073-0000050688,698.84,DORMA UK LTD.
Neighbourhood Services,Technical Services,Stock,926900,Stock in hand-Inventory system,03-Jun-2016,3136088-059-185409,"1,666.00",EDMUNDSON ELECTRICAL LTD.
Neighbourhood Services,Direct Services,Supplies and Services,304221,Equipment and Materials,03-Jun-2016,3136201-CNI24737/D,"1,058.82",JT DOVE LTD.
Neighbourhood Services,Technical Services,Stock,926900,Stock in hand-Inventory system,03-Jun-2016,3136236-0000981467,638.10,MAGDEN LTD.
Neighbourhood Services,Technical Services,Stock,926900,Stock in hand-Inventory system,03-Jun-2016,3136389-R050014252,897.60,STANNAH LIFT SERVICE LTD.
Neighbourhood Services,Technical Services,Supplies and Services,304221,Equipment and Materials,03-Jun-2016,3136401-9034362952,"1,247.19",TARMAC TRADING LTD.
Neighbourhood Services,Direct Services,Supplies and Services,304221,Equipment and Materials,03-Jun-2016,3136465-041IN32337,"5,540.98",YESSS ELECTRICAL.
Neighbourhood Services,Culture & Sport,Supplies and Services,338099,Services,03-Jun-2016,3136002-650087619,"1,627.50",BRITISH RED CROSS SOCIETY.
Neighbourhood Services,Projects and Business services,Supplies and Services,352001,Conference Expenses,03-Jun-2016,3136008-INV-36489,798.00,CAPITA CONFERENCES.
Neighbourhood Services,Culture & Sport,Supplies and Services,324001,Provisions,03-Jun-2016,3136012-842664963,"1,335.81",CARLSBERG UK LTD.
Neighbourhood Services,Culture & Sport,Income,715998,Sales,03-Jun-2016,3136012-842666471,"2,470.85",CARLSBERG UK LTD.
Neighbourhood Services,Culture & Sport,Supplies and Services,304259,Equipment and Materials,03-Jun-2016,3136041-SI-173716,"2,265.00",CONTINENTAL SPORTS LTD.
Neighbourhood Services,Culture & Sport,Supplies and Services,304259,Equipment and Materials,03-Jun-2016,3136041-SI-173717,965.00,CONTINENTAL SPORTS LTD.
Neighbourhood Services,Technical Services,Supplies and Services,304357,Equipment and Materials,03-Jun-2016,3136132-DCC150516,"16,879.46",GAP GROUP LTD.
Neighbourhood Services,Technical Services,Supplies and Services,304357,Equipment and Materials,03-Jun-2016,3136132-DCC220516,"14,557.50",GAP GROUP LTD.
Neighbourhood Services,Direct Services,Supplies and Services,304221,Equipment and Materials,03-Jun-2016,3136151-SIN455666,843.41,HANDICARE ACCESSIBILITY LTD.
Neighbourhood Services,Technical Services,Stock,926900,Stock in hand-Inventory system,03-Jun-2016,3136201-STI432695,"1,993.29",JT DOVE LTD.
Neighbourhood Services,Technical Services,Stock,926900,Stock in hand-Inventory system,03-Jun-2016,3136201-STI432736,"1,003.26",JT DOVE LTD.
Neighbourhood Services,Direct Services,Supplies and Services,304999,Equipment and Materials,03-Jun-2016,3136343-282718412,"1,207.25",RS COMPONENTS LTD.
Neighbourhood Services,Culture & Sport,Supplies and Services,338047,Services,03-Jun-2016,3136349-SC2016003,500.00,SAM CARTER.
Neighbourhood Services,Technical Services,Supplies and Services,304221,Equipment and Materials,03-Jun-2016,3136445-INV036961,"2,984.00",URBIS SCHREDER LTD.
Neighbourhood Services,Technical Services,Supplies and Services,304221,Equipment and Materials,03-Jun-2016,3135961-23103525,"1,272.81",AGGREGATE INDUSTRIES UK LTD.
Neighbourhood Services,Technical Services,Supplies and Services,304221,Equipment and Materials,03-Jun-2016,3135961-23116337,"1,243.97",AGGREGATE INDUSTRIES UK LTD.
Neighbourhood Services,Technical Services,Supplies and Services,304221,Equipment and Materials,03-Jun-2016,3135961-23116339,850.93,AGGREGATE INDUSTRIES UK LTD.
Neighbourhood Services,Technical Services,Supplies and Services,304221,Equipment and Materials,03-Jun-2016,3135961-23116341,"1,964.82",AGGREGATE INDUSTRIES UK LTD.
Neighbourhood Services,Technical Services,Supplies and Services,304221,Equipment and Materials,03-Jun-2016,3135961-23116342,544.85,AGGREGATE INDUSTRIES UK LTD.
Neighbourhood Services,Direct Services,Supplies and Services,308011,Furniture,03-Jun-2016,3136207-I0671178,579.98,KEY INDUSTRIAL EQUIPMENT LTD.
Neighbourhood Services,Direct Services,Supplies and Services,304083,Equipment and Materials,03-Jun-2016,3136279-12775896,"1,317.74",NISBETS PLC.
Neighbourhood Services,Culture & Sport,Supplies and Services,338099,Services,03-Jun-2016,3136362-INV00006,"2,025.00",SHAUN STEPHENSON.
Neighbourhood Services,Technical Services,Third Party Payments,430100,Rendered by Private Contractors,03-Jun-2016,3136060-2896716,"4,830.13",DARLINGTON BOROUGH COUNCIL.
Neighbourhood Services,Culture & Sport,Supplies and Services,338099,Services,03-Jun-2016,3136262-0012772,773.00,MTELECOM LTD.
Neighbourhood Services,Direct Services,Third Party Payments,430100,Rendered by Private Contractors,03-Jun-2016,3136283-1381212,"5,086.39",NORTH EAST TRUCK & VAN LTD.
Neighbourhood Services,Direct Services,Stock,926004,Stock,03-Jun-2016,3136013-208938,732.56,CARRS BILLINGTON AGRICULTURE.
Neighbourhood Services,Direct Services,Third Party Payments,430100,Rendered by Private Contractors,03-Jun-2016,3136069-281102,599.00,DENNIS EAGLE LTD.
Neighbourhood Services,Technical Services,Stock,926900,Stock in hand-Inventory system,03-Jun-2016,3136165-098517,"4,472.00",HYDRAM ENGINEERING LTD.
Neighbourhood Services,Technical Services,Third Party Payments,460351,Contract Payments,03-Jun-2016,3136284-034332,760.56,NORTHERN DISPOSAL SERVICES LTD.
Neighbourhood Services,Culture & Sport,Supplies and Services,328041,Clothing Uniforms and Laundry,03-Jun-2016,3136396-462623,"1,017.71",SWIFT INDUSTRIAL SUPPLIES LTD.
Neighbourhood Services,Direct Services,Stock,926004,Stock,03-Jun-2016,3136468-102690,992.98,ZOELLER WASTE SYSTEMS LTD.
Neighbourhood Services,Direct Services,Stock,926004,Stock,03-Jun-2016,3136468-102972,536.90,ZOELLER WASTE SYSTEMS LTD.
Neighbourhood Services,Culture & Sport,Supplies and Services,338047,Services,03-Jun-2016,3135994-12727,"9,759.21",BIRMINGHAM ROYAL BALLET.
Neighbourhood Services,Technical Services,Premises,108099,Service Repairs and Maintenance,03-Jun-2016,3136189-12638,"18,897.85",JC MAINTENANCE SERVICES LTD.
Neighbourhood Services,Culture & Sport,Supplies and Services,338099,Services,03-Jun-2016,3136193-S5598,"9,987.00",JEFF DOBSON MARQUEE HIRE.
Neighbourhood Services,Direct Services,Stock,926004,Stock,03-Jun-2016,3136263-53245,507.52,MTS BOBCAT.
Neighbourhood Services,Culture & Sport,Supplies and Services,338099,Services,03-Jun-2016,3136411-24600,"1,160.00",TEESDALE EVENT & SITE SERVICES LTD.
Neighbourhood Services,Direct Services,Supplies and Services,304221,Equipment and Materials,03-Jun-2016,3136451-80074,"2,695.14",VISION TECHNIQUES (UK) LTD.
Neighbourhood Services,Direct Services,Supplies and Services,304221,Equipment and Materials,03-Jun-2016,3136451-80075,"2,695.14",VISION TECHNIQUES (UK) LTD.
Neighbourhood Services,Direct Services,Supplies and Services,304221,Equipment and Materials,03-Jun-2016,3136451-80076,"2,695.14",VISION TECHNIQUES (UK) LTD.
Neighbourhood Services,Direct Services,Supplies and Services,304221,Equipment and Materials,03-Jun-2016,3136451-80077,"2,695.14",VISION TECHNIQUES (UK) LTD.
Neighbourhood Services,Direct Services,Supplies and Services,304221,Equipment and Materials,03-Jun-2016,3136451-80078,"2,695.14",VISION TECHNIQUES (UK) LTD.
Neighbourhood Services,Direct Services,Third Party Payments,430100,Rendered by Private Contractors,03-Jun-2016,3136027-4585,"1,744.00",CITY FABRICATIONS LTD.
Neighbourhood Services,Direct Services,Third Party Payments,430100,Rendered by Private Contractors,03-Jun-2016,3136027-4597,"2,761.60",CITY FABRICATIONS LTD.
Neighbourhood Services,Culture & Sport,Supplies and Services,338099,Services,03-Jun-2016,3136093-1206,750.00,ELECTRIC.AL.
Neighbourhood Services,Culture & Sport,Supplies and Services,384956,Miscellaneous Expenses,03-Jun-2016,3136120-0383,"3,500.00",FOOTBALL FOUNDATION TRADING LTD.
Neighbourhood Services,Technical Services,Employees,040149,Recruitment Instruction and Training,03-Jun-2016,3136163-2382,600.00,HSF TRAINING LTD.
Neighbourhood Services,Direct Services,Third Party Payments,430100,Rendered by Private Contractors,03-Jun-2016,3136185-3301,962.87,JAMES INGLEFORD SCAFFOLDING LTD.
Neighbourhood Services,Technical Services,Supplies and Services,338066,Services,03-Jun-2016,3136272-1296,"23,486.49",NEPRO LTD.
Neighbourhood Services,Direct Services,Supplies and Services,304221,Equipment and Materials,03-Jun-2016,3136310-0863,954.00,PAUL TIERNEY.
Neighbourhood Services,Technical Services,Stock,926900,Stock in hand-Inventory system,03-Jun-2016,3136321-8688,500.00,PLYTECH UK LTD.
Neighbourhood Services,Culture & Sport,Supplies and Services,338099,Services,03-Jun-2016,3136422-3141,"1,772.50",THE WICKED COMPANY (UK) LTD.
Neighbourhood Services,Direct Services,Third Party Payments,430100,Rendered by Private Contractors,03-Jun-2016,3136019-179,"1,293.89",CEILINGS DIRECT LTD.
Neighbourhood Services,Culture & Sport,Supplies and Services,338047,Services,03-Jun-2016,3136049-436,923.17,COWBOYS & IRANIANS LTD T/A PATRICK MONAHAN.
Neighbourhood Services,Culture & Sport,Supplies and Services,384199,Miscellaneous Expenses,03-Jun-2016,3136249-698,"12,000.00",MICK STEPHENSON (LIGHT ARTIST).
Neighbourhood Services,Direct Services,Third Party Payments,430100,Rendered by Private Contractors,03-Jun-2016,3136306-884,"2,500.00",PARAMOUNT CEILINGS & PARTITIONS.
Neighbourhood Services,Direct Services,Third Party Payments,430100,Rendered by Private Contractors,03-Jun-2016,3136306-887,733.00,PARAMOUNT CEILINGS & PARTITIONS.
Regeneration & Economic Development,Economic Development and Housing,Cap Exp on Grants & Other Financial Assistance (REFCUS),918401,Capital grants,03-Jun-2016,3136342-RED-05-2016-217,"10,759.60",ROYCE CARSON BUILDING SERVICES.
Regeneration & Economic Development,Transport and Contracted Services,Supplies and Services,304245,Equipment and Materials,03-Jun-2016,3136437-3IN/10279509,"17,185.50",TUNSTALL HEALTHCARE (UK) LTD.
Regeneration & Economic Development,Transport and Contracted Services,Supplies and Services,340001,Postages,03-Jun-2016,3136341-1109190774,"2,441.52",ROYAL MAIL GROUP PLC.
Regeneration & Economic Development,Transport and Contracted Services,Third Party Payments,430108,Rendered by Private Contractors,03-Jun-2016,3136324-139585,"1,800.00",PREMIER TRAFFIC MANAGEMENT LTD.
Regeneration & Economic Development,Spatial Policy Planning Assets & Environment,Construction Work,908105,Construction work,03-Jun-2016,3136331-67350,"2,800.00",REDHILL ANALYSTS LTD.
Resources,I.C.T. Services,Supplies and Services,304639,Equipment and Materials,03-Jun-2016,3136009-6051007610,"1,000.00",CAPITA IT SERVICES (BSF) LTD.
Resources,I.C.T. Services,Supplies and Services,342033,Computers and Communications,03-Jun-2016,3136065-7402288428,832.00,DELL COMPUTER CORPORATION LTD.
Resources,I.C.T. Services,Supplies and Services,304303,Equipment and Materials,03-Jun-2016,3136173-2885964,680.00,INSIGHT DIRECT (UK) LTD.
Resources,I.C.T. Services,Supplies and Services,384199,Miscellaneous Expenses,03-Jun-2016,3136332-INV-24497,"1,176.00",REDSTOR LTD.
Resources,I.C.T. Services,Supplies and Services,384199,Miscellaneous Expenses,03-Jun-2016,3136332-INV-24498,995.00,REDSTOR LTD.
Resources,I.C.T. Services,Supplies and Services,384199,Miscellaneous Expenses,03-Jun-2016,3136332-INV-24500,"1,680.00",REDSTOR LTD.
Resources,I.C.T. Services,Supplies and Services,384199,Miscellaneous Expenses,03-Jun-2016,3136332-INV-24501,"1,680.00",REDSTOR LTD.
Resources,I.C.T. Services,Supplies and Services,384199,Miscellaneous Expenses,03-Jun-2016,3136332-INV-24502,"1,260.00",REDSTOR LTD.
Resources,Legal & Democratic Services,Premises,125009,Rents,03-Jun-2016,3136336-8106,551.81,RIVERGREEN DEVELOPMENTS PLC.
Resources,I.C.T. Services,Supplies and Services,304303,Equipment and Materials,03-Jun-2016,3136430-117521,"3,772.26",TP ELECTRICAL SUPPLIES & FIXINGS LTD.
Children and Adult Services,Childrens Services,Supplies and Services,384302,Miscellaneous Expenses,06-Jun-2016,3136585-ACTIVITYCOSTS12/5/16,500.00,MID DURHAM PROJECTS CLUB.
Children and Adult Services,Head of Adults,Supplies and Services,338045,Services,06-Jun-2016,3136469-194401-13/5/16,"1,758.00",39 ESSEX CHAMBERS.
Dedicated Schools Grant,Dedicated Schools Grant,Third Party Payments,440080,Other Third Party Payments,06-Jun-2016,3136509-SLINV/00000894,"2,558.06",DARLINGTON COLLEGE.
Children and Adult Services,Planning & Service Strategy,Supplies and Services,338089,Services,06-Jun-2016,3136583-SEMINARS3/6/16,"1,250.00",REDACTED - PAYMENT TO INDIVIDUAL
Children and Adult Services,Childrens Services,Third Party Payments,425020,Rendered by Voluntary Organisations,06-Jun-2016,3136595-0000024221,996.12,NORTH EAST AUTISM SOCIETY.
Children and Adult Services,Education,Transfer Payments,510026,School Children,06-Jun-2016,3136681-74-13/5/16,"1,080.00",WEARDALE AM/PM SCAMPS LTD.
Children and Adult Services,Childrens Services,Supplies and Services,384302,Miscellaneous Expenses,06-Jun-2016,3136585-12052016A,"1,000.00",MID DURHAM PROJECTS CLUB.
Children and Adult Services,Childrens Services,Employees,040001,Recruitment Instruction and Training,06-Jun-2016,3136592-13981607,515.35,NEWSQUEST (YORKSHIRE & NORTH EAST) LTD.
Children and Adult Services,Childrens Services,Supplies and Services,384302,Miscellaneous Expenses,06-Jun-2016,3136494-JUL-13A,"1,000.00",BRANDON CARRSIDE YOUTH & COMMUNITY PROJECT.
Children and Adult Services,Commissioning inc Supporting People,Third Party Payments,479111,Purchase of Care,06-Jun-2016,3136649-CRM7433,"12,175.00",STROKE ASSOCIATION.
Children and Adult Services,Central/Other,Debtors,930133,Debtor IC+ Out of Hours - Home Care,06-Jun-2016,3136547-D0025,"8,333.33",HOMECARE SUPPORT LTD T/A THE HUMAN SUPPORT GROUP.
Children and Adult Services,Education,Construction Work,908105,Construction work,06-Jun-2016,3136634-10495,"1,760.50",SCHOOLSCAPES LTD.
Dedicated Schools Grant,Dedicated Schools Grant,Third Party Payments,410037,Rendered by Other Local Authorities,06-Jun-2016,3136495-1631,"1,235.00",BRECKENBROUGH SCHOOL.
Assistant Chief Executive,Partnerships & Community Engagement Div.,Cap Exp on Grants & Other Financial Assistance (REFCUS),918004,Contributions to other bodies,06-Jun-2016,3136529-NB-TEES003,"2,000.00",ETHERLEY METHODIST CHURCH.
Assistant Chief Executive,Partnerships & Community Engagement Div.,Transfer Payments,525030,Other,06-Jun-2016,3136652-AB-MDUR012,"10,000.00",SUPPORTIVE SRC LTD.
Assistant Chief Executive,Partnerships & Community Engagement Div.,Transfer Payments,525030,Other,06-Jun-2016,3136680-AB-WEAR002SGF177,793.80,WEARDALE AGRICULTURAL SOCIETY.
Assistant Chief Executive,Partnerships & Community Engagement Div.,Cap Exp on Grants & Other Financial Assistance (REFCUS),918004,Contributions to other bodies,06-Jun-2016,3136682-VOUCHERWRAIN24,"13,472.00",WEST RAINTON PRIMARY SCHOOL PTA.
Neighbourhood Services,Technical Services,Acquisition Of Land And Buildings,905009,Acquisition of land and buildings,06-Jun-2016,3136499-NEI-EXP-06-2016-003,"17,286.70",CHARLES HARLE & SONS.
Neighbourhood Services,Culture & Sport,Supplies and Services,304999,Equipment and Materials,06-Jun-2016,3136573-KM006-MAR16,"1,975.00",LIZZIE EVERARD.
Neighbourhood Services,Technical Services,Stock,926900,Stock in hand-Inventory system,06-Jun-2016,3136627-RSIN0178889,636.00,RIGBY TAYLOR LTD.
Neighbourhood Services,Technical Services,Supplies and Services,304047,Equipment and Materials,06-Jun-2016,3136599-DI20238895,"5,279.13",NORTHERN POWERGRID (NORTHEAST) LTD.
Neighbourhood Services,Technical Services,Supplies and Services,304221,Equipment and Materials,06-Jun-2016,3136655-9034385597,606.27,TARMAC TRADING LTD.
Neighbourhood Services,Technical Services,Supplies and Services,304221,Equipment and Materials,06-Jun-2016,3136655-9034392291,"2,648.52",TARMAC TRADING LTD.
Neighbourhood Services,Technical Services,Supplies and Services,304221,Equipment and Materials,06-Jun-2016,3136656-9034376332,"1,433.25",TARMAC TRADING LTD.
Neighbourhood Services,Technical Services,Stock,926900,Stock in hand-Inventory system,06-Jun-2016,3136662-N/IN172537,812.47,THOMAS OWEN & SONS (NEWCASTLE) LTD.
Neighbourhood Services,Culture & Sport,Premises,145023,Cleaning and Domestic Supplies,06-Jun-2016,3136540-06/602200,"1,023.43",GREENHAM TRADING LTD.
Neighbourhood Services,Technical Services,Stock,926900,Stock in hand-Inventory system,06-Jun-2016,3136562-STI434298,"1,642.63",JT DOVE LTD.
Neighbourhood Services,Technical Services,Stock,926900,Stock in hand-Inventory system,06-Jun-2016,3136562-STI435234,"1,012.46",JT DOVE LTD.
Neighbourhood Services,Technical Services,Stock,926900,Stock in hand-Inventory system,06-Jun-2016,3136562-STI435274,504.32,JT DOVE LTD.
Neighbourhood Services,Technical Services,Stock,926900,Stock in hand-Inventory system,06-Jun-2016,3136562-STI436446,668.88,JT DOVE LTD.
Neighbourhood Services,Direct Services,Third Party Payments,430100,Rendered by Private Contractors,06-Jun-2016,3136613-INV217412,"2,200.00",POINTER FIRE LTD.
Neighbourhood Services,Direct Services,Supplies and Services,304221,Equipment and Materials,06-Jun-2016,3136613-INV217416,"4,649.66",POINTER FIRE LTD.
Neighbourhood Services,Technical Services,Construction Work,908105,Construction work,06-Jun-2016,3136471-28262837,"2,436.24",AECOM LTD.
Neighbourhood Services,Technical Services,Supplies and Services,304221,Equipment and Materials,06-Jun-2016,3136472-23123154,"1,250.24",AGGREGATE INDUSTRIES UK LTD.
Neighbourhood Services,Technical Services,Supplies and Services,304221,Equipment and Materials,06-Jun-2016,3136472-23123157,"1,621.13",AGGREGATE INDUSTRIES UK LTD.
Neighbourhood Services,Technical Services,Supplies and Services,304221,Equipment and Materials,06-Jun-2016,3136472-23130045,"1,251.49",AGGREGATE INDUSTRIES UK LTD.
Neighbourhood Services,Technical Services,Supplies and Services,304221,Equipment and Materials,06-Jun-2016,3136472-23130047,"2,080.70",AGGREGATE INDUSTRIES UK LTD.
Neighbourhood Services,Direct Services,Supplies and Services,304259,Equipment and Materials,06-Jun-2016,3136485-96282169,512.82,BALL COLEGRAVE LTD.
Neighbourhood Services,Culture & Sport,Supplies and Services,332029,Printing Stationery and Gen Off Exps,06-Jun-2016,3136592-14830289,825.00,NEWSQUEST (YORKSHIRE & NORTH EAST) LTD.
Neighbourhood Services,Technical Services,Other Expenses,914002,Capital - Advertisments,06-Jun-2016,3136592-15390901,754.30,NEWSQUEST (YORKSHIRE & NORTH EAST) LTD.
Neighbourhood Services,Technical Services,Stock,926900,Stock in hand-Inventory system,06-Jun-2016,3136606-XL168380,696.00,PARK ELECTRICAL DISTRIBUTORS LTD.
Neighbourhood Services,Technical Services,Stock,926900,Stock in hand-Inventory system,06-Jun-2016,3136606-XL171093,"1,649.00",PARK ELECTRICAL DISTRIBUTORS LTD.
Neighbourhood Services,Technical Services,Stock,926900,Stock in hand-Inventory system,06-Jun-2016,3136685-32741072,625.65,WOLSELEY UK LTD.
Neighbourhood Services,Technical Services,Stock,926900,Stock in hand-Inventory system,06-Jun-2016,3136685-32818037,876.79,WOLSELEY UK LTD.
Neighbourhood Services,Direct Services,Supplies and Services,304221,Equipment and Materials,06-Jun-2016,3136685-32908995,"1,202.84",WOLSELEY UK LTD.
Neighbourhood Services,Direct Services,Supplies and Services,304221,Equipment and Materials,06-Jun-2016,3136685-32909000,"1,979.63",WOLSELEY UK LTD.
Neighbourhood Services,Culture & Sport,Supplies and Services,312013,Newspapers Books and Periodicals,06-Jun-2016,3136481-5036424,535.88,ASKEWS & HOLTS LIBRARY SERVICES LTD.
Neighbourhood Services,Direct Services,Supplies and Services,304221,Equipment and Materials,06-Jun-2016,3136600-1971326,894.00,NORTHERN TOOLS & ACCESSORIES.
Neighbourhood Services,Direct Services,Supplies and Services,304259,Equipment and Materials,06-Jun-2016,3136600-1972690,622.00,NORTHERN TOOLS & ACCESSORIES.
Neighbourhood Services,Direct Services,Third Party Payments,430100,Rendered by Private Contractors,06-Jun-2016,3136605-PE70530,707.50,PARAMOUNT ELECTRONICS LTD.
Neighbourhood Services,Technical Services,Supplies and Services,304221,Equipment and Materials,06-Jun-2016,3136635-1795767,576.00,SHAND HIGSON & CO LTD.
Neighbourhood Services,Direct Services,Supplies and Services,304221,Equipment and Materials,06-Jun-2016,3136654-1971000,637.89,T CROSSLING & CO LTD.
Neighbourhood Services,Direct Services,Supplies and Services,304221,Equipment and Materials,06-Jun-2016,3136654-1973523,"26,146.00",T CROSSLING & CO LTD.
Neighbourhood Services,Direct Services,Supplies and Services,342051,Computers and Communications,06-Jun-2016,3136497-445950,647.24,BYTES SOFTWARE SERVICES LTD.
Neighbourhood Services,Direct Services,Premises,125009,Rents,06-Jun-2016,3136502-RP1150,"1,568.93",COAL INDUSTRY SOCIAL WELFARE ORGANISATION.
Neighbourhood Services,Technical Services,Third Party Payments,460151,Contract Payments,06-Jun-2016,3136551-532387,533.00,INSTARMAC GROUP PLC.
Neighbourhood Services,Direct Services,Transport,210057,Repair and Maintenance of Vehicles,06-Jun-2016,3136577-127402,"1,102.00",LONDONDERRY GARAGE (S.E) LTD.
Neighbourhood Services,Culture & Sport,Supplies and Services,324117,Provisions,06-Jun-2016,3136581-188906,573.61,MARK TONEY & CO LTD.
Neighbourhood Services,Projects and Business services,Third Party Payments,430100,Rendered by Private Contractors,06-Jun-2016,3136603-R16955,730.00,O`BRIEN WASTE RECYCLING SOLUTIONS LTD.
Neighbourhood Services,Technical Services,Third Party Payments,430100,Rendered by Private Contractors,06-Jun-2016,3136617-139596,"87,483.10",PREMIER TRAFFIC MANAGEMENT LTD.
Neighbourhood Services,Technical Services,Stock,926900,Stock in hand-Inventory system,06-Jun-2016,3136640-229885,"1,167.12",SIGNPOST SOLUTIONS LTD.
Neighbourhood Services,Technical Services,Stock,926900,Stock in hand-Inventory system,06-Jun-2016,3136648-080955,"1,044.87",STONEGRAVE AGGREGATES LTD.
Neighbourhood Services,Technical Services,Supplies and Services,304221,Equipment and Materials,06-Jun-2016,3136664-102651,670.10,TOFCO LTD.
Neighbourhood Services,Technical Services,Stock,926900,Stock in hand-Inventory system,06-Jun-2016,3136664-102672,"3,738.00",TOFCO LTD.
Neighbourhood Services,Culture & Sport,Supplies and Services,304252,Equipment and Materials,06-Jun-2016,3136675-US1588,560.00,ULTIMATE SUPPLIES (NORTH) LTD.
Neighbourhood Services,Culture & Sport,Construction Work,908105,Construction work,06-Jun-2016,3136684-375694,961.33,WM SMITH & SONS (BARNARD CASTLE) LTD.
Neighbourhood Services,Technical Services,Construction Work,908105,Construction work,06-Jun-2016,3136554-12500,908.16,JACK COUPE & SONS LTD T/A COUPE LINE.
Neighbourhood Services,Technical Services,Construction Work,908105,Construction work,06-Jun-2016,3136554-12516,"1,725.72",JACK COUPE & SONS LTD T/A COUPE LINE.
Neighbourhood Services,Technical Services,Construction Work,908105,Construction work,06-Jun-2016,3136554-12519,"2,087.80",JACK COUPE & SONS LTD T/A COUPE LINE.
Neighbourhood Services,Technical Services,Construction Work,908105,Construction work,06-Jun-2016,3136554-12522,"1,377.62",JACK COUPE & SONS LTD T/A COUPE LINE.
Neighbourhood Services,Direct Services,Construction Work,908105,Construction work,06-Jun-2016,3136567-15389,"1,300.00",LANDFORM SURVEYS LTD.
Neighbourhood Services,Culture & Sport,Supplies and Services,304221,Equipment and Materials,06-Jun-2016,3136589-17152,"2,485.00",N E & C WINDOWS & DOORS LTD.
Neighbourhood Services,Direct Services,Supplies and Services,304221,Equipment and Materials,06-Jun-2016,3136598-52151,"7,245.78",NORTHERN HOUSING CONSORTIUM LTD.
Neighbourhood Services,Technical Services,Stock,926900,Stock in hand-Inventory system,06-Jun-2016,3136618-14533,519.58,PROBRUSH T/A NORTHERN MUNICIPAL SPARES LTD.
Neighbourhood Services,Projects and Business services,Third Party Payments,430116,Rendered by Private Contractors,06-Jun-2016,3136674-98917,"2,196.00",TW STEAM & HEATING SERVICES LTD.
Neighbourhood Services,Technical Services,Supplies and Services,304221,Equipment and Materials,06-Jun-2016,3136677-19348,"3,572.00",WARD TIMBER LTD.
Neighbourhood Services,Culture & Sport,Supplies and Services,304221,Equipment and Materials,06-Jun-2016,3136474-6767,"1,244.15",ALISON BLACK LTD T/A SPORTMAX.
Neighbourhood Services,Projects and Business services,Construction Work,908105,Construction work,06-Jun-2016,3136483-3154,"89,945.00",AUTOMATIC FLARE SYSTEMS LTD.
Neighbourhood Services,Projects and Business services,Construction Work,908105,Construction work,06-Jun-2016,3136483-3155,"38,421.00",AUTOMATIC FLARE SYSTEMS LTD.
Neighbourhood Services,Culture & Sport,Supplies and Services,384237,Miscellaneous Expenses,06-Jun-2016,3136668-8193,"2,854.17",TRACKS 2000 (INTERNATIONAL) LTD.
Neighbourhood Services,Projects and Business services,Third Party Payments,430119,Rendered by Private Contractors,06-Jun-2016,3136657-546,583.00,TAYLORED ENVIRONMENTAL ENGINEERING LTD.
Regeneration & Economic Development,Spatial Policy Planning Assets & Environment,Supplies and Services,384700,Miscellaneous Expenses,06-Jun-2016,3136557-RED-05-2016-059,525.00,JH & J RAPER & PARTNERS.
Regeneration & Economic Development,Spatial Policy Planning Assets & Environment,Supplies and Services,336005,Advertising,06-Jun-2016,3136592-15390900,829.73,NEWSQUEST (YORKSHIRE & NORTH EAST) LTD.
Regeneration & Economic Development,Transport and Contracted Services,Supplies and Services,342033,Computers and Communications,06-Jun-2016,3136686-AK46307,512.00,XMA LTD.
Regeneration & Economic Development,Transport and Contracted Services,Third Party Payments,430100,Rendered by Private Contractors,06-Jun-2016,3136601-038180,"46,961.25",NSL LTD.
Regeneration & Economic Development,Economic Development and Housing,Supplies and Services,338094,Services,06-Jun-2016,3136482-34854,600.00,AUCKLAND CASTLE TRUST LTD.
Regeneration & Economic Development,Transport and Contracted Services,Employees,040149,Recruitment Instruction and Training,06-Jun-2016,3136548-2416,900.00,HSF TRAINING LTD.
Resources,I.C.T. Services,Debtors,930167,Debtor-Telephone Holding Account,06-Jun-2016,3136484-103445,"50,016.27",AZZURRI COMMUNICATIONS LTD.
Resources,I.C.T. Services,Supplies and Services,344137,Telephones,06-Jun-2016,3136484-11667952,"33,703.00",AZZURRI COMMUNICATIONS LTD.
Resources,I.C.T. Services,Stock,926900,Stock in hand-Inventory system,06-Jun-2016,3136512-7402288570,"2,742.16",DELL COMPUTER CORPORATION LTD.
Resources,I.C.T. Services,Stock,926900,Stock in hand-Inventory system,06-Jun-2016,3136512-7402288759,"3,026.15",DELL COMPUTER CORPORATION LTD.
Resources,I.C.T. Services,Stock,926900,Stock in hand-Inventory system,06-Jun-2016,3136512-7402288908,"1,771.92",DELL COMPUTER CORPORATION LTD.
Resources,I.C.T. Services,Supplies and Services,332029,Printing Stationery and Gen Off Exps,06-Jun-2016,3136526-99786,727.00,ELANDERS UK.
Resources,I.C.T. Services,Stock,926900,Stock in hand-Inventory system,06-Jun-2016,3136549-SIN383750,"3,224.75",INFORMATION & DATA NETWORK SUPPLIES LTD (IDN).
Resources,I.C.T. Services,Supplies and Services,304303,Equipment and Materials,06-Jun-2016,3136563-37854,"1,888.00",KBR IT & NETWORKING SOLUTIONS.
Resources,Financial Services,Supplies and Services,342051,Computers and Communications,06-Jun-2016,3136590-E930673,550.00,NCC SERVICES LTD.
Resources,Financial Services,Supplies and Services,342051,Computers and Communications,06-Jun-2016,3136590-E930674,550.00,NCC SERVICES LTD.
Resources,I.C.T. Services,Stock,926900,Stock in hand-Inventory system,06-Jun-2016,3136686-AK51609,628.30,XMA LTD.
Children and Adult Services,Education,Transport,230007,Contract Hire,07-Jun-2016,3137805-5030/M029-5033/E030,"3,627.48",TED WILFORD COACHES.
Dedicated Schools Grant,Dedicated Schools Grant,Transport,230010,Contract Hire,07-Jun-2016,3137800-DCC/2015/092,"1,254.00",TAYLOR`S TAXIS.
Children and Adult Services,Education,Transport,230008,Contract Hire,07-Jun-2016,3137654-17B-27/5/16,"1,273.00",MR RAYMOND RENWICK.
Children and Adult Services,Education,Transport,230008,Contract Hire,07-Jun-2016,3137798-05/2016/001,"1,398.78",TARNS TAXIS LTD.
Children and Adult Services,Education,Transport,230009,Contract Hire,07-Jun-2016,3137798-05/2016/002,950.00,TARNS TAXIS LTD.
Children and Adult Services,Education,Transport,230008,Contract Hire,07-Jun-2016,3137798-05/2016/003,912.00,TARNS TAXIS LTD.
Children and Adult Services,Education,Transport,230008,Contract Hire,07-Jun-2016,3137800-DCC/2015/90,"1,197.00",TAYLOR`S TAXIS.
Children and Adult Services,Education,Third Party Payments,479101,Purchase of Care,07-Jun-2016,3137674-7010000128,"12,106.49",NHS DARLINGTON CCG.
Children and Adult Services,Education,Third Party Payments,479101,Purchase of Care,07-Jun-2016,3137675-7010100479,"39,498.37",NHS DDES CCG.
Children and Adult Services,Education,Third Party Payments,479101,Purchase of Care,07-Jun-2016,3137676-7010500370,"31,830.64",NHS NORTH DURHAM CCG.
Children and Adult Services,Education,Transport,230006,Contract Hire,07-Jun-2016,3137698-08-31/5/16,"2,278.00",PAUL ROSE T/A PAUL`S TAXIS.
Children and Adult Services,Education,Transport,230008,Contract Hire,07-Jun-2016,3137701-DCC0012016,"1,520.00",PB PRIVATE HIRE.
Children and Adult Services,Childrens Services,Third Party Payments,425040,Rendered by Voluntary Organisations,07-Jun-2016,3137378-146510899,"3,801.22",BARNARDO SERVICES LTD.
Children and Adult Services,Education,Transport,230008,Contract Hire,07-Jun-2016,3137644-0007-W014,"2,080.00",MR A MILLWARD T/A SWISS CABS PRIVATE HIRE.
Children and Adult Services,Childrens Services,Third Party Payments,425040,Rendered by Voluntary Organisations,07-Jun-2016,3137670-NFA161083,"3,128.70",NATIONAL FOSTERING AGENCY LTD.
Children and Adult Services,Education,Transport,230008,Contract Hire,07-Jun-2016,3137783-JJJC84165,"1,725.39",SPENNYMOOR TAXIS.
Children and Adult Services,Education,Transport,230008,Contract Hire,07-Jun-2016,3137783-LLMD66445,962.00,SPENNYMOOR TAXIS.
Children and Adult Services,Education,Transport,230007,Contract Hire,07-Jun-2016,3137805-5038-7031,"2,195.26",TED WILFORD COACHES.
Children and Adult Services,Education,Transport,230007,Contract Hire,07-Jun-2016,3137805-6032-H17,"1,710.00",TED WILFORD COACHES.
Children and Adult Services,Childrens Services,Third Party Payments,440027,Other Third Party Payments,07-Jun-2016,3137022-1108845,538.08,REDACTED - PAYMENT TO INDIVIDUAL
Children and Adult Services,Childrens Services,Employees,080025,Agency Staff,07-Jun-2016,3137405-2326202,871.20,CELSIAN.
Children and Adult Services,Head of Adults,Supplies and Services,384616,Miscellaneous Expenses,07-Jun-2016,3137717-1006359,828.62,PLACES FOR PEOPLE INDIVIDUAL SUPPORT.
Children and Adult Services,Education,Transport,230007,Contract Hire,07-Jun-2016,3137750-3080/23,"1,534.44",S & S TRAVEL LTD.
Children and Adult Services,Education,Transport,230008,Contract Hire,07-Jun-2016,3137750-SO11/42,"1,726.34",S & S TRAVEL LTD.
Children and Adult Services,Education,Transport,230008,Contract Hire,07-Jun-2016,3137750-W075/42,"1,706.20",S & S TRAVEL LTD.
Children and Adult Services,Education,Transport,230008,Contract Hire,07-Jun-2016,3137750-WO52/31,"2,578.11",S & S TRAVEL LTD.
Children and Adult Services,Education,Transport,230008,Contract Hire,07-Jun-2016,3137750-WO67/09,"2,033.50",S & S TRAVEL LTD.
Children and Adult Services,Education,Transport,230008,Contract Hire,07-Jun-2016,3137750-WO85/09,"1,710.00",S & S TRAVEL LTD.
Children and Adult Services,Education,Transport,230008,Contract Hire,07-Jun-2016,3137622-051601,"3,374.50",MARK & JOHN CHISHOLM T/A (CHEVRON).
Dedicated Schools Grant,Dedicated Schools Grant,Transport,230010,Contract Hire,07-Jun-2016,3137622-051602,"2,069.00",MARK & JOHN CHISHOLM T/A (CHEVRON).
Children and Adult Services,Education,Transport,230008,Contract Hire,07-Jun-2016,3137642-CEWS15,"1,615.00",MOOR PRIVATE HIRE.
Children and Adult Services,Education,Transport,230013,Contract Hire,07-Jun-2016,3137734-RDS016,620.00,RDS TAXI.
Dedicated Schools Grant,Dedicated Schools Grant,Transport,230010,Contract Hire,07-Jun-2016,3137852-487844,851.00,WENDYS` TAXIS.
Children and Adult Services,Education,Transport,230006,Contract Hire,07-Jun-2016,3137587-00689,665.00,KENNAS CABS.
Children and Adult Services,Education,Transport,230008,Contract Hire,07-Jun-2016,3137587-00690,988.00,KENNAS CABS.
Children and Adult Services,Education,Transport,230007,Contract Hire,07-Jun-2016,3137631-00842,"1,520.00",MICHAELS TRAVEL.
Children and Adult Services,Education,Transport,230008,Contract Hire,07-Jun-2016,3137658-60505,"2,428.96",MR STEVEN PRATT T/A PRATTS TAXIS LTD.
Children and Adult Services,Education,Transport,230008,Contract Hire,07-Jun-2016,3137658-60506,"1,069.51",MR STEVEN PRATT T/A PRATTS TAXIS LTD.
Children and Adult Services,Education,Transport,230008,Contract Hire,07-Jun-2016,3137658-60507,"1,520.00",MR STEVEN PRATT T/A PRATTS TAXIS LTD.
Dedicated Schools Grant,Dedicated Schools Grant,Transport,230010,Contract Hire,07-Jun-2016,3137658-60508,"1,820.00",MR STEVEN PRATT T/A PRATTS TAXIS LTD.
Children and Adult Services,Education,Transport,230007,Contract Hire,07-Jun-2016,3137658-60509,"1,710.00",MR STEVEN PRATT T/A PRATTS TAXIS LTD.
Children and Adult Services,Education,Transport,230007,Contract Hire,07-Jun-2016,3137660-TN031,687.42,MR THOMAS G GRIFFITHS T/A TNL TAXIS.
Children and Adult Services,Education,Transport,230007,Contract Hire,07-Jun-2016,3137699-1491A,"1,026.00",PAUL WATSON TRAVEL.
Children and Adult Services,Education,Transport,230008,Contract Hire,07-Jun-2016,3137700-DCC90,"1,527.79",PAUL`S TAXIS..
Children and Adult Services,Education,Transport,230008,Contract Hire,07-Jun-2016,3137700-DCC92,"1,425.00",PAUL`S TAXIS..
Children and Adult Services,Education,Transport,230006,Contract Hire,07-Jun-2016,3137700-DCC93,901.00,PAUL`S TAXIS..
Children and Adult Services,Education,Transport,230008,Contract Hire,07-Jun-2016,3137766-72044,"1,710.00",SHOTTON PRIVATE HIRE.
Children and Adult Services,Education,Transport,230008,Contract Hire,07-Jun-2016,3137766-72047,"3,040.00",SHOTTON PRIVATE HIRE.
Children and Adult Services,Education,Transport,230007,Contract Hire,07-Jun-2016,3137825-10016,797.23,TRANSPORT.ADVENTURE.XI.
Children and Adult Services,Head of Adults,Third Party Payments,472101,Purchase of Care,07-Jun-2016,3137442-1141,"1,972.50",DCS & D LTD T/A HERITAGE HEALTHCARE.
Children and Adult Services,Head of Adults,Third Party Payments,472101,Purchase of Care,07-Jun-2016,3137442-1142,"2,347.28",DCS & D LTD T/A HERITAGE HEALTHCARE.
Children and Adult Services,Education,Transport,230006,Contract Hire,07-Jun-2016,3137496-0360,570.00,FMR SILVA PITA.
Children and Adult Services,Education,Transport,230007,Contract Hire,07-Jun-2016,3137496-0361,551.00,FMR SILVA PITA.
Children and Adult Services,Education,Transport,230007,Contract Hire,07-Jun-2016,3137601-1997,"4,540.81",LEE`S COACHES LTD.
Children and Adult Services,Education,Transport,230007,Contract Hire,07-Jun-2016,3137601-1998,"2,377.47",LEE`S COACHES LTD.
Children and Adult Services,Education,Transport,230008,Contract Hire,07-Jun-2016,3137603-3402,"1,366.12",LINCAB TAXIS.
Children and Adult Services,Education,Transport,230008,Contract Hire,07-Jun-2016,3137603-3404,"1,766.08",LINCAB TAXIS.
Children and Adult Services,Education,Transport,230008,Contract Hire,07-Jun-2016,3137607-2631,"2,254.00",LOCAL TRANSPORT LTD.
Children and Adult Services,Education,Transport,230008,Contract Hire,07-Jun-2016,3137607-2632,"1,520.00",LOCAL TRANSPORT LTD.
Children and Adult Services,Education,Transport,230008,Contract Hire,07-Jun-2016,3137607-2633,"1,406.00",LOCAL TRANSPORT LTD.
Children and Adult Services,Education,Transport,230007,Contract Hire,07-Jun-2016,3137644-0019,940.50,MR A MILLWARD T/A SWISS CABS PRIVATE HIRE.
Children and Adult Services,Education,Transport,230007,Contract Hire,07-Jun-2016,3137699-1492,"2,280.00",PAUL WATSON TRAVEL.
Children and Adult Services,Education,Transport,230006,Contract Hire,07-Jun-2016,3137737-3039,707.00,RICHIES TAXIS.
Children and Adult Services,Education,Transport,230008,Contract Hire,07-Jun-2016,3137741-0029,"1,615.00",RONS TAXI (CHESTER LE ST).
Children and Adult Services,Education,Transport,230006,Contract Hire,07-Jun-2016,3137742-1670,"1,128.00",RON`S TAXIS (FISHBURN).
Children and Adult Services,Education,Transport,230008,Contract Hire,07-Jun-2016,3137742-1671,"2,565.00",RON`S TAXIS (FISHBURN).
Children and Adult Services,Education,Transport,230008,Contract Hire,07-Jun-2016,3137742-1672,"1,260.00",RON`S TAXIS (FISHBURN).
Dedicated Schools Grant,Dedicated Schools Grant,Transport,230010,Contract Hire,07-Jun-2016,3137779-244A,"1,610.00",SJ MACKENZIE T/A SCOTTS TAXIS.
Children and Adult Services,Education,Transport,230008,Contract Hire,07-Jun-2016,3137779-248A,"3,700.66",SJ MACKENZIE T/A SCOTTS TAXIS.
Children and Adult Services,Education,Transport,230008,Contract Hire,07-Jun-2016,3137796-B804,"1,688.38",TALBOTS TRAVEL LTD.
Children and Adult Services,Public Health,Supplies and Services,338094,Services,07-Jun-2016,3137811-3797,534.30,THE DURHAM CENTRE LTD.
Children and Adult Services,Public Health,Supplies and Services,338094,Services,07-Jun-2016,3137811-3798,544.70,THE DURHAM CENTRE LTD.
Children and Adult Services,Education,Transport,230006,Contract Hire,07-Jun-2016,3137849-1043,"1,380.00",WE CONNOR.
Children and Adult Services,Education,Transport,230008,Contract Hire,07-Jun-2016,3137584-102,"1,376.00",KEN CHAMBERS T/A SHILDON TRANSPORT LTD.
Children and Adult Services,Education,Transport,230007,Contract Hire,07-Jun-2016,3137707-38A,805.00,PETER HOLMES T/A PETERS TAXIS.
Children and Adult Services,Education,Transport,230008,Contract Hire,07-Jun-2016,3137710-741,"3,388.65",PG TRIPS.
Children and Adult Services,Education,Transport,230007,Contract Hire,07-Jun-2016,3137719-315,"1,531.59",PREMIER PRIVATE HIRE.
Children and Adult Services,Education,Transport,230007,Contract Hire,07-Jun-2016,3137732-41A,"1,222.27",RAYNERS COACHES.
Children and Adult Services,Education,Transport,230007,Contract Hire,07-Jun-2016,3137732-41B,"2,071.57",RAYNERS COACHES.
Children and Adult Services,Education,Transport,230007,Contract Hire,07-Jun-2016,3137732-41C,"5,729.07",RAYNERS COACHES.
Children and Adult Services,Education,Transport,230008,Contract Hire,07-Jun-2016,3137738-544,"2,128.00",ROAD RUNNERS (NE) LTD.
Children and Adult Services,Education,Transport,230008,Contract Hire,07-Jun-2016,3137738-546,988.00,ROAD RUNNERS (NE) LTD.
Children and Adult Services,Education,Transport,230006,Contract Hire,07-Jun-2016,3137738-547,"2,090.00",ROAD RUNNERS (NE) LTD.
Children and Adult Services,Education,Transport,230007,Contract Hire,07-Jun-2016,3137738-548,665.00,ROAD RUNNERS (NE) LTD.
Children and Adult Services,Education,Transport,230006,Contract Hire,07-Jun-2016,3137738-549,"1,026.00",ROAD RUNNERS (NE) LTD.
Children and Adult Services,Education,Transport,230008,Contract Hire,07-Jun-2016,3137738-551,"2,090.00",ROAD RUNNERS (NE) LTD.
Children and Adult Services,Education,Transport,230007,Contract Hire,07-Jun-2016,3137738-552,722.00,ROAD RUNNERS (NE) LTD.
Children and Adult Services,Education,Transport,230008,Contract Hire,07-Jun-2016,3137738-554,"1,292.00",ROAD RUNNERS (NE) LTD.
Children and Adult Services,Education,Transport,230008,Contract Hire,07-Jun-2016,3137738-557,"1,710.00",ROAD RUNNERS (NE) LTD.
Children and Adult Services,Education,Transport,230008,Contract Hire,07-Jun-2016,3137773-301,"2,093.50",SIMONS TAXIS.
Children and Adult Services,Education,Transport,230007,Contract Hire,07-Jun-2016,3137789-367,"1,914.25",STEPHEN MAUDE LTD T/A MAUDES COACHES.
Children and Adult Services,Education,Transport,230008,Contract Hire,07-Jun-2016,3137826-016,714.00,TRIDENT TAXIS.
Children and Adult Services,Education,Transport,230006,Contract Hire,07-Jun-2016,3137617-52,"1,425.00",M BEHAN T/A M & M`S TAXIS.
Children and Adult Services,Education,Transport,230007,Contract Hire,07-Jun-2016,3137617-53,"1,140.00",M BEHAN T/A M & M`S TAXIS.
Children and Adult Services,Education,Transport,230008,Contract Hire,07-Jun-2016,3137617-54,760.00,M BEHAN T/A M & M`S TAXIS.
Children and Adult Services,Education,Transport,230008,Contract Hire,07-Jun-2016,3137788-52,654.53,STEELYS TAXIS.
Children and Adult Services,Education,Transport,230008,Contract Hire,07-Jun-2016,3137826-05,"1,224.00",TRIDENT TAXIS.
Dedicated Schools Grant,Dedicated Schools Grant,Transport,230010,Contract Hire,07-Jun-2016,3137828-24,"1,020.00",TRUDY`S.
Children and Adult Services,Education,Transport,230008,Contract Hire,07-Jun-2016,3137829-42,"1,809.00",TT TAXIS.
Children and Adult Services,Education,Transport,230006,Contract Hire,07-Jun-2016,3137788-4,"1,110.00",STEELYS TAXIS.
Assistant Chief Executive,Partnerships & Community Engagement Div.,Transfer Payments,525030,Other,07-Jun-2016,3137375-AB-CGF17,500.00,AYCLIFFE & DISTRICT BUS PRESERVATION SOCIETY.
Assistant Chief Executive,Partnerships & Community Engagement Div.,Transfer Payments,525030,Other,07-Jun-2016,3137376-AB-CGF19,750.00,AYCLIFFE RUNNING CLUB.
Assistant Chief Executive,Partnerships & Community Engagement Div.,Cap Exp on Grants & Other Financial Assistance (REFCUS),918004,Contributions to other bodies,07-Jun-2016,3137385-NB-BASH019,"2,381.00",BISHOP AUCKLAND BOWLING CLUB.
Assistant Chief Executive,Partnerships & Community Engagement Div.,Transfer Payments,525030,Other,07-Jun-2016,3137476-AB-DVLY022,"2,995.75",ENGINEERING DEVELOPMENT TRUST.
Assistant Chief Executive,Partnerships & Community Engagement Div.,Transfer Payments,525030,Other,07-Jun-2016,3137500-AB-CGF22,750.00,FRIENDS OF SENIOR CITIZENS.
Assistant Chief Executive,Partnerships & Community Engagement Div.,Transfer Payments,525030,Other,07-Jun-2016,3137671-AB-CGF18,750.00,NEMESIS ALLSTARS.
Assistant Chief Executive,Partnerships & Community Engagement Div.,Supplies and Services,338099,Services,07-Jun-2016,3137697-AUGUST2016,700.00,PAUL EVANS T/A CARNIVAL FUN FAIRS.
Assistant Chief Executive,Partnerships & Community Engagement Div.,Transfer Payments,525030,Other,07-Jun-2016,3137760-AB-CGF20,750.00,SEDGEFIELD WATER POLO CLUB.
Assistant Chief Executive,Partnerships & Community Engagement Div.,Transfer Payments,525030,Other,07-Jun-2016,3137855-AB-CGF16,750.00,WOODHAM VILLAGE COMMUNITY ASSOCIATION.
Neighbourhood Services,Culture & Sport,Supplies and Services,338066,Services,07-Jun-2016,3137725-JW/INV200006104,"4,000.00",PUNTER SOUTHALL DC CONSULTING T/A PUNTER SOUTHALL ASPIRE.
Neighbourhood Services,Technical Services,Employees,080025,Agency Staff,07-Jun-2016,3137561-B225H003-041,873.44,JACOBS UK LTD.
Neighbourhood Services,Technical Services,Supplies and Services,338027,Services,07-Jun-2016,3137561-B225H007-008,"2,040.18",JACOBS UK LTD.
Neighbourhood Services,Direct Services,Supplies and Services,304221,Equipment and Materials,07-Jun-2016,3137495-1605-006307,539.30,FLAME HEATING SPARES LTD.
Neighbourhood Services,Culture & Sport,Supplies and Services,384199,Miscellaneous Expenses,07-Jun-2016,3137575-GALA2016MAY,"1,118.94",JOHN MURDOCH.
Neighbourhood Services,Technical Services,Third Party Payments,430100,Rendered by Private Contractors,07-Jun-2016,3137730-2580/160431,"17,615.70",RAINTON CONSTRUCTION LTD.
Neighbourhood Services,Culture & Sport,Third Party Payments,430100,Rendered by Private Contractors,07-Jun-2016,3137423-PSINV00480,"25,489.92",COMPETITION LINE UK LTD.
Neighbourhood Services,Culture & Sport,Income,720810,Fees and Charges,07-Jun-2016,3137423-PSINV00484,"25,702.51",COMPETITION LINE UK LTD.
Neighbourhood Services,Culture & Sport,Income,720810,Fees and Charges,07-Jun-2016,3137423-PSINV00485,"4,658.53",COMPETITION LINE UK LTD.
Neighbourhood Services,Culture & Sport,Income,720810,Fees and Charges,07-Jun-2016,3137423-PSINV00486,"18,319.87",COMPETITION LINE UK LTD.
Neighbourhood Services,Culture & Sport,Third Party Payments,430100,Rendered by Private Contractors,07-Jun-2016,3137423-PSINV00488,"7,892.47",COMPETITION LINE UK LTD.
Neighbourhood Services,Technical Services,Supplies and Services,304358,Equipment and Materials,07-Jun-2016,3137481-0000053032,"6,600.00",EURO ENVIRONMENTAL GROUP.
Neighbourhood Services,Direct Services,Third Party Payments,430100,Rendered by Private Contractors,07-Jun-2016,3137576-0000079855,"8,300.00",JOHN WADE (HAULAGE) LTD.
Neighbourhood Services,Technical Services,Supplies and Services,304358,Equipment and Materials,07-Jun-2016,3137576-0000079933,"1,012.50",JOHN WADE (HAULAGE) LTD.
Neighbourhood Services,Technical Services,Supplies and Services,304358,Equipment and Materials,07-Jun-2016,3137576-0000079934,"1,057.50",JOHN WADE (HAULAGE) LTD.
Neighbourhood Services,Technical Services,Supplies and Services,304358,Equipment and Materials,07-Jun-2016,3137576-0000079951,675.00,JOHN WADE (HAULAGE) LTD.
Neighbourhood Services,Direct Services,Supplies and Services,304358,Equipment and Materials,07-Jun-2016,3137576-0000079959,510.00,JOHN WADE (HAULAGE) LTD.
Neighbourhood Services,Direct Services,Supplies and Services,304358,Equipment and Materials,07-Jun-2016,3137576-0000080065,"1,947.50",JOHN WADE (HAULAGE) LTD.
Neighbourhood Services,Culture & Sport,Premises,145023,Cleaning and Domestic Supplies,07-Jun-2016,3137688-CN19212444,753.96,OCS GROUP UK LTD T/A CANNON HYGIENE.
Neighbourhood Services,Technical Services,Stock,926900,Stock in hand-Inventory system,07-Jun-2016,3137819-N/IN171583,"3,728.67",THOMAS OWEN & SONS (NEWCASTLE) LTD.
Neighbourhood Services,Technical Services,Supplies and Services,304358,Equipment and Materials,07-Jun-2016,3137615-41A/2016,"2,716.00",M & E & MR WALTON.
Neighbourhood Services,Culture & Sport,Supplies and Services,338047,Services,07-Jun-2016,3137564-1105/16,"2,500.00",JAMES TAYLOR T/A JTQ.
Neighbourhood Services,Culture & Sport,Supplies and Services,304259,Equipment and Materials,07-Jun-2016,3137394-12/516,980.00,BRITANNIA BANNERS.
Neighbourhood Services,Direct Services,Supplies and Services,304040,Equipment and Materials,07-Jun-2016,3137759-246548,"3,000.00",SCIENCE MUSEUM GROUP ENTERPRISES LTD.
Neighbourhood Services,Technical Services,Supplies and Services,304221,Equipment and Materials,07-Jun-2016,3137790-081967,"1,633.76",STONEGRAVE AGGREGATES LTD.
Neighbourhood Services,Technical Services,Supplies and Services,304221,Equipment and Materials,07-Jun-2016,3137790-081969,"1,241.84",STONEGRAVE AGGREGATES LTD.
Neighbourhood Services,Culture & Sport,Supplies and Services,338099,Services,07-Jun-2016,3137485-82948,"1,071.00",EVENT FURNITURE LTD T/A EVENT HIRE.
Neighbourhood Services,Technical Services,Construction Work,908105,Construction work,07-Jun-2016,3137559-12478,970.48,JACK COUPE & SONS LTD T/A COUPE LINE.
Neighbourhood Services,Technical Services,Construction Work,908105,Construction work,07-Jun-2016,3137559-12481,884.05,JACK COUPE & SONS LTD T/A COUPE LINE.
Neighbourhood Services,Technical Services,Construction Work,908105,Construction work,07-Jun-2016,3137559-12482,"1,266.39",JACK COUPE & SONS LTD T/A COUPE LINE.
Neighbourhood Services,Technical Services,Construction Work,908105,Construction work,07-Jun-2016,3137559-12495,710.46,JACK COUPE & SONS LTD T/A COUPE LINE.
Neighbourhood Services,Technical Services,Construction Work,908105,Construction work,07-Jun-2016,3137559-12496,"3,183.30",JACK COUPE & SONS LTD T/A COUPE LINE.
Neighbourhood Services,Technical Services,Construction Work,908105,Construction work,07-Jun-2016,3137559-12520,"5,034.04",JACK COUPE & SONS LTD T/A COUPE LINE.
Neighbourhood Services,Technical Services,Construction Work,908105,Construction work,07-Jun-2016,3137559-12521,"2,676.98",JACK COUPE & SONS LTD T/A COUPE LINE.
Neighbourhood Services,Technical Services,Supplies and Services,384194,Miscellaneous Expenses,07-Jun-2016,3137677-62124,"2,375.00",NIRAMAX GROUP LTD.
Neighbourhood Services,EnvironmentHealth & Consumer Protection,Supplies and Services,332047,Printing Stationery and Gen Off Exps,07-Jun-2016,3137843-17632,"1,263.66",VIP SYSTEM LTD.
Neighbourhood Services,Technical Services,Third Party Payments,430127,Rendered by Private Contractors,07-Jun-2016,3137525-4497,"1,551.00",HAWTHORN PLANT HIRE.
Neighbourhood Services,Technical Services,Third Party Payments,430127,Rendered by Private Contractors,07-Jun-2016,3137545-2237,805.50,IAN C LIDDLE.
Neighbourhood Services,Technical Services,Third Party Payments,430127,Rendered by Private Contractors,07-Jun-2016,3137545-2238,"2,885.50",IAN C LIDDLE.
Neighbourhood Services,Technical Services,Third Party Payments,430127,Rendered by Private Contractors,07-Jun-2016,3137545-2239,731.00,IAN C LIDDLE.
Neighbourhood Services,Technical Services,Third Party Payments,430127,Rendered by Private Contractors,07-Jun-2016,3137545-2242,727.00,IAN C LIDDLE.
Neighbourhood Services,Technical Services,Third Party Payments,430127,Rendered by Private Contractors,07-Jun-2016,3137545-2258,"1,860.00",IAN C LIDDLE.
Neighbourhood Services,Technical Services,Third Party Payments,430127,Rendered by Private Contractors,07-Jun-2016,3137545-2260,"1,389.50",IAN C LIDDLE.
Neighbourhood Services,Technical Services,Third Party Payments,430127,Rendered by Private Contractors,07-Jun-2016,3137545-2273,903.00,IAN C LIDDLE.
Neighbourhood Services,Technical Services,Supplies and Services,304221,Equipment and Materials,07-Jun-2016,3137586-8396,"1,123.92",KEN THOMAS (SITE CLEARANCE LTD).
Neighbourhood Services,Technical Services,Supplies and Services,304221,Equipment and Materials,07-Jun-2016,3137586-8397,793.59,KEN THOMAS (SITE CLEARANCE LTD).
Neighbourhood Services,Technical Services,Supplies and Services,304358,Equipment and Materials,07-Jun-2016,3137588-1294,"2,793.00",KEVIN SNOWDON GROUNDWORKS LTD.
Neighbourhood Services,Technical Services,Supplies and Services,304358,Equipment and Materials,07-Jun-2016,3137588-1299,518.00,KEVIN SNOWDON GROUNDWORKS LTD.
Neighbourhood Services,Technical Services,Supplies and Services,304358,Equipment and Materials,07-Jun-2016,3137733-9486,"4,390.40",RD KEARTON & SONS LTD.
Neighbourhood Services,Technical Services,Supplies and Services,304358,Equipment and Materials,07-Jun-2016,3137733-9497,"7,350.00",RD KEARTON & SONS LTD.
Neighbourhood Services,Culture & Sport,Supplies and Services,384199,Miscellaneous Expenses,07-Jun-2016,3137359-016,"1,677.32",ANDREW SHUTT.
Regeneration & Economic Development,Economic Development and Housing,Cap Exp on Grants & Other Financial Assistance (REFCUS),918401,Capital grants,07-Jun-2016,3137432-RED-06-2016-024,"4,167.21",CRAIG PATTERSON T/A LET ME GET YOU WET.
Regeneration & Economic Development,Economic Development and Housing,Supplies and Services,384700,Miscellaneous Expenses,07-Jun-2016,3137446-RED-06-2016-028,550.00,DESIGN REVEL.
Regeneration & Economic Development,Economic Development and Housing,Cap Exp on Grants & Other Financial Assistance (REFCUS),918401,Capital grants,07-Jun-2016,3137530-RED-06-2016-031,"2,674.00",REDACTED - PAYMENT TO INDIVIDUAL
Regeneration & Economic Development,Economic Development and Housing,Cap Exp on Grants & Other Financial Assistance (REFCUS),918401,Capital grants,07-Jun-2016,3137533-RED-06-2016-016,"3,878.00",HES GROUP UK LTD.
Regeneration & Economic Development,Economic Development and Housing,Cap Exp on Grants & Other Financial Assistance (REFCUS),918401,Capital grants,07-Jun-2016,3137533-RED-06-2016-017,"3,135.00",HES GROUP UK LTD.
Regeneration & Economic Development,Economic Development and Housing,Cap Exp on Grants & Other Financial Assistance (REFCUS),918401,Capital grants,07-Jun-2016,3137533-RED-06-2016-018,"2,935.00",HES GROUP UK LTD.
Regeneration & Economic Development,Economic Development and Housing,Cap Exp on Grants & Other Financial Assistance (REFCUS),918401,Capital grants,07-Jun-2016,3137533-RED-06-2016-019,"3,205.00",HES GROUP UK LTD.
Regeneration & Economic Development,Economic Development and Housing,Cap Exp on Grants & Other Financial Assistance (REFCUS),918401,Capital grants,07-Jun-2016,3137533-RED-06-2016-023,"3,465.00",HES GROUP UK LTD.
Regeneration & Economic Development,Economic Development and Housing,Cap Exp on Grants & Other Financial Assistance (REFCUS),918401,Capital grants,07-Jun-2016,3137581-RED-05-2016-206,"10,074.57",K HARRISON (BUILDER) NE LTD.
Regeneration & Economic Development,Economic Development and Housing,Cap Exp on Grants & Other Financial Assistance (REFCUS),918401,Capital grants,07-Jun-2016,3137582-RED-06-2016-022,"4,610.00",KAJEN PLUMBING & HEATING LTD.
Regeneration & Economic Development,Economic Development and Housing,Cap Exp on Grants & Other Financial Assistance (REFCUS),918501,Exp assets not owned by authority,07-Jun-2016,3137616-RES-06-2016-033,"4,015.80",M & R DEVELOPMENTS & CONTRACTORS LTD..
Regeneration & Economic Development,Economic Development and Housing,Cap Exp on Grants & Other Financial Assistance (REFCUS),918401,Capital grants,07-Jun-2016,3137672-RED-06-2016-021,"3,750.00",NEW AGE PLUMBING & HEATING SERVICES.
Regeneration & Economic Development,Economic Development and Housing,Cap Exp on Grants & Other Financial Assistance (REFCUS),918401,Capital grants,07-Jun-2016,3137705-RED-06-2016-025,"1,800.00",PEART ACCESS RAMPS.
Regeneration & Economic Development,Economic Development and Housing,Cap Exp on Grants & Other Financial Assistance (REFCUS),918401,Capital grants,07-Jun-2016,3137705-RED-06-2016-026,"1,743.00",PEART ACCESS RAMPS.
Regeneration & Economic Development,Economic Development and Housing,Cap Exp on Grants & Other Financial Assistance (REFCUS),918401,Capital grants,07-Jun-2016,3137723-RED-06-2016-027,"2,681.00",PROPERTY PROJECTS (NE) LTD.
Regeneration & Economic Development,Transport and Contracted Services,Third Party Payments,430100,Rendered by Private Contractors,07-Jun-2016,3137850-CONCFAREPAY16,"1,994.66",WEARDALE MOTOR SERVICES LTD.
Regeneration & Economic Development,Transport and Contracted Services,Third Party Payments,430100,Rendered by Private Contractors,07-Jun-2016,3137369-CONCFAREPAY16,"771,148.00",ARRIVA DURHAM COUNTY LTD.
Regeneration & Economic Development,Transport and Contracted Services,Third Party Payments,430100,Rendered by Private Contractors,07-Jun-2016,3137371-CONCFAREPAY16,"3,913.27",ARRIVA RAIL NORTH LTD T/A NORTHERN.
Regeneration & Economic Development,Transport and Contracted Services,Third Party Payments,430100,Rendered by Private Contractors,07-Jun-2016,3137510-CONCFAREPAY16,"804,880.56",GO GATESHEAD LTD.
Regeneration & Economic Development,Transport and Contracted Services,Third Party Payments,430100,Rendered by Private Contractors,07-Jun-2016,3137538-CONCFAREPAY16,"1,335.27",HODGSONS COACH OPERATORS LTD.
Regeneration & Economic Development,Transport and Contracted Services,Third Party Payments,430100,Rendered by Private Contractors,07-Jun-2016,3137541-CONCFAREPAY16,"15,491.29",HUNTER BROTHERS (TANTOBIE) LTD.
Regeneration & Economic Development,Transport and Contracted Services,Third Party Payments,430100,Rendered by Private Contractors,07-Jun-2016,3137573-CONCFAREPAY16,"3,677.18",JOHN JAMES BRUNSKILL.
Regeneration & Economic Development,Transport and Contracted Services,Third Party Payments,430100,Rendered by Private Contractors,07-Jun-2016,3137753-CONCFAREPAY16,"10,781.65",SB TRAVEL.
Regeneration & Economic Development,Transport and Contracted Services,Third Party Payments,430100,Rendered by Private Contractors,07-Jun-2016,3137850-CONCFAREPAY16,"23,701.41",WEARDALE MOTOR SERVICES LTD.
Regeneration & Economic Development,Economic Development and Housing,Supplies and Services,338029,Services,07-Jun-2016,3137486-4100527699,800.00,REDACTED - PAYMENT TO INDIVIDUAL
Regeneration & Economic Development,Economic Development and Housing,Supplies and Services,384302,Miscellaneous Expenses,07-Jun-2016,3137747-DMW-062016,900.00,RUPERT PHILBRICK.
Regeneration & Economic Development,Spatial Policy Planning Assets & Environment,Supplies and Services,338066,Services,07-Jun-2016,3137449-INV008625,920.00,DIGITAL ACORN LTD.
Regeneration & Economic Development,Economic Development and Housing,Supplies and Services,384199,Miscellaneous Expenses,07-Jun-2016,3137628-SI-32,"4,900.00",MELANIE SENSICLE CONSULTING LTD.
Regeneration & Economic Development,Transport and Contracted Services,Third Party Payments,430106,Rendered by Private Contractors,07-Jun-2016,3137850-1064,"31,349.05",WEARDALE MOTOR SERVICES LTD.
Regeneration & Economic Development,Transport and Contracted Services,Third Party Payments,430106,Rendered by Private Contractors,07-Jun-2016,3137753-115,"3,376.24",SB TRAVEL.
Resources,I.C.T. Services,Transport,235057,Public Transport,07-Jun-2016,3137370-110666,590.00,ARRIVA NORTH EAST LTD.
Resources,Legal & Democratic Services,Supplies and Services,338042,Services,07-Jun-2016,3137634-314975/INVDEC46,"5,760.00",MISS DIANE CAMPBELL.
Resources,Legal & Democratic Services,Supplies and Services,338042,Services,07-Jun-2016,3137636-319257/INVSW286,"1,800.00",MISS SARAH WOOLRICH.
Resources,Legal & Democratic Services,Supplies and Services,338042,Services,07-Jun-2016,3137638-316844/INVSEB197,600.00,(USE 174114) MISS SUSAN BOOTHROYD.
Resources,Legal & Democratic Services,Supplies and Services,338042,Services,07-Jun-2016,3137638-321964/INVSEB1100,"1,020.00",(USE 174114) MISS SUSAN BOOTHROYD.
Resources,Legal & Democratic Services,Supplies and Services,338042,Services,07-Jun-2016,3137645-322302/INVCSM200,660.00,MR CHARLES MCCAIN.
Resources,Legal & Democratic Services,Supplies and Services,338042,Services,07-Jun-2016,3137657-317714/INVSPA99,540.00,MR STEPHEN AINSLEY.
Children and Adult Services,Education,Supplies and Services,338027,Services,08-Jun-2016,303802-SPRINGHALFTERM2016,"1,859.13",ROSSMERE PRIMARY SCHOOL.
Children and Adult Services,Head of Adults,Supplies and Services,338045,Services,08-Jun-2016,3138160-321456/INVCSM199,"1,080.00",MCC
Children and Adult Services,Education,Transport,230008,Contract Hire,08-Jun-2016,3137937-BIL0079-27/5/16,"1,583.65",CA MUSGROVE.
Children and Adult Services,Childrens Services,Supplies and Services,364310,Grants to Voluntary Organisations,08-Jun-2016,3138177-CAS-06-2016-096,795.20,REDACTED - PAYMENT TO INDIVIDUAL
Children and Adult Services,Childrens Services,Supplies and Services,364310,Grants to Voluntary Organisations,08-Jun-2016,3138281-CAS-06-2016-086,541.32,REDACTED - PAYMENT TO INDIVIDUAL
Children and Adult Services,Education,Transport,230007,Contract Hire,08-Jun-2016,3137973-DCC/4029/MAY16,"1,890.50",COUNTY COACHES.
Children and Adult Services,Education,Transport,230008,Contract Hire,08-Jun-2016,3137908-10MAY16,"1,622.79",BEELINE PRIVATE HIRE.
Children and Adult Services,Childrens Services,Supplies and Services,384302,Miscellaneous Expenses,08-Jun-2016,3138219-SUMMERPROGRAM,"1,000.00",PELTON COMMUNITY ASSOCIATION.
Children and Adult Services,Education,Transport,230007,Contract Hire,08-Jun-2016,3137885-SAS0516ESH/2,551.00,AIRPORT CARS DURHAM
Children and Adult Services,Education,Transport,230007,Contract Hire,08-Jun-2016,3137876-588-27/5/16,950.00,AC TAXIS.
Children and Adult Services,Education,Transport,230006,Contract Hire,08-Jun-2016,3137908-MAY16,"1,336.27",BEELINE PRIVATE HIRE.
Children and Adult Services,Education,Transport,230008,Contract Hire,08-Jun-2016,3137952-KJ039-MAY16,"1,187.31",CHIPPERS TAXIS.
Children and Adult Services,Education,Transport,230008,Contract Hire,08-Jun-2016,3138166-107-Z-54-79,"2,229.46",MR GS ANDERSON.
Children and Adult Services,Education,Transport,230007,Contract Hire,08-Jun-2016,3137885-SAS0516ESH,855.00,AIRPORT CARS DURHAM
Children and Adult Services,Education,Transport,230008,Contract Hire,08-Jun-2016,3137900-DCC10MAY16,"1,520.00",ATLAS TAXIS BISHOP AUCKLAND.
Children and Adult Services,Education,Transport,230006,Contract Hire,08-Jun-2016,3137900-DCC13MAY16,"1,280.00",ATLAS TAXIS BISHOP AUCKLAND.
Children and Adult Services,Education,Transport,230008,Contract Hire,08-Jun-2016,3137990-OSAMAY1601,"1,918.05",DALELINK PRIVATE HIRE.
Children and Adult Services,Education,Transport,230008,Contract Hire,08-Jun-2016,3138161-WAL1/05-16,"1,916.15",MR CT WALKER T/A COLIN`S TAXIS.
Children and Adult Services,Education,Transport,230008,Contract Hire,08-Jun-2016,3138161-WAL2/05-16,"2,090.00",MR CT WALKER T/A COLIN`S TAXIS.
Children and Adult Services,Public Health,Supplies and Services,384155,Miscellaneous Expenses,08-Jun-2016,3138194-1000048284,"70,059.90",NHS BUSINESS SERVICES AUTHORITY.
Children and Adult Services,Education,Transport,230008,Contract Hire,08-Jun-2016,3137900-DCC2MAY16,"2,267.08",ATLAS TAXIS BISHOP AUCKLAND.
Children and Adult Services,Education,Transport,230008,Contract Hire,08-Jun-2016,3137900-DCC4MAY16,"1,995.00",ATLAS TAXIS BISHOP AUCKLAND.
Children and Adult Services,Education,Transport,230007,Contract Hire,08-Jun-2016,3137900-DCC5MAY16,570.00,ATLAS TAXIS BISHOP AUCKLAND.
Children and Adult Services,Education,Transport,230008,Contract Hire,08-Jun-2016,3137900-DCC7MAY16,"1,900.00",ATLAS TAXIS BISHOP AUCKLAND.
Children and Adult Services,Education,Transport,230008,Contract Hire,08-Jun-2016,3137900-DCC8MAY16,"1,445.00",ATLAS TAXIS BISHOP AUCKLAND.
Children and Adult Services,Education,Transport,230008,Contract Hire,08-Jun-2016,3137984-G/HEAD016,"1,350.00",D IRVING T/A BJ TAXIS.
Children and Adult Services,Education,Transport,230008,Contract Hire,08-Jun-2016,3138028-E014/0516,"1,518.10",ELLIOTTS OF TRIMDON.
Children and Adult Services,Education,Transport,230008,Contract Hire,08-Jun-2016,3138028-E112/0516,"1,292.00",ELLIOTTS OF TRIMDON.
Children and Adult Services,Education,Transport,230006,Contract Hire,08-Jun-2016,3138028-F643/0516,681.00,ELLIOTTS OF TRIMDON.
Children and Adult Services,Education,Transport,230006,Contract Hire,08-Jun-2016,3138098-25/05/16A,"1,342.73",JL EBDON.
Children and Adult Services,Education,Transport,230008,Contract Hire,08-Jun-2016,3138098-25/05/16B,"2,377.05",JL EBDON.
Children and Adult Services,Education,Transport,230008,Contract Hire,08-Jun-2016,3138098-25/05/16C,"1,150.83",JL EBDON.
Children and Adult Services,Education,Transport,230008,Contract Hire,08-Jun-2016,3138098-25/05/16D,"1,342.73",JL EBDON.
Children and Adult Services,Education,Transport,230008,Contract Hire,08-Jun-2016,3138098-25/05/16E,"1,393.08",JL EBDON.
Children and Adult Services,Education,Transport,230008,Contract Hire,08-Jun-2016,3138098-25/05/16G,"1,007.00",JL EBDON.
Children and Adult Services,Education,Transport,230008,Contract Hire,08-Jun-2016,3138098-25/05/16H,"1,007.00",JL EBDON.
Dedicated Schools Grant,Dedicated Schools Grant,Transport,230010,Contract Hire,08-Jun-2016,3138166-108A-5580,"1,681.50",MR GS ANDERSON.
Children and Adult Services,Education,Transport,230007,Contract Hire,08-Jun-2016,3137920-29-MAY16,760.00,BL TAXIS.
Children and Adult Services,Education,Transport,230008,Contract Hire,08-Jun-2016,3137964-E0420516,"3,180.00",COLIN FRANKS T/A FRANKS COACHES.
Children and Adult Services,Education,Transport,230008,Contract Hire,08-Jun-2016,3137986-DI201605,"1,500.00",D&I TAXIS.
Children and Adult Services,Education,Transport,230008,Contract Hire,08-Jun-2016,3137998-0516/001,"1,341.78",DCM TAXIS.
Children and Adult Services,Education,Transport,230008,Contract Hire,08-Jun-2016,3138039-A060-020,617.50,FERRYHILL VILLAGE TRAVEL.
Children and Adult Services,Education,Transport,230008,Contract Hire,08-Jun-2016,3138039-E046-020,"2,562.00",FERRYHILL VILLAGE TRAVEL.
Children and Adult Services,Education,Transport,230008,Contract Hire,08-Jun-2016,3138039-N071-030,"3,396.00",FERRYHILL VILLAGE TRAVEL.
Children and Adult Services,Education,Transport,230008,Contract Hire,08-Jun-2016,3138039-S007-042,"2,193.00",FERRYHILL VILLAGE TRAVEL.
Children and Adult Services,Education,Transport,230008,Contract Hire,08-Jun-2016,3138039-W131-020,978.50,FERRYHILL VILLAGE TRAVEL.
Children and Adult Services,Education,Transport,230008,Contract Hire,08-Jun-2016,3138058-W082/042,"1,530.25",GMC TAXIS NORTH EAST.
Children and Adult Services,Education,Transport,230008,Contract Hire,08-Jun-2016,3138058-W084/042,"1,695.96",GMC TAXIS NORTH EAST.
Children and Adult Services,Education,Transport,230008,Contract Hire,08-Jun-2016,3138162-2014-228,"2,193.74",MR D KEMP T/A ACE EXECUTIVE.
Children and Adult Services,Childrens Services,Supplies and Services,384540,Miscellaneous Expenses,08-Jun-2016,3138191-15071949,"1,277.00",NEWSQUEST (YORKSHIRE & NORTH EAST) LTD.
Children and Adult Services,Education,Transport,230008,Contract Hire,08-Jun-2016,3137870-A220776,"1,697.65",A MURRAY TRAVEL.
Children and Adult Services,Education,Transport,230013,Contract Hire,08-Jun-2016,3137916-C/N4319,912.00,BIG MAMMA`S EXPRESS.
Children and Adult Services,Education,Transport,230008,Contract Hire,08-Jun-2016,3137929-BZ00190,"1,482.00",BREZ`S TAXIS.
Children and Adult Services,Education,Transport,230008,Contract Hire,08-Jun-2016,3137961-16-SC21,"1,038.00",CLUBMAN CABS.
Dedicated Schools Grant,Dedicated Schools Grant,Transport,230010,Contract Hire,08-Jun-2016,3137965-0001695,855.00,COLORS TAXIS LTD.
Children and Adult Services,Education,Transport,230006,Contract Hire,08-Jun-2016,3137965-0001696,"1,900.00",COLORS TAXIS LTD.
Children and Adult Services,Education,Transport,230008,Contract Hire,08-Jun-2016,3138165-0304806,"1,460.15",MR GN ROBBINS T/A GNR MINIBUS HIRE.
Children and Adult Services,Education,Transport,230008,Contract Hire,08-Jun-2016,3138165-0304807,"1,637.80",MR GN ROBBINS T/A GNR MINIBUS HIRE.
Children and Adult Services,Education,Transport,230008,Contract Hire,08-Jun-2016,3138325-0001205,"2,219.01",WATSON OF SPENNYMOOR.
Children and Adult Services,Education,Transport,230008,Contract Hire,08-Jun-2016,303733-M047/31,"1,520.00",C STEWART.
Children and Adult Services,Head of Adults,Supplies and Services,338045,Services,08-Jun-2016,3137865-205328,"1,050.00",39 ESSEX CHAMBERS.
Children and Adult Services,Education,Transport,230008,Contract Hire,08-Jun-2016,3137873-AA1218,"1,632.10",AA MINIBUS HIRE.
Children and Adult Services,Education,Transport,230008,Contract Hire,08-Jun-2016,3137873-AA1219,"1,584.22",AA MINIBUS HIRE.
Children and Adult Services,Education,Transport,230008,Contract Hire,08-Jun-2016,3137873-AA1220,"1,222.20",AA MINIBUS HIRE.
Children and Adult Services,Education,Transport,230008,Contract Hire,08-Jun-2016,3137875-5/1/16,"1,354.70",ABA TAXIS.
Children and Adult Services,Education,Transport,230008,Contract Hire,08-Jun-2016,3137886-266144,"1,121.00",ALAN SOUTHERN T/A ALANS TAXIS PELTON FELL.
Children and Adult Services,Education,Transport,230008,Contract Hire,08-Jun-2016,3137886-388144,760.00,ALAN SOUTHERN T/A ALANS TAXIS PELTON FELL.
Children and Adult Services,Education,Transport,230008,Contract Hire,08-Jun-2016,3137886-388244,"1,415.50",ALAN SOUTHERN T/A ALANS TAXIS PELTON FELL.
Children and Adult Services,Education,Transport,230006,Contract Hire,08-Jun-2016,3137892-DC5/16,"1,140.00",ANDY`S TAXIS.
Children and Adult Services,Education,Transport,230008,Contract Hire,08-Jun-2016,3137902-270506,"2,000.32",AVALON TAXIS.
Children and Adult Services,Education,Transport,230007,Contract Hire,08-Jun-2016,3137936-326009,570.00,C & R TAXIS.
Children and Adult Services,Education,Transport,230008,Contract Hire,08-Jun-2016,3137936-W01709,931.00,C & R TAXIS.
Children and Adult Services,Education,Transport,230008,Contract Hire,08-Jun-2016,3137936-W12009,741.00,C & R TAXIS.
Children and Adult Services,Education,Transport,230007,Contract Hire,08-Jun-2016,3137963-C/9203,"6,053.78",COCHRANES T/A KELVIN TRAVEL.
Children and Adult Services,Education,Transport,230007,Contract Hire,08-Jun-2016,3137963-C/9204,"3,299.54",COCHRANES T/A KELVIN TRAVEL.
Children and Adult Services,Education,Transport,230007,Contract Hire,08-Jun-2016,3137963-C/9205,"2,644.99",COCHRANES T/A KELVIN TRAVEL.
Children and Adult Services,Education,Transport,230007,Contract Hire,08-Jun-2016,3137963-C/9206,"4,756.84",COCHRANES T/A KELVIN TRAVEL.
Children and Adult Services,Education,Transport,230007,Contract Hire,08-Jun-2016,3137963-C/9207,"2,850.00",COCHRANES T/A KELVIN TRAVEL.
Children and Adult Services,Education,Transport,230008,Contract Hire,08-Jun-2016,3138059-000021,"1,248.00",GP TAXIS.
Children and Adult Services,Education,Transport,230008,Contract Hire,08-Jun-2016,3138109-010516,"1,770.26",KEVIN EDMUNDSON.
Children and Adult Services,Planning & Service Strategy,Supplies and Services,308011,Furniture,08-Jun-2016,3138134-288651,600.00,LOW FELL REMOVALS.
Children and Adult Services,Education,Transport,230007,Contract Hire,08-Jun-2016,3138144-051613,"1,044.00",MARK & JOHN CHISHOLM T/A (CHEVRON).
Children and Adult Services,Education,Transport,230008,Contract Hire,08-Jun-2016,3138144-051614,"1,120.00",MARK & JOHN CHISHOLM T/A (CHEVRON).
Children and Adult Services,Education,Transport,230006,Contract Hire,08-Jun-2016,3138147-380516,"1,710.00",MARK MUSGROVE T/A MARKS TAXIS.
Children and Adult Services,Education,Transport,230008,Contract Hire,08-Jun-2016,3138147-480516,874.00,MARK MUSGROVE T/A MARKS TAXIS.
Children and Adult Services,Childrens Services,Third Party Payments,425040,Rendered by Voluntary Organisations,08-Jun-2016,3138288-182587,730.03,SWIIS FOSTER CARE LTD.
Children and Adult Services,Education,Transport,230007,Contract Hire,08-Jun-2016,3138290-40505A,"3,540.32",T MOORE & SON.
Children and Adult Services,Education,Transport,230007,Contract Hire,08-Jun-2016,3137958-45413,"1,342.73",CJ GRIERSON T/A GRIERSONS COACHES.
Children and Adult Services,Education,Transport,230007,Contract Hire,08-Jun-2016,3137958-45414,"4,603.32",CJ GRIERSON T/A GRIERSONS COACHES.
Children and Adult Services,Education,Transport,230007,Contract Hire,08-Jun-2016,3137958-45415,"2,014.00",CJ GRIERSON T/A GRIERSONS COACHES.
Children and Adult Services,Education,Transport,230007,Contract Hire,08-Jun-2016,3137958-45416,"2,660.00",CJ GRIERSON T/A GRIERSONS COACHES.
Children and Adult Services,Education,Transport,230007,Contract Hire,08-Jun-2016,3137958-45417,"2,375.00",CJ GRIERSON T/A GRIERSONS COACHES.
Children and Adult Services,Education,Transport,230007,Contract Hire,08-Jun-2016,3137958-45418,"2,470.00",CJ GRIERSON T/A GRIERSONS COACHES.
Children and Adult Services,Education,Transport,230007,Contract Hire,08-Jun-2016,3137958-45419,"4,756.84",CJ GRIERSON T/A GRIERSONS COACHES.
Children and Adult Services,Education,Transport,230007,Contract Hire,08-Jun-2016,3138011-22870,"2,473.04",DURHAM CITY COACHES.
Children and Adult Services,Education,Transport,230007,Contract Hire,08-Jun-2016,3138011-22871,"2,565.00",DURHAM CITY COACHES.
Children and Adult Services,Education,Transport,230007,Contract Hire,08-Jun-2016,3138049-18367,"21,479.50",GARNETTS LTD (COACHES).
Children and Adult Services,Education,Construction Work,908105,Construction work,08-Jun-2016,3138135-33982,800.00,LUCION ENVIRONMENTAL LLP LTD.
Children and Adult Services,Education,Supplies and Services,338027,Services,08-Jun-2016,3138197-10179,525.00,NORMA APPLEBY EARLY YEARS CONSULTANCY LTD.
Children and Adult Services,Education,Supplies and Services,338027,Services,08-Jun-2016,3138197-10182,525.00,NORMA APPLEBY EARLY YEARS CONSULTANCY LTD.
Children and Adult Services,Education,Transport,230007,Contract Hire,08-Jun-2016,3138330-DC109,"1,140.00",WHITTONSTALL TAXIS SERVICE.
Children and Adult Services,Education,Transport,230006,Contract Hire,08-Jun-2016,303740-AA015,"2,755.00",COUNDON TAXIS.
Children and Adult Services,Education,Transport,230008,Contract Hire,08-Jun-2016,3137903-0007,672.00,AVENUE TAXIS.
Children and Adult Services,Education,Transport,230008,Contract Hire,08-Jun-2016,3137919-0005,760.00,BL CARS.
Children and Adult Services,Education,Transport,230008,Contract Hire,08-Jun-2016,3137924-1408,"1,602.65",BOBBY DOVE.
Children and Adult Services,Education,Transport,230006,Contract Hire,08-Jun-2016,3137924-1409,"3,166.54",BOBBY DOVE.
Children and Adult Services,Education,Transport,230008,Contract Hire,08-Jun-2016,3137952-CB09,570.00,CHIPPERS TAXIS.
Children and Adult Services,Education,Transport,230006,Contract Hire,08-Jun-2016,3137968-1040,"1,786.00",CONNORS MINI BUSES.
Children and Adult Services,Education,Transport,230008,Contract Hire,08-Jun-2016,3137968-1042,"1,720.00",CONNORS MINI BUSES.
Children and Adult Services,Education,Transport,230008,Contract Hire,08-Jun-2016,3137968-1043,"1,482.00",CONNORS MINI BUSES.
Children and Adult Services,Education,Transport,230008,Contract Hire,08-Jun-2016,3137968-1044,"2,451.00",CONNORS MINI BUSES.
Children and Adult Services,Education,Transport,230007,Contract Hire,08-Jun-2016,3137977-5988,931.32,CROFT BUSINESS SERVICES (UK) LTD T/A CROFT TAXIS.
Children and Adult Services,Education,Transport,230007,Contract Hire,08-Jun-2016,3137977-6063,776.10,CROFT BUSINESS SERVICES (UK) LTD T/A CROFT TAXIS.
Children and Adult Services,Education,Transport,230007,Contract Hire,08-Jun-2016,3137977-6152,879.58,CROFT BUSINESS SERVICES (UK) LTD T/A CROFT TAXIS.
Children and Adult Services,Education,Transport,230008,Contract Hire,08-Jun-2016,3137977-6160,"1,479.53",CROFT BUSINESS SERVICES (UK) LTD T/A CROFT TAXIS.
Children and Adult Services,Education,Transport,230008,Contract Hire,08-Jun-2016,3137977-6161,"2,636.06",CROFT BUSINESS SERVICES (UK) LTD T/A CROFT TAXIS.
Children and Adult Services,Education,Transport,230008,Contract Hire,08-Jun-2016,3137977-6180,"1,901.40",CROFT BUSINESS SERVICES (UK) LTD T/A CROFT TAXIS.
Children and Adult Services,Education,Transport,230008,Contract Hire,08-Jun-2016,3137987-1468,"1,121.00",DA TAXIS.
Children and Adult Services,Education,Transport,230008,Contract Hire,08-Jun-2016,3137987-1469,"1,054.88",DA TAXIS.
Children and Adult Services,Education,Transport,230008,Contract Hire,08-Jun-2016,3137987-1470,"1,927.13",DA TAXIS.
Children and Adult Services,Education,Transport,230008,Contract Hire,08-Jun-2016,3137987-1471,"1,302.73",DA TAXIS.
Children and Adult Services,Education,Transport,230008,Contract Hire,08-Jun-2016,3137993-2830,"1,623.17",DAVES MINIBUSES.
Children and Adult Services,Education,Transport,230008,Contract Hire,08-Jun-2016,3137993-2831,"1,451.41",DAVES MINIBUSES.
Children and Adult Services,Education,Transport,230008,Contract Hire,08-Jun-2016,3137993-2832,"2,014.00",DAVES MINIBUSES.
Children and Adult Services,Education,Transport,230008,Contract Hire,08-Jun-2016,3137993-2833,"1,900.00",DAVES MINIBUSES.
Children and Adult Services,Education,Transport,230008,Contract Hire,08-Jun-2016,3137993-2834,880.00,DAVES MINIBUSES.
Children and Adult Services,Education,Transport,230008,Contract Hire,08-Jun-2016,3137996-0024,"2,850.00",DAVID WALKER TAXIS.
Children and Adult Services,Head of Adults,Third Party Payments,478151,Purchase of Care,08-Jun-2016,3137999-1-31,"5,185.85",DEACONSTAR LTD.
Children and Adult Services,Head of Adults,Third Party Payments,478151,Purchase of Care,08-Jun-2016,3137999-2-31,"3,050.50",DEACONSTAR LTD.
Children and Adult Services,Education,Transport,230007,Contract Hire,08-Jun-2016,3138011-7409,"20,315.60",DURHAM CITY COACHES.
Children and Adult Services,Education,Transport,230007,Contract Hire,08-Jun-2016,3138031-0689,859.37,EN ROUTE TRAVEL.
Children and Adult Services,Education,Transport,230008,Contract Hire,08-Jun-2016,3138031-0690,"1,527.22",EN ROUTE TRAVEL.
Children and Adult Services,Head of Adults,Third Party Payments,478151,Purchase of Care,08-Jun-2016,3138034-9412,"2,567.96",ESSENTIAL CARE & SUPPORT LTD.
Children and Adult Services,Education,Transport,230008,Contract Hire,08-Jun-2016,3138090-1655,600.00,J YOUNG T/A VIP TAXIS.
Children and Adult Services,Education,Transport,230008,Contract Hire,08-Jun-2016,3138090-1674,722.00,J YOUNG T/A VIP TAXIS.
Children and Adult Services,Education,Transport,230008,Contract Hire,08-Jun-2016,3138090-1676,954.94,J YOUNG T/A VIP TAXIS.
Children and Adult Services,Education,Transport,230008,Contract Hire,08-Jun-2016,3138090-1678,912.00,J YOUNG T/A VIP TAXIS.
Children and Adult Services,Education,Transport,230008,Contract Hire,08-Jun-2016,3138090-1679,912.00,J YOUNG T/A VIP TAXIS.
Children and Adult Services,Education,Transport,230007,Contract Hire,08-Jun-2016,3138090-1680,"1,102.00",J YOUNG T/A VIP TAXIS.
Children and Adult Services,Education,Transport,230007,Contract Hire,08-Jun-2016,3138090-1681,592.00,J YOUNG T/A VIP TAXIS.
Children and Adult Services,Education,Transport,230008,Contract Hire,08-Jun-2016,3138090-1682,"1,140.00",J YOUNG T/A VIP TAXIS.
Children and Adult Services,Education,Transport,230008,Contract Hire,08-Jun-2016,3138090-1684,"1,482.00",J YOUNG T/A VIP TAXIS.
Children and Adult Services,Education,Transport,230008,Contract Hire,08-Jun-2016,3138090-1685,836.00,J YOUNG T/A VIP TAXIS.
Children and Adult Services,Education,Transport,230008,Contract Hire,08-Jun-2016,3138090-1693,900.00,J YOUNG T/A VIP TAXIS.
Children and Adult Services,Education,Transport,230007,Contract Hire,08-Jun-2016,3138121-2045,"12,060.90",LEE`S COACHES LTD.
Children and Adult Services,Education,Transport,230008,Contract Hire,08-Jun-2016,3138130-2629,"1,670.00",LOCAL TRANSPORT LTD.
Dedicated Schools Grant,Dedicated Schools Grant,Supplies and Services,304259,Equipment and Materials,08-Jun-2016,3138136-5678,604.00,LYNCH HEALTHCARE LTD.
Children and Adult Services,Education,Transport,230008,Contract Hire,08-Jun-2016,3138171-0004,"1,748.00",MR PM MULLEN T/A CATHEDRAL TAXIS.
Children and Adult Services,Education,Transport,230008,Contract Hire,08-Jun-2016,3138173-2911,"2,098.74",MR S BOWERS.
Children and Adult Services,Education,Transport,230008,Contract Hire,08-Jun-2016,3138173-2912,"1,451.41",MR S BOWERS.
Children and Adult Services,Education,Transport,230008,Contract Hire,08-Jun-2016,3138173-2913,997.12,MR S BOWERS.
Children and Adult Services,Education,Transport,230008,Contract Hire,08-Jun-2016,3138225-1172,"1,102.00",PODA LTD.
Children and Adult Services,Education,Supplies and Services,338035,Services,08-Jun-2016,3138246-7897,"1,691.50",ROCKSCHOOL LTD.
Children and Adult Services,Education,Transport,230007,Contract Hire,08-Jun-2016,3138327-5455,613.70,WEARDALE PRIVATE HIRE.
Children and Adult Services,Education,Transport,230007,Contract Hire,08-Jun-2016,3138327-5456,"4,185.51",WEARDALE PRIVATE HIRE.
Children and Adult Services,Education,Transport,230007,Contract Hire,08-Jun-2016,3138327-5457,"3,455.91",WEARDALE PRIVATE HIRE.
Children and Adult Services,Education,Transport,230004,Contract Hire,08-Jun-2016,3138327-5459,"1,501.00",WEARDALE PRIVATE HIRE.
Children and Adult Services,Education,Transport,230007,Contract Hire,08-Jun-2016,3137880-521,576.00,ADAMSONS TAXIS.
Children and Adult Services,Education,Transport,230008,Contract Hire,08-Jun-2016,3137907-532,"1,474.40",BEELINE MINI BUSES.
Children and Adult Services,Education,Transport,230008,Contract Hire,08-Jun-2016,3137907-533,"1,432.22",BEELINE MINI BUSES.
Children and Adult Services,Education,Transport,230008,Contract Hire,08-Jun-2016,3137914-120,"1,852.20",BG TAXIS.
Children and Adult Services,Education,Transport,230007,Contract Hire,08-Jun-2016,3137985-179,646.00,D MCDONNELL.
Children and Adult Services,Education,Transport,230006,Contract Hire,08-Jun-2016,3137988-184,"1,023.00",DA TRAVEL.
Children and Adult Services,Education,Transport,230008,Contract Hire,08-Jun-2016,3137988-186,"1,235.00",DA TRAVEL.
Children and Adult Services,Education,Transport,230008,Contract Hire,08-Jun-2016,3137994-116,665.00,DAVES TAXIS.
Children and Adult Services,Head of Adults,Third Party Payments,478151,Purchase of Care,08-Jun-2016,3137999-1-6,"5,595.48",DEACONSTAR LTD.
Children and Adult Services,Head of Adults,Third Party Payments,478151,Purchase of Care,08-Jun-2016,3137999-2-6,"2,543.40",DEACONSTAR LTD.
Children and Adult Services,Education,Transport,230008,Contract Hire,08-Jun-2016,3138007-108,931.00,DEXTERS PRIVATE HIRE.
Children and Adult Services,Education,Transport,230008,Contract Hire,08-Jun-2016,3138007-215,570.00,DEXTERS PRIVATE HIRE.
Children and Adult Services,Education,Transport,230007,Contract Hire,08-Jun-2016,3138007-720,"1,064.00",DEXTERS PRIVATE HIRE.
Children and Adult Services,Education,Transport,230006,Contract Hire,08-Jun-2016,3138044-005,"1,505.00",FONACAB DURHAM.
Children and Adult Services,Education,Transport,230008,Contract Hire,08-Jun-2016,3138116-4AB,"1,615.00",L & R PRIVATE HIRE.
Children and Adult Services,Education,Transport,230007,Contract Hire,08-Jun-2016,3138172-901,"1,080.00",MR REES WILKINSON T/A B & L MINIBUS HIRE.
Children and Adult Services,Education,Transport,230007,Contract Hire,08-Jun-2016,3138172-911,760.00,MR REES WILKINSON T/A B & L MINIBUS HIRE.
Children and Adult Services,Education,Transport,230008,Contract Hire,08-Jun-2016,3138179-189,"1,748.00",NEVILLE FORBES T/A FORBES TAXIS.
Children and Adult Services,Childrens Services,Supplies and Services,364352,Grants to Voluntary Organisations,08-Jun-2016,303736-865,700.00,CITY OF SUNDERLAND YMCA LTD.
Children and Adult Services,Childrens Services,Supplies and Services,364352,Grants to Voluntary Organisations,08-Jun-2016,303736-890,700.00,CITY OF SUNDERLAND YMCA LTD.
Children and Adult Services,Education,Transport,230008,Contract Hire,08-Jun-2016,3137867-01,"1,221.89",A & P TAXIS.
Dedicated Schools Grant,Dedicated Schools Grant,Transport,230011,Contract Hire,08-Jun-2016,3137869-16,946.00,A HJ JOBLING T/A CASTLE TAXIS.
Children and Adult Services,Education,Transport,230007,Contract Hire,08-Jun-2016,3137917-09,"1,045.00",BILL`S TAXIS.
Children and Adult Services,Education,Transport,230008,Contract Hire,08-Jun-2016,3137950-19,"1,620.00",CHAPMAN TRAVEL.
Children and Adult Services,Education,Transport,230008,Contract Hire,08-Jun-2016,3137983-79,"1,150.83",D CROOK T/A CK TAXIS.
Children and Adult Services,Education,Transport,230008,Contract Hire,08-Jun-2016,3138139-20,"1,330.00",MALCOLM CARR T/A CARLY CABS.
Children and Adult Services,Education,Transport,230008,Contract Hire,08-Jun-2016,3138150-25,"1,567.50",MAURICE & SONS.
Children and Adult Services,Education,Transport,230007,Contract Hire,08-Jun-2016,3138159-20,720.00,MR BW YOUNG T/A ESH TAXIS.
Children and Adult Services,Education,Third Party Payments,440999,Other Third Party Payments,08-Jun-2016,3138041-4,"8,096.00",FIRST POINT TRAINING T/A POSITIVE DIRECTIONS.
Assistant Chief Executive,Policy & Communications Division,Supplies and Services,312010,Newspapers Books and Periodicals,08-Jun-2016,3138182-303519/0,"17,624.71",NATIONAL LEAFLET CO LTD.
Neighbourhood Services,Culture & Sport,Debtors,930178,Debtor - Consett Academy FM,08-Jun-2016,3138245-I/CONSETT38613,"12,423.05",ROBERTSON FACILITIES MANAGEMENT.
Neighbourhood Services,Technical Services,Third Party Payments,430100,Rendered by Private Contractors,08-Jun-2016,3138187-NC9/C445/BW,"15,024.84",NEDCO CONTRACTS (NE) LTD.
Neighbourhood Services,Direct Services,Supplies and Services,304221,Equipment and Materials,08-Jun-2016,3138022-059-185644,620.00,EDMUNDSON ELECTRICAL LTD.
Neighbourhood Services,Technical Services,Supplies and Services,338027,Services,08-Jun-2016,3138066-0040189701,"6,721.00",HARTLEPOOL BOROUGH COUNCIL.
Neighbourhood Services,Technical Services,Supplies and Services,304221,Equipment and Materials,08-Jun-2016,3138105-CNI24629/D,558.80,JT DOVE LTD.
Neighbourhood Services,Culture & Sport,Supplies and Services,384199,Miscellaneous Expenses,08-Jun-2016,3138146-4100538171,785.00,MARK IAN THOMPSON.
Neighbourhood Services,Direct Services,Third Party Payments,430100,Rendered by Private Contractors,08-Jun-2016,3138156-1353871813,708.50,MITCHELL POWERSYSTEMS.
Neighbourhood Services,Technical Services,Third Party Payments,430100,Rendered by Private Contractors,08-Jun-2016,3138204-DI20232018,"6,458.51",NORTHERN POWERGRID (NORTHEAST) LTD.
Neighbourhood Services,Technical Services,Supplies and Services,304047,Equipment and Materials,08-Jun-2016,3138204-DI20237616,"4,410.58",NORTHERN POWERGRID (NORTHEAST) LTD.
Neighbourhood Services,Projects and Business services,Supplies and Services,340001,Postages,08-Jun-2016,3138247-9052160670,"2,967.52",ROYAL MAIL GROUP PLC.
Neighbourhood Services,Technical Services,Supplies and Services,304221,Equipment and Materials,08-Jun-2016,3138291-9034398763,"1,666.56",TARMAC TRADING LTD.
Neighbourhood Services,Technical Services,Supplies and Services,304221,Equipment and Materials,08-Jun-2016,3138291-9034406916,"1,252.02",TARMAC TRADING LTD.
Neighbourhood Services,Technical Services,Stock,926900,Stock in hand-Inventory system,08-Jun-2016,3138292-9034398762,700.00,TARMAC TRADING LTD.
Neighbourhood Services,Technical Services,Supplies and Services,304358,Equipment and Materials,08-Jun-2016,3138089-1066/2016,704.00,J & JG GILL & SONS LTD.
Neighbourhood Services,Technical Services,Supplies and Services,304221,Equipment and Materials,08-Jun-2016,3138105-BII191409,807.52,JT DOVE LTD.
Neighbourhood Services,Culture & Sport,Supplies and Services,338047,Services,08-Jun-2016,3137881-O9869841,"1,360.00",ADASTRA.
Neighbourhood Services,Direct Services,Supplies and Services,304259,Equipment and Materials,08-Jun-2016,3137904-96284371,972.72,BALL COLEGRAVE LTD.
Neighbourhood Services,Direct Services,Stock,926004,Stock,08-Jun-2016,3137949-IN172441,642.05,CERTAS ENERGY UK LTD.
Neighbourhood Services,Direct Services,Stock,926004,Stock,08-Jun-2016,3138052-IN172569,"1,776.34",GB LUBRICANTS LTD.
Neighbourhood Services,Direct Services,Supplies and Services,304259,Equipment and Materials,08-Jun-2016,3138085-31841549,"1,040.13",INITIAL WASHROOM SOLUTIONS.
Neighbourhood Services,Direct Services,Third Party Payments,430100,Rendered by Private Contractors,08-Jun-2016,3138102-65238907,914.51,JOHNSTON SWEEPERS LTD.
Neighbourhood Services,Direct Services,Third Party Payments,430100,Rendered by Private Contractors,08-Jun-2016,3138113-15110001,"176,074.86",KIER SERVICES LTD - MAINTENANCE NORTH.
Neighbourhood Services,Direct Services,Third Party Payments,430100,Rendered by Private Contractors,08-Jun-2016,3138298-96326680,"2,613.91",TERBERG MATEC (UK) LTD.
Neighbourhood Services,Technical Services,Third Party Payments,430100,Rendered by Private Contractors,08-Jun-2016,3137906-1550009,"23,616.00",BCE NORTHERN LTD.
Neighbourhood Services,Technical Services,Employees,040149,Recruitment Instruction and Training,08-Jun-2016,3138201-SI-7153,"3,760.00",NORTH EAST ACCESS TRAINING LTD.
Neighbourhood Services,Direct Services,Third Party Payments,430100,Rendered by Private Contractors,08-Jun-2016,3138202-1380815,"3,947.73",NORTH EAST TRUCK & VAN LTD.
Neighbourhood Services,Culture & Sport,Supplies and Services,332029,Printing Stationery and Gen Off Exps,08-Jun-2016,3138309-2871455,500.00,TRINITY MIRROR PUBLISHING LTD.
Neighbourhood Services,Direct Services,Third Party Payments,430100,Rendered by Private Contractors,08-Jun-2016,3138314-1994/16,"1,161.00",UK VENTILATON LTD.
Neighbourhood Services,Direct Services,Stock,926004,Stock,08-Jun-2016,3137942-208942,705.21,CARRS BILLINGTON AGRICULTURE.
Neighbourhood Services,Direct Services,Transport,210057,Repair and Maintenance of Vehicles,08-Jun-2016,3138063-129803,782.54,GREENLAY (GRASS MACHINERY) LTD.
Neighbourhood Services,Culture & Sport,Supplies and Services,338047,Services,08-Jun-2016,3138064-FBC702,600.00,GROWLING CLOWN.
Neighbourhood Services,Technical Services,Third Party Payments,460151,Contract Payments,08-Jun-2016,3138087-532698,"1,066.00",INSTARMAC GROUP PLC.
Neighbourhood Services,Direct Services,Supplies and Services,304221,Equipment and Materials,08-Jun-2016,3138313-26233.,"2,175.00",UK CONTAINER MAINTENANCE LTD.
Neighbourhood Services,Direct Services,Third Party Payments,430100,Rendered by Private Contractors,08-Jun-2016,3138338-103157,757.68,ZOELLER WASTE SYSTEMS LTD.
Neighbourhood Services,Direct Services,Third Party Payments,430100,Rendered by Private Contractors,08-Jun-2016,3137871-80173,"3,461.00",A1 SHEET METAL FLUES LTD T/A A1 FLUE SYSTEMS.
Neighbourhood Services,Direct Services,Third Party Payments,430100,Rendered by Private Contractors,08-Jun-2016,3137887-06172,"1,144.80",ALL EVENTS SECURITY LTD (AES).
Neighbourhood Services,Direct Services,Third Party Payments,430100,Rendered by Private Contractors,08-Jun-2016,3137887-06184,"1,335.60",ALL EVENTS SECURITY LTD (AES).
Neighbourhood Services,Technical Services,Construction Work,908105,Construction work,08-Jun-2016,3138091-12536,"1,219.86",JACK COUPE & SONS LTD T/A COUPE LINE.
Neighbourhood Services,Technical Services,Construction Work,908105,Construction work,08-Jun-2016,3138091-12539,"1,842.53",JACK COUPE & SONS LTD T/A COUPE LINE.
Neighbourhood Services,Direct Services,Supplies and Services,304999,Equipment and Materials,08-Jun-2016,3138122-51062,669.50,LEISURETEQ.
Neighbourhood Services,Culture & Sport,Supplies and Services,304259,Equipment and Materials,08-Jun-2016,3138178-12794,"16,650.00",MY TIME ACTIVE.
Neighbourhood Services,Technical Services,Supplies and Services,304221,Equipment and Materials,08-Jun-2016,3138205-17955,"1,806.81",NORTHUMBRIAN ROADS LTD.
Neighbourhood Services,Culture & Sport,Supplies and Services,338047,Services,08-Jun-2016,3138208-51402,"1,221.67",OFF THE KERB PRODUCTIONS.
Neighbourhood Services,Technical Services,Supplies and Services,312009,Newspapers Books and Periodicals,08-Jun-2016,3138231-11167,700.00,PRINT & PROMOTIONAL SERVICES LTD.
Neighbourhood Services,Culture & Sport,Supplies and Services,338099,Services,08-Jun-2016,3137946-1055,"1,081.00",CATHEDRAL LOCK & SAFE SERVICES LTD.
Neighbourhood Services,Direct Services,Third Party Payments,430100,Rendered by Private Contractors,08-Jun-2016,3137946-1056,"1,480.26",CATHEDRAL LOCK & SAFE SERVICES LTD.
Neighbourhood Services,Direct Services,Third Party Payments,430100,Rendered by Private Contractors,08-Jun-2016,3137956-4595,660.00,CITY FABRICATIONS LTD.
Neighbourhood Services,Technical Services,Supplies and Services,304358,Equipment and Materials,08-Jun-2016,3138082-C293,"3,725.00",IAN WILSON.
Neighbourhood Services,Technical Services,Supplies and Services,304358,Equipment and Materials,08-Jun-2016,3138089-0026,"1,588.00",J & JG GILL & SONS LTD.
Neighbourhood Services,Direct Services,Supplies and Services,304403,Equipment and Materials,08-Jun-2016,3138224-9537,"1,409.50",PIXL ID LTD.
Neighbourhood Services,Direct Services,Third Party Payments,430100,Rendered by Private Contractors,08-Jun-2016,3138297-1789,"1,960.00",TEAM VALLEY TRANSMISSIONS LTD.
Neighbourhood Services,Direct Services,Third Party Payments,430100,Rendered by Private Contractors,08-Jun-2016,3138297-4821,"2,800.00",TEAM VALLEY TRANSMISSIONS LTD.
Neighbourhood Services,Technical Services,Supplies and Services,304358,Equipment and Materials,08-Jun-2016,3138337-5504,609.00,YOULL CONSTRUCTION LTD.
Neighbourhood Services,Technical Services,Supplies and Services,304358,Equipment and Materials,08-Jun-2016,3138337-5546,545.25,YOULL CONSTRUCTION LTD.
Neighbourhood Services,Technical Services,Third Party Payments,430128,Rendered by Private Contractors,08-Jun-2016,303731-75,"2,756.00",BRIAN LEE.
Regeneration & Economic Development,Economic Development and Housing,Cap Exp on Grants & Other Financial Assistance (REFCUS),918401,Capital grants,08-Jun-2016,3138188-RED-06-2016-020,"3,880.00",NEIL BELL PLUMBERS HEATING & GAS INS.
Regeneration & Economic Development,Economic Development and Housing,Supplies and Services,384700,Miscellaneous Expenses,08-Jun-2016,303806-RED-05-2016-227,"1,000.00",SHOTLEY JOINERY LTD.
Regeneration & Economic Development,Transport and Contracted Services,Third Party Payments,430100,Rendered by Private Contractors,08-Jun-2016,303741-CONCFAREPAY16,"1,028.05",CUMBRIA CLASSIC COACHES.
Regeneration & Economic Development,Transport and Contracted Services,Third Party Payments,440999,Other Third Party Payments,08-Jun-2016,3138312-INV/50286421,"3,867.15",TUNSTALL HEALTHCARE (UK) LTD.
Regeneration & Economic Development,Transport and Contracted Services,Third Party Payments,430106,Rendered by Private Contractors,08-Jun-2016,3138039-PUBLICSERV,"5,432.30",FERRYHILL VILLAGE TRAVEL.
Regeneration & Economic Development,Economic Development and Housing,Supplies and Services,372009,Subscriptions,08-Jun-2016,3137935-8251(B),"1,000.00",BUSINESS FUNDING RESEARCH LTD.
Regeneration & Economic Development,Spatial Policy Planning Assets & Environment,Premises,125009,Rents,08-Jun-2016,3137997-005RENT,"17,793.75",DAVISON PROPERTY INVESTMENTS LTD.
Regeneration & Economic Development,Transport and Contracted Services,Third Party Payments,430100,Rendered by Private Contractors,08-Jun-2016,3138206-038590,"25,315.47",NSL LTD.
Regeneration & Economic Development,Transport and Contracted Services,Third Party Payments,430100,Rendered by Private Contractors,08-Jun-2016,3138206-038593,"1,034.82",NSL LTD.
Regeneration & Economic Development,Transport and Contracted Services,Third Party Payments,430100,Rendered by Private Contractors,08-Jun-2016,3138206-038595,"41,884.90",NSL LTD.
Regeneration & Economic Development,Transport and Contracted Services,Third Party Payments,430100,Rendered by Private Contractors,08-Jun-2016,3138206-038596,"2,849.57",NSL LTD.
Regeneration & Economic Development,Transport and Contracted Services,Third Party Payments,430100,Rendered by Private Contractors,08-Jun-2016,3138206-038597,"6,585.05",NSL LTD.
Regeneration & Economic Development,Transport and Contracted Services,Third Party Payments,430100,Rendered by Private Contractors,08-Jun-2016,3138206-038599,"15,306.31",NSL LTD.
Regeneration & Economic Development,Transport and Contracted Services,Third Party Payments,430100,Rendered by Private Contractors,08-Jun-2016,3138206-038775,"8,477.15",NSL LTD.
Regeneration & Economic Development,Transport and Contracted Services,Third Party Payments,430100,Rendered by Private Contractors,08-Jun-2016,3138206-038776,"3,524.00",NSL LTD.
Regeneration & Economic Development,Transport and Contracted Services,Third Party Payments,430100,Rendered by Private Contractors,08-Jun-2016,3138206-038777,930.90,NSL LTD.
Regeneration & Economic Development,Spatial Policy Planning Assets & Environment,Premises,108099,Service Repairs and Maintenance,08-Jun-2016,3138269-2710C,624.00,SIGMA INSTALLATION SERVICES LTD.
Regeneration & Economic Development,Economic Development and Housing,Supplies and Services,384437,Miscellaneous Expenses,08-Jun-2016,303730-8846,"2,142.90",APPLE SCREENPRINT.
Resources,Legal & Democratic Services,Supplies and Services,338044,Services,08-Jun-2016,3137943-124125,"1,789.65",CARTER BROWN THE EXPERT SERVICE.
Resources,Legal & Democratic Services,Supplies and Services,338042,Services,08-Jun-2016,3138004-320269/INVBD92,"2,400.00",DERE STREET BARRISTERS.
Resources,Legal & Democratic Services,Supplies and Services,338042,Services,08-Jun-2016,3138004-321006/INVSPA103,540.00,DERE STREET BARRISTERS.
Resources,Legal & Democratic Services,Supplies and Services,338042,Services,08-Jun-2016,3138004-321687/INVSEB1101,"1,000.00",DERE STREET BARRISTERS.
Resources,Legal & Democratic Services,Supplies and Services,338042,Services,08-Jun-2016,3138004-321778/INVFM135,"1,150.00",DERE STREET BARRISTERS.
Resources,Legal & Democratic Services,Supplies and Services,338042,Services,08-Jun-2016,3138004-322032/INVTD278,"1,080.00",DERE STREET BARRISTERS.
Resources,Legal & Democratic Services,Supplies and Services,338042,Services,08-Jun-2016,3138004-322093/INVKL10,"2,160.00",DERE STREET BARRISTERS.
Resources,Legal & Democratic Services,Supplies and Services,338042,Services,08-Jun-2016,3138004-322446/INVFM136,"1,380.00",DERE STREET BARRISTERS.
Resources,Financial Services,Supplies and Services,384180,Miscellaneous Expenses,08-Jun-2016,3138133-0888385,"4,901.04",LOOMIS UK LTD.
Resources,I.C.T. Services,Supplies and Services,342051,Computers and Communications,08-Jun-2016,3138138-12822,"3,550.00",MAGIQUE GALILEO SOFTWARE LTD.
Resources,Legal & Democratic Services,Supplies and Services,338042,Services,08-Jun-2016,3138168-318113/INVMT175,540.00,MR MARTIN TODD.
Resources,I.C.T. Services,Supplies and Services,342051,Computers and Communications,08-Jun-2016,3138184-E930678,630.00,NCC SERVICES LTD.
Resources,I.C.T. Services,Supplies and Services,340001,Postages,08-Jun-2016,3138247-9052162482,"9,451.49",ROYAL MAIL GROUP PLC.
Dedicated Schools Grant,Dedicated Schools Grant,Transport,230010,Contract Hire,09-Jun-2016,3138704-1068-27/5/16-P073N,"1,120.00",LD TAXIS.
Children and Adult Services,Head of Adults,Transport,230005,Contract Hire,09-Jun-2016,3138395-5-31/5/16-CLS058,526.00,AXLE TAXIS.
Children and Adult Services,Childrens Services,Supplies and Services,364301,Grants to Voluntary Organisations,09-Jun-2016,3138580-CAS-06-2016-099,834.12,REDACTED - PAYMENT TO INDIVIDUAL
Children and Adult Services,Commissioning inc Supporting People,Transfer Payments,515210,Social Services Clients,09-Jun-2016,3138816-CAS-06-2016-098,"1,950.00",REDACTED - PAYMENT TO INDIVIDUAL
Children and Adult Services,Education,Transport,230006,Contract Hire,09-Jun-2016,3138605-GT009-31/5/16,558.00,GORDON`S TAXIS.
Children and Adult Services,Public Health,Third Party Payments,460803,Contract Payments,09-Jun-2016,3138844-1800007857693,"7,406.00",NEWCASTLE UPON TYNE CITY COUNCIL.
Children and Adult Services,Education,Transport,230008,Contract Hire,09-Jun-2016,3138657-E136-31/5/16,760.00,JAFFAS TAXIS.
Children and Adult Services,Education,Transport,230008,Contract Hire,09-Jun-2016,3139023-1062-26/5/16,965.96,WAYNE`S TAXIS.
Children and Adult Services,Education,Transport,230008,Contract Hire,09-Jun-2016,3139023-1063-26/5/16,"1,900.00",WAYNE`S TAXIS.
Children and Adult Services,Head of Adults,Transport,230005,Contract Hire,09-Jun-2016,3139023-1064-26/5/16,"1,200.00",WAYNE`S TAXIS.
Children and Adult Services,Head of Adults,Transport,230005,Contract Hire,09-Jun-2016,3138966-003-26/5/16,570.00,STEPHEN VALLANCE T/A SELECT CABS.
Children and Adult Services,Head of Adults,Transport,230005,Contract Hire,09-Jun-2016,3138391-DCC12MAY16,900.00,ATLAS TAXIS BISHOP AUCKLAND.
Children and Adult Services,Head of Adults,Transport,230005,Contract Hire,09-Jun-2016,3138391-DCC14MAY16,900.00,ATLAS TAXIS BISHOP AUCKLAND.
Children and Adult Services,Public Health,Third Party Payments,460802,Contract Payments,09-Jun-2016,3138473-3910009528,"41,774.00",CO DURHAM & DARLINGTON NHS FOUNDATION TRUST.
Children and Adult Services,Public Health,Third Party Payments,460802,Contract Payments,09-Jun-2016,3138473-3910009529,"41,774.00",CO DURHAM & DARLINGTON NHS FOUNDATION TRUST.
Children and Adult Services,Public Health,Third Party Payments,460802,Contract Payments,09-Jun-2016,3138473-3910009530,"277,500.00",CO DURHAM & DARLINGTON NHS FOUNDATION TRUST.
Children and Adult Services,Public Health,Third Party Payments,460802,Contract Payments,09-Jun-2016,3138473-3910009531,"277,500.00",CO DURHAM & DARLINGTON NHS FOUNDATION TRUST.
Children and Adult Services,Public Health,Third Party Payments,460802,Contract Payments,09-Jun-2016,3138473-3980017463,"277,500.00",CO DURHAM & DARLINGTON NHS FOUNDATION TRUST.
Children and Adult Services,Education,Transport,230008,Contract Hire,09-Jun-2016,3138690-09-31/5/16,912.00,KD TAXIS.
Children and Adult Services,Education,Transport,230008,Contract Hire,09-Jun-2016,3138825-12-27/5/16,"1,520.00",REDACTED - PAYMENT TO INDIVIDUAL
Children and Adult Services,Head of Adults,Transport,230005,Contract Hire,09-Jun-2016,3138391-DCC3MAY16,"2,051.00",ATLAS TAXIS BISHOP AUCKLAND.
Children and Adult Services,Education,Transport,230007,Contract Hire,09-Jun-2016,3138556-5182/0516,852.00,ELLIOTTS OF TRIMDON.
Children and Adult Services,Head of Adults,Transport,230005,Contract Hire,09-Jun-2016,3138574-WV079-026,850.00,FERRYHILL VILLAGE TRAVEL.
Children and Adult Services,Head of Adults,Transport,230005,Contract Hire,09-Jun-2016,3138604-WV091/037,909.00,GMC TAXIS NORTH EAST.
Children and Adult Services,Education,Transport,230008,Contract Hire,09-Jun-2016,3138630-4-27/5/16,"1,413.49",HENRYS TAXIS.
Children and Adult Services,Education,Transport,230008,Contract Hire,09-Jun-2016,3138690-9-27/5/16,"2,394.00",KD TAXIS.
Children and Adult Services,Education,Transport,230008,Contract Hire,09-Jun-2016,3138798-KDC010516,"2,902.25",MJ TIMNEY T/A KDC & C&M TAXIS.
Children and Adult Services,Head of Adults,Transport,230005,Contract Hire,09-Jun-2016,3138808-SLD010516,570.00,MR D DONNELLY.
Children and Adult Services,Childrens Services,Premises,108099,Service Repairs and Maintenance,09-Jun-2016,3138715-NE159346,649.20,LLOYD WORRALL (NEWCASTLE UPON TYNE) LTD.
Children and Adult Services,Head of Adults,Transport,230005,Contract Hire,09-Jun-2016,3138807-EDB05-16,"1,083.00",MR CT WALKER T/A COLIN`S TAXIS.
Children and Adult Services,Commissioning inc Supporting People,Third Party Payments,442002,Supporting People,09-Jun-2016,3138410-1964756,"16,448.04",BID SERVICES WITH DEAF PEOPLE.
Children and Adult Services,Commissioning inc Supporting People,Third Party Payments,442002,Supporting People,09-Jun-2016,3138456-1964782,"3,452.04",CHILDREN NORTH EAST.
Children and Adult Services,Commissioning inc Supporting People,Third Party Payments,442002,Supporting People,09-Jun-2016,3138495-1964711,"19,868.48",CREATIVE SUPPORT LTD.
Children and Adult Services,Commissioning inc Supporting People,Third Party Payments,442002,Supporting People,09-Jun-2016,3138518-1964708,"5,668.48",DISC LTD.
Children and Adult Services,Commissioning inc Supporting People,Third Party Payments,442002,Supporting People,09-Jun-2016,3138518-1964719,"27,885.68",DISC LTD.
Children and Adult Services,Commissioning inc Supporting People,Third Party Payments,441001,Supporting People,09-Jun-2016,3138527-1964720,"20,819.76",DURHAM ACTION ON SINGLE HOUSING.
Children and Adult Services,Commissioning inc Supporting People,Third Party Payments,443001,Supporting People,09-Jun-2016,3138527-1964721,"2,213.88",DURHAM ACTION ON SINGLE HOUSING.
Children and Adult Services,Commissioning inc Supporting People,Third Party Payments,443001,Supporting People,09-Jun-2016,3138527-1964724,"2,213.88",DURHAM ACTION ON SINGLE HOUSING.
Children and Adult Services,Commissioning inc Supporting People,Third Party Payments,441001,Supporting People,09-Jun-2016,3138539-1964730,"5,483.40",EAST DURHAM COMMUNITY INITIATIVES LTD.
Children and Adult Services,Commissioning inc Supporting People,Third Party Payments,442002,Supporting People,09-Jun-2016,3138582-1964792,"28,981.92",FOUNDATION.
Children and Adult Services,Commissioning inc Supporting People,Third Party Payments,442002,Supporting People,09-Jun-2016,3138583-1964718,"37,566.04",FOUR HOUSING GROUP & CARE & REPAIR HANDYPERSON SERVICE.
Children and Adult Services,Commissioning inc Supporting People,Third Party Payments,442002,Supporting People,09-Jun-2016,3138624-1964731,"5,995.44",HANOVER HOUSING ASSOCIATION.
Children and Adult Services,Commissioning inc Supporting People,Third Party Payments,441001,Supporting People,09-Jun-2016,3138625-1964712,"18,082.80",HARBOUR SUPPORT SERVICES.
Children and Adult Services,Education,Transport,230008,Contract Hire,09-Jun-2016,3138671-2016/08,851.20,JM HUMBLE COACH HIRE.
Children and Adult Services,Education,Transport,230008,Contract Hire,09-Jun-2016,3138671-2016/09,"1,297.70",JM HUMBLE COACH HIRE.
Children and Adult Services,Commissioning inc Supporting People,Third Party Payments,442002,Supporting People,09-Jun-2016,3138746-1964705,"5,469.72",MENTAL HEALTH MATTERS.
Children and Adult Services,Commissioning inc Supporting People,Third Party Payments,442002,Supporting People,09-Jun-2016,3138802-1964713,"5,240.36",MOVING ON.
Children and Adult Services,Education,Supplies and Services,312009,Newspapers Books and Periodicals,09-Jun-2016,3138869-1566523,"1,170.84",PETERS LTD.
Children and Adult Services,Commissioning inc Supporting People,Third Party Payments,444002,Supporting People,09-Jun-2016,3138904-1964690,"4,068.24",RICHMOND FELLOWSHIP.
Children and Adult Services,Commissioning inc Supporting People,Third Party Payments,441001,Supporting People,09-Jun-2016,3138904-1964706,"9,423.88",RICHMOND FELLOWSHIP.
Children and Adult Services,Commissioning inc Supporting People,Third Party Payments,442002,Supporting People,09-Jun-2016,3138904-1964717,"7,356.72",RICHMOND FELLOWSHIP.
Children and Adult Services,Commissioning inc Supporting People,Third Party Payments,442002,Supporting People,09-Jun-2016,3138942-1964714,"9,044.36",SHAID.
Children and Adult Services,Commissioning inc Supporting People,Third Party Payments,442002,Supporting People,09-Jun-2016,3138968-1964689,"146,378.32",STONHAM HOUSING ASSOCIATION LTD.
Children and Adult Services,Commissioning inc Supporting People,Third Party Payments,442002,Supporting People,09-Jun-2016,3138968-1964716,"29,343.52",STONHAM HOUSING ASSOCIATION LTD.
Children and Adult Services,Commissioning inc Supporting People,Third Party Payments,443001,Supporting People,09-Jun-2016,3138968-1964729,722.72,STONHAM HOUSING ASSOCIATION LTD.
Children and Adult Services,Commissioning inc Supporting People,Third Party Payments,443001,Supporting People,09-Jun-2016,3138968-1964734,"17,564.68",STONHAM HOUSING ASSOCIATION LTD.
Children and Adult Services,Commissioning inc Supporting People,Third Party Payments,443001,Supporting People,09-Jun-2016,3138968-1964739,"19,703.98",STONHAM HOUSING ASSOCIATION LTD.
Children and Adult Services,Commissioning inc Supporting People,Third Party Payments,442002,Supporting People,09-Jun-2016,3138968-1964774,"23,639.04",STONHAM HOUSING ASSOCIATION LTD.
Children and Adult Services,Commissioning inc Supporting People,Third Party Payments,441001,Supporting People,09-Jun-2016,3138968-1964775,"67,257.36",STONHAM HOUSING ASSOCIATION LTD.
Children and Adult Services,Commissioning inc Supporting People,Third Party Payments,441001,Supporting People,09-Jun-2016,3138985-1964757,"19,231.20",THE CYRENIANS LTD T/A CHANGING LIVES.
Children and Adult Services,Commissioning inc Supporting People,Third Party Payments,442002,Supporting People,09-Jun-2016,3138988-1964780,"9,289.44",THIRTEEN CARE & SUPPORT.
Children and Adult Services,Commissioning inc Supporting People,Third Party Payments,441001,Supporting People,09-Jun-2016,3138988-1964783,"7,510.04",THIRTEEN CARE & SUPPORT.
Children and Adult Services,Commissioning inc Supporting People,Third Party Payments,442002,Supporting People,09-Jun-2016,3138988-1964784,"1,519.52",THIRTEEN CARE & SUPPORT.
Children and Adult Services,Commissioning inc Supporting People,Third Party Payments,441001,Supporting People,09-Jun-2016,3138988-1964785,"7,776.68",THIRTEEN CARE & SUPPORT.
Children and Adult Services,Commissioning inc Supporting People,Third Party Payments,441001,Supporting People,09-Jun-2016,3138988-1964786,"23,518.04",THIRTEEN CARE & SUPPORT.
Children and Adult Services,Commissioning inc Supporting People,Third Party Payments,441001,Supporting People,09-Jun-2016,3139022-1964709,"1,183.60",WADDINGTON STREET CENTRE LTD.
Children and Adult Services,Commissioning inc Supporting People,Third Party Payments,443001,Supporting People,09-Jun-2016,3139022-1964732,930.08,WADDINGTON STREET CENTRE LTD.
Children and Adult Services,Commissioning inc Supporting People,Third Party Payments,441001,Supporting People,09-Jun-2016,3139025-1964715,"7,157.00",WEAR VALLEY WOMENS AID.
Children and Adult Services,Head of Adults,Employees,080025,Agency Staff,09-Jun-2016,3138513-331660,"129,776.76",DE POEL MANAGED SERVICES LTD.
Children and Adult Services,Public Health,Construction Work,908105,Construction work,09-Jun-2016,3138637-160501,"70,000.00",INITIAL DEVELOPMENTS (PROPERTIES LTD).
Children and Adult Services,Head of Adults,Transport,230005,Contract Hire,09-Jun-2016,3138738-430516,"1,292.00",MARK MUSGROVE T/A MARKS TAXIS.
Children and Adult Services,Head of Adults,Transport,230005,Contract Hire,09-Jun-2016,3138738-590516,"1,235.00",MARK MUSGROVE T/A MARKS TAXIS.
Children and Adult Services,Head of Adults,Construction Work,908105,Construction work,09-Jun-2016,3138885-PWG741,"2,542.32",PWG CONNECTIONS LTD.
Children and Adult Services,Education,Transport,230013,Contract Hire,09-Jun-2016,3139032-230516,780.00,WIL TRAVEL.
Children and Adult Services,Head of Adults,Supplies and Services,338367,Services,09-Jun-2016,3138436-31971,675.00,CARE ABILITY.
Children and Adult Services,Head of Adults,Supplies and Services,338366,Services,09-Jun-2016,3138436-31980,812.35,CARE ABILITY.
Children and Adult Services,Education,Transport,230007,Contract Hire,09-Jun-2016,3138594-18358,"2,666.08",GARNETTS LTD (COACHES).
Children and Adult Services,Education,Transport,230007,Contract Hire,09-Jun-2016,3138594-18359,"2,223.00",GARNETTS LTD (COACHES).
Children and Adult Services,Education,Transport,230007,Contract Hire,09-Jun-2016,3138594-18360,"11,742.57",GARNETTS LTD (COACHES).
Children and Adult Services,Education,Transport,230007,Contract Hire,09-Jun-2016,3138594-18362,"17,146.55",GARNETTS LTD (COACHES).
Children and Adult Services,Education,Transport,230007,Contract Hire,09-Jun-2016,3138594-18363,"2,474.37",GARNETTS LTD (COACHES).
Children and Adult Services,Education,Transport,230007,Contract Hire,09-Jun-2016,3138594-18365,"2,945.00",GARNETTS LTD (COACHES).
Children and Adult Services,Commissioning inc Supporting People,Third Party Payments,440151,Other Third Party Payments,09-Jun-2016,3138744-38182,"547,619.17",MEDEQUIP ASSISTIVE TECHNOLOGY LTD.
Children and Adult Services,Head of Adults,Transport,230005,Contract Hire,09-Jun-2016,3138496-6103,691.57,CROFT BUSINESS SERVICES (UK) LTD T/A CROFT TAXIS.
Children and Adult Services,Childrens Services,Supplies and Services,384199,Miscellaneous Expenses,09-Jun-2016,3138570-4788,540.00,FANE LTD.
Children and Adult Services,Planning & Service Strategy,Supplies and Services,338089,Services,09-Jun-2016,3138592-7546,"2,028.30",G-MAP SVS LTD.
Children and Adult Services,Education,Transport,230007,Contract Hire,09-Jun-2016,3138596-3229,"1,330.00",GEM TRAVEL.
Children and Adult Services,Education,Transport,230008,Contract Hire,09-Jun-2016,3138647-1672,680.00,J YOUNG T/A VIP TAXIS.
Children and Adult Services,Education,Transport,230004,Contract Hire,09-Jun-2016,3138674-0028,"1,045.00",JOHN WARE T/A J & K TAXIS.
Children and Adult Services,Education,Transport,230006,Contract Hire,09-Jun-2016,3138704-1066,"2,040.00",LD TAXIS.
Children and Adult Services,Education,Transport,230008,Contract Hire,09-Jun-2016,3138704-1067,"1,260.00",LD TAXIS.
Children and Adult Services,Education,Transport,230006,Contract Hire,09-Jun-2016,3138717-2672,600.00,LOCAL TRANSPORT LTD.
Children and Adult Services,Head of Adults,Transport,230005,Contract Hire,09-Jun-2016,3138975-1336,600.00,TALBOTS TAXIS.
Children and Adult Services,Head of Adults,Transport,230005,Contract Hire,09-Jun-2016,3139029-0516,630.00,WEST AUCKLAND TOWN TRAVEL (WATT).
Children and Adult Services,Education,Transport,230004,Contract Hire,09-Jun-2016,3138359-087,600.00,ALANS TAXIS BARNARD CASTLE.
Children and Adult Services,Education,Transport,230007,Contract Hire,09-Jun-2016,3138359-088,832.50,ALANS TAXIS BARNARD CASTLE.
Children and Adult Services,Education,Transport,230013,Contract Hire,09-Jun-2016,3138359-089,"1,350.00",ALANS TAXIS BARNARD CASTLE.
Children and Adult Services,Education,Transport,230007,Contract Hire,09-Jun-2016,3138470-885,940.00,CLIVE HUBERY.
Children and Adult Services,Education,Transport,230008,Contract Hire,09-Jun-2016,3138663-924,"1,401.44",JDS PRIVATE HIRE DURHAM.
Children and Adult Services,Education,Transport,230008,Contract Hire,09-Jun-2016,3138663-925,"1,679.41",JDS PRIVATE HIRE DURHAM.
Children and Adult Services,Education,Transport,230008,Contract Hire,09-Jun-2016,3138663-926,"1,317.27",JDS PRIVATE HIRE DURHAM.
Children and Adult Services,Education,Transport,230006,Contract Hire,09-Jun-2016,3138663-927,"1,641.79",JDS PRIVATE HIRE DURHAM.
Children and Adult Services,Education,Transport,230007,Contract Hire,09-Jun-2016,3138663-930,950.00,JDS PRIVATE HIRE DURHAM.
Children and Adult Services,Education,Transport,230008,Contract Hire,09-Jun-2016,3138663-931,"1,387.00",JDS PRIVATE HIRE DURHAM.
Children and Adult Services,Education,Transport,230007,Contract Hire,09-Jun-2016,3138663-938,666.00,JDS PRIVATE HIRE DURHAM.
Children and Adult Services,Education,Transport,230008,Contract Hire,09-Jun-2016,3138663-940,"1,330.00",JDS PRIVATE HIRE DURHAM.
Children and Adult Services,Head of Adults,Transport,230005,Contract Hire,09-Jun-2016,3138799-650,"1,780.00",MOLLYS TAXIS.
Children and Adult Services,Head of Adults,Transport,230005,Contract Hire,09-Jun-2016,3138909-559,"1,600.00",ROAD RUNNERS (NE) LTD.
Children and Adult Services,Education,Transport,230007,Contract Hire,09-Jun-2016,3138965-368,"2,105.96",STEPHEN MAUDE LTD T/A MAUDES COACHES.
Children and Adult Services,Education,Transport,230007,Contract Hire,09-Jun-2016,3138965-369,"2,012.29",STEPHEN MAUDE LTD T/A MAUDES COACHES.
Children and Adult Services,Education,Transport,230007,Contract Hire,09-Jun-2016,3138965-370,"1,407.95",STEPHEN MAUDE LTD T/A MAUDES COACHES.
Children and Adult Services,Education,Transport,230008,Contract Hire,09-Jun-2016,3139024-820,"1,558.00",WAYSIDE TAXIS.
Dedicated Schools Grant,Dedicated Schools Grant,Transport,230010,Contract Hire,09-Jun-2016,3139024-828,"1,140.00",WAYSIDE TAXIS.
Children and Adult Services,Education,Transport,230007,Contract Hire,09-Jun-2016,3139024-829,798.00,WAYSIDE TAXIS.
Children and Adult Services,Education,Transport,230008,Contract Hire,09-Jun-2016,3138567-25,738.00,EXTREME TAXI`S.
Children and Adult Services,Education,Transport,230008,Contract Hire,09-Jun-2016,3138567-26,679.00,EXTREME TAXI`S.
Assistant Chief Executive,Partnerships & Community Engagement Div.,Transfer Payments,525030,Other,09-Jun-2016,3138487-AB-SPEN004,"25,560.00",CORNFORTH PARTNERSHIP.
Assistant Chief Executive,Partnerships & Community Engagement Div.,Cap Exp on Grants & Other Financial Assistance (REFCUS),918004,Contributions to other bodies,09-Jun-2016,3138526-AB-14,"3,000.00",DURHAM & DARLINGTON FIRE & RESCUE.
Assistant Chief Executive,Partnerships & Community Engagement Div.,Transfer Payments,525030,Other,09-Jun-2016,3138958-AB-11,"3,000.00",SPENNYMOOR AGED PERSONS GALA & TREAT FUND.
Assistant Chief Executive,Partnerships & Community Engagement Div.,Cap Exp on Grants & Other Financial Assistance (REFCUS),918004,Contributions to other bodies,09-Jun-2016,3138959-AB-01,"2,910.00",SPENNYMOOR CHI TAEKWONDO CLUB.
Assistant Chief Executive,Partnerships & Community Engagement Div.,Transfer Payments,525030,Other,09-Jun-2016,3138986-AB-STAN006,"10,000.00",THE FORGE.
Assistant Chief Executive,Partnerships & Community Engagement Div.,Transfer Payments,525030,Other,09-Jun-2016,3139001-AB-EDRC011,"14,102.00",TRIMDON COMMUNITY COLLEGE ASSOCIATION.
Assistant Chief Executive,Partnerships & Community Engagement Div.,Transfer Payments,525030,Other,09-Jun-2016,3139012-CCG-TEES004,"6,646.00",UPPER TEESDALE AGRICULTURAL SUPPORT SERVICES LTD (UTASS).
Neighbourhood Services,Technical Services,Stock,926900,Stock in hand-Inventory system,09-Jun-2016,3138451-9950/01696051,"2,584.64",CERAMIC TILE DISTRIBUTORS (CTD).
Neighbourhood Services,Technical Services,Third Party Payments,430100,Rendered by Private Contractors,09-Jun-2016,3138893-2580/160511,"142,933.22",RAINTON CONSTRUCTION LTD.
Neighbourhood Services,Direct Services,Supplies and Services,304259,Equipment and Materials,09-Jun-2016,3138905-748156-2016,"1,227.10",RICKERBY LTD.
Neighbourhood Services,Direct Services,Supplies and Services,304221,Equipment and Materials,09-Jun-2016,3138943-CD970345878,"1,331.20",SHERRIFF AMENITY.
Neighbourhood Services,Culture & Sport,Third Party Payments,430100,Rendered by Private Contractors,09-Jun-2016,3138479-PSINV00592,"32,356.04",COMPETITION LINE UK LTD.
Neighbourhood Services,Culture & Sport,Third Party Payments,430100,Rendered by Private Contractors,09-Jun-2016,3138479-PSINV00593,"7,842.00",COMPETITION LINE UK LTD.
Neighbourhood Services,Culture & Sport,Income,720810,Fees and Charges,09-Jun-2016,3138479-PSINV00594,"26,990.47",COMPETITION LINE UK LTD.
Neighbourhood Services,Culture & Sport,Income,720810,Fees and Charges,09-Jun-2016,3138479-PSINV00595,"4,672.34",COMPETITION LINE UK LTD.
Neighbourhood Services,Culture & Sport,Income,720810,Fees and Charges,09-Jun-2016,3138479-PSINV00597,"19,473.80",COMPETITION LINE UK LTD.
Neighbourhood Services,Direct Services,Supplies and Services,304221,Equipment and Materials,09-Jun-2016,3138544-059-185682,843.89,EDMUNDSON ELECTRICAL LTD.
Neighbourhood Services,Technical Services,Stock,926900,Stock in hand-Inventory system,09-Jun-2016,3138438-851601236,"5,288.00",CARLISLE CONSTRUCTION MATERIALS LTD.
Neighbourhood Services,Direct Services,Premises,145023,Cleaning and Domestic Supplies,09-Jun-2016,3138610-06/602104,"1,468.00",GREENHAM TRADING LTD.
Neighbourhood Services,Technical Services,Stock,926900,Stock in hand-Inventory system,09-Jun-2016,3138681-STI437680,512.00,JT DOVE LTD.
Neighbourhood Services,Technical Services,Third Party Payments,430100,Rendered by Private Contractors,09-Jun-2016,3139028-201650111,"1,656.00",WEMO-TEC UK LTD.
Neighbourhood Services,Technical Services,Supplies and Services,304221,Equipment and Materials,09-Jun-2016,3138357-23146836,"1,038.33",AGGREGATE INDUSTRIES UK LTD.
Neighbourhood Services,Technical Services,Third Party Payments,430100,Rendered by Private Contractors,09-Jun-2016,3138400-INV-0027,"13,680.00",BEAVER BRIDGE HIRE LTD.
Neighbourhood Services,Technical Services,Third Party Payments,430127,Rendered by Private Contractors,09-Jun-2016,3138648-5305127A,946.00,JA GILSON (AGRICULTURAL CONTRACTORS) LTD.
Neighbourhood Services,Technical Services,Supplies and Services,304221,Equipment and Materials,09-Jun-2016,3138673-NI031083,688.92,JOHN MACLEAN & SONS ELECTRICAL (DINGWALL) LTD.
Neighbourhood Services,Direct Services,Third Party Payments,430100,Rendered by Private Contractors,09-Jun-2016,3138692-15110002,"29,757.63",KIER SERVICES LTD - MAINTENANCE NORTH.
Neighbourhood Services,Technical Services,Supplies and Services,342053,Computers and Communications,09-Jun-2016,3138840-E930675,785.00,NCC SERVICES LTD.
Neighbourhood Services,Technical Services,Construction Work,908202,Capital - Public Utilities - Telephones Services,09-Jun-2016,3138860-A146793,"40,146.31",OPENREACH LLU.
Neighbourhood Services,Culture & Sport,Supplies and Services,332029,Printing Stationery and Gen Off Exps,09-Jun-2016,3139002-2846261,750.00,TRINITY MIRROR PUBLISHING LTD.
Neighbourhood Services,Technical Services,Stock,926900,Stock in hand-Inventory system,09-Jun-2016,3138641-532776,"2,424.80",INSTARMAC GROUP PLC.
Neighbourhood Services,Culture & Sport,Construction Work,908105,Construction work,09-Jun-2016,3138748-140602,"2,675.00",METRIC GROUP LTD.
Neighbourhood Services,Technical Services,Stock,926900,Stock in hand-Inventory system,09-Jun-2016,3138953-188722,"3,055.68",SNAPFAST.
Neighbourhood Services,Culture & Sport,Supplies and Services,384199,Miscellaneous Expenses,09-Jun-2016,3138973-INV-14,"3,000.00",SYLVAN SKILLS.
Neighbourhood Services,Technical Services,Stock,926900,Stock in hand-Inventory system,09-Jun-2016,3138419-12490,560.00,BOXCLEVER TOTAL WASTE MANAGEMENT LTD.
Neighbourhood Services,Technical Services,Construction Work,908105,Construction work,09-Jun-2016,3138651-12540,"1,971.70",JACK COUPE & SONS LTD T/A COUPE LINE.
Neighbourhood Services,Technical Services,Third Party Payments,430100,Rendered by Private Contractors,09-Jun-2016,3138883-88295,550.00,PROTECTOR SECURITY GROUP LTD.
Neighbourhood Services,Direct Services,Supplies and Services,384194,Miscellaneous Expenses,09-Jun-2016,3138926-2641A,558.88,SAFE STRIP UK LTD.
Neighbourhood Services,Technical Services,Supplies and Services,384199,Miscellaneous Expenses,09-Jun-2016,3138407-0174,700.00,BERNARD YOUNG (POET).
Neighbourhood Services,Direct Services,Third Party Payments,460305,Contract Payments,09-Jun-2016,3138474-2512,"1,215.00",CO-WHEELS CAR CLUB CIC.
Neighbourhood Services,Technical Services,Third Party Payments,430100,Rendered by Private Contractors,09-Jun-2016,3138525-5969,"1,099.00",DUNELM GEOTECHNICAL & ENVIRONMENTAL LTD.
Neighbourhood Services,Direct Services,Supplies and Services,384194,Miscellaneous Expenses,09-Jun-2016,3138926-2639,547.36,SAFE STRIP UK LTD.
Neighbourhood Services,Direct Services,Third Party Payments,430100,Rendered by Private Contractors,09-Jun-2016,3138450-180,"3,131.72",CEILINGS DIRECT LTD.
Neighbourhood Services,Culture & Sport,Supplies and Services,384199,Miscellaneous Expenses,09-Jun-2016,3138603-030,640.00,GM SMITH T/A LOVE FOOD LIVE.
Neighbourhood Services,Culture & Sport,Supplies and Services,384199,Miscellaneous Expenses,09-Jun-2016,3138749-49,"1,531.37",MICHAEL LONG.
Neighbourhood Services,Culture & Sport,Supplies and Services,384199,Miscellaneous Expenses,09-Jun-2016,3138675-4,539.05,JOSEPHINE SIMMS.
Regeneration & Economic Development,Transport and Contracted Services,Fees,901002,Professional fees,09-Jun-2016,3138879-PCA/P/7869,"1,690.00",PRE CONSTRUCT ARCHAEOLOGY LTD.
Regeneration & Economic Development,Economic Development and Housing,Supplies and Services,324117,Provisions,09-Jun-2016,3138411-67552459,557.15,BIDVEST FOODSERVICE (FORMERLY 3663).
Regeneration & Economic Development,Economic Development and Housing,Premises,120021,Energy Costs,09-Jun-2016,3138488-11096153,845.62,CORONA ENERGY RETAIL 2 LTD.
Regeneration & Economic Development,Economic Development and Housing,Premises,120021,Energy Costs,09-Jun-2016,3138488-11098181,"1,185.29",CORONA ENERGY RETAIL 2 LTD.
Regeneration & Economic Development,Economic Development and Housing,Premises,120021,Energy Costs,09-Jun-2016,3138488-11100178,614.49,CORONA ENERGY RETAIL 2 LTD.
Regeneration & Economic Development,Economic Development and Housing,Premises,120021,Energy Costs,09-Jun-2016,3138488-11105765,524.90,CORONA ENERGY RETAIL 2 LTD.
Regeneration & Economic Development,Economic Development and Housing,Premises,120021,Energy Costs,09-Jun-2016,3138488-11112367,"1,228.26",CORONA ENERGY RETAIL 2 LTD.
Regeneration & Economic Development,Economic Development and Housing,Premises,120021,Energy Costs,09-Jun-2016,3138488-11118542,"2,089.12",CORONA ENERGY RETAIL 2 LTD.
Regeneration & Economic Development,Economic Development and Housing,Supplies and Services,384540,Miscellaneous Expenses,09-Jun-2016,3138393-160429,"10,400.00",AUDIO TRAILS LTD.
Regeneration & Economic Development,Economic Development and Housing,Supplies and Services,338066,Services,09-Jun-2016,3138843-1440,"29,244.98",NEPRO LTD.
Resources,Financial Services,Supplies and Services,384199,Miscellaneous Expenses,09-Jun-2016,3138468-C/RB143652,"1,255.00",CIVICA UK LTD.
Resources,Legal & Democratic Services,Supplies and Services,338057,Services,09-Jun-2016,3138522-APRIL-16D,"1,548.80",DR SREE MUSSUNOOR.
Resources,Legal & Democratic Services,Supplies and Services,384059,Miscellaneous Expenses,09-Jun-2016,3138907-7140005422,660.00,RIVERSIDE EVENTS LLP.
